Workbook

Sheet Resumo
A6: Obra: | D6: Perfuração e Instalação de Poços Tubulares Profundos | K6: SERV. PRELIMINAR CRISTALINO | N6: ='Serv. Preliminares'!H13*'Serv. Preliminares'!I21 -> 790084.16
K7: SERV. PRELIMINAR SEDIMENTAR | N7: ='Serv. Preliminares'!H13*'Serv. Preliminares'!I24 -> 0
A8: Local: | D8: Comunidades difusas dos municípios inseridos na área de atuação da 3ª Superintendência Regional da Codevasf, no estado de Pernambuco.
E9: Total dos Serviços | G9: =H14 -> 14861106 | I9: ='Serv. Preliminares'!G9 -> 14861106 | K9: =I9-G9 -> 0
A10: Perfuração e Instalação de Poços Tubulares Profundos - SEM DESONERAÇÃO
A11: SINAPI Agosto/2023 Não Desonerado; ORSE Agosto/2023; Cotações; SICRO - Abril/2023 | G11: Data Base do orçamento de referência: Dez/2023
A12: codigo | B12: ITEM | C12: COD | D12: DESCRIÇÃO DOS SERVIÇOS | E12: UNID. | F12: QUANT. | G12: PREÇO (R$) | J12: ='Cristalino completo'!E10 -> 260 | K12: POÇOS CRISTALINOS S/ ADM | N12: ='Serv. Preliminares'!G21 -> 14071021.25 | P12: =N12+N6 -> 14861105.41 | Q12: =P12/J12 -> 57158.1
G13: UNITÁRIO C/BDI | H13: TOTAL COM BDI | J13: 35 | K13: POÇOS SEDIMENTARES S/ ADM | N13: ='Serv. Preliminares'!H24 -> 0 | P13: =N13+N7 -> 0 | Q13: =P13/J13 -> 0
B14: 1 | C14: CPU-01 | D14: POÇOS CRISTALINOS - COMPLETOS | E14: =VLOOKUP(C14,CPU!B:I,5,0) -> UNID | F14: ='Serv. Preliminares'!F22 -> 260 | G14: =Q12 -> 57158.1 | H14: =TRUNC(G14*F14,2) -> 14861106
B15: 2 | C15: CPU-02 | D15: POÇOS SEDIMENTARES - COMPLETOS | E15: =VLOOKUP(C15,CPU!B:I,5,0) -> UNID | F15: ='Serv. Preliminares'!F25 -> 0 | G15: =Q13 -> 0 | H15: =TRUNC(G15*F15,2) -> 0
H16: ,

Sheet Serv. Preliminares
A6: Obra: | D6: Perfuração e Instalação de Poços Tubulares Profundos
A8: Local: | D8: =Resumo!D8 -> Comunidades difusas dos municípios inseridos na área de atuação da 3ª Superintendência Regional da Codevasf, no estado de Pernambuco.
E9: Total das Obras | G9: =TRUNC(H13+G21+H24,2)+0.59 -> 14861106
A10: =Resumo!A10 -> Perfuração e Instalação de Poços Tubulares Profundos - SEM DESONERAÇÃO
A11: codigo | B11: ITEM | C11: COD | D11: DESCRIÇÃO DOS SERVIÇOS | E11: UNID. | F11: QUANT. | G11: PREÇO (R$)
G12: UNITÁRIO C/BDI | H12: TOTAL COM BDI
B13: 1 | D13: Serviços Preliminares | H13: =SUM(H14:H18) -> 790084.16
B14: 1.1 | C14: CPU-01 | D14: =VLOOKUP(C14,CPU!B:I,4,0) -> MOBILIZAÇÃO DE EQUIPAMENTOS, MATERIAIS E PESSOAL | E14: =VLOOKUP(C14,CPU!B:I,5,0) -> UNID | F14: =F22 -> 260 | G14: =VLOOKUP(C14,CPU!F:I,4,0) -> 1059.08 | H14: =TRUNC(G14*F14,2) -> 275360.8
B15: 1.2 | C15: CPU-02 | D15: =VLOOKUP(C15,CPU!B:I,4,0) -> DESMOBILIZAÇÃO DE EQUIPAMENTOS, MATERIAIS E PESSOAL | E15: =VLOOKUP(C15,CPU!B:I,5,0) -> UNID | F15: 1 | G15: =VLOOKUP(C15,CPU!F:I,4,0) -> 1059.08 | H15: =TRUNC(G15*F15,2) -> 1059.08
B16: 1.3 | C16: CPU-03 | D16: =VLOOKUP(C16,CPU!B:I,4,0) -> FORNECIMENTO, MONTAGEM E CONSERVAÇÃO DE PLACA DE IDENTIFICAÇÃO DE OBRA PADRÃO (3M X 2M). | E16: =VLOOKUP(C16,CPU!B:I,5,0) -> M² | F16: =TRUNC((10)*6,2) -> 60 | G16: =VLOOKUP(C16,CPU!F:I,4,0) -> 463.36 | H16: =TRUNC(G16*F16,2) -> 27801.6
B17: 1.4 | C17: CPU-04 | D17: =VLOOKUP(C17,CPU!B:I,4,0) -> FORNECIMENTO DE VEÍCULO 4X4 À FISCALIZAÇÃO COM SEGURO, TAXAS DE LICENCIAMENTO, REVISÃO PERIÓDICA, MANUTENÇÃO, COMBUSTÍVEL E PNEUS. | E17: =VLOOKUP(C17,CPU!B:I,5,0) -> MÊS | F17: 12 | G17: =VLOOKUP(C17,CPU!F:I,4,0) -> 13879.82 | H17: =TRUNC(G17*F17,2) -> 166557.84 | J17: =G18/G9 -> 0.0215
B18: 1.6 | C18: CPU-06 | D18: =VLOOKUP(C18,CPU!B:I,4,0) -> ADMINISTRAÇÃO LOCAL DA OBRA | E18: =VLOOKUP(C18,CPU!B:I,5,0) -> UNID | F18: 1 | G18: =VLOOKUP(C18,CPU!F:I,4,0) -> 319304.84 | H18: =TRUNC(G18*F18,2) -> 319304.84
A19: EXECUÇÃO DOS POÇOS
B20: ITEM | D20: DESCRIÇÃO DOS SERVIÇOS | E20: UNID. | F20: QUANT. | G20: TOTAL C/ BDI (R$)
B21: 2 | D21: Poços Cristalinos - Completos | G21: =SUM(G22:H23) -> 14071021.25 | I21: =G21/J21 -> 1 | J21: =G9-H13 -> 14071021.84
B22: 2.1 | D22: Poços Cristalinos - PERFURAÇÃO | E22: un | F22: ='Cristalino completo'!E10 -> 260 | G22: ='Cristalino completo'!G13 -> 5927988.16
B23: 2.2 | D23: Poços Cristalinos - Montagem e Instalação com bomba submersa. | E23: un | F23: ='Cristalino completo'!E12 -> 260 | G23: ='Cristalino completo'!G14 -> 8143033.09
B24: 5 | D24: Poços Sedimentares - Completos | H24: =SUM(G25:G26) -> 0 | I24: =1-I21 -> 0
B25: 5.1 | D25: Poços Sedimentares - PERFURAÇÃO | E25: un | F25: 0 | G25: 0
B26: 5.2 | D26: Poços Sedimentares - Montagem e Instalação | E26: un | F26: 0 | G26: 0

Sheet Cristalino completo
A6: Obra: | D6: =Resumo!$D$6 -> Perfuração e Instalação de Poços Tubulares Profundos
A8: ='Serv. Preliminares'!$A$8 -> Local: | D8: ='Serv. Preliminares'!$D$8 -> Comunidades difusas dos municípios inseridos na área de atuação da 3ª Superintendência Regional da Codevasf, no estado de Pernambuco.
A9: Total de poços a perfurar | E9: Cristalino
E10: 260
A11: Total de poços a instalar | E11: Bomba c/ Energia Solar | J11: =Resumo!G9 -> 14861106
E12: =E10 -> 260
A13: Data Base Utilizada para Insumos: SINAPI Agosto/2023 Não Desonerado; ORSE Agosto/2023; Cotações; SICRO - Abril/2023 | E13: Valor Perfuração (R$) | G13: =ROUND((SUM(H20:H38)),2) -> 5927988.16
E14: Instalação Motobomba c/ Sist. Solar (R$) | G14: =ROUND(SUM(H40:H53),2) -> 8143033.09 | K14: =G15/E10 -> 54119.31
E15: Total das Obras | G15: =ROUND(SUM(G13:H14),2) -> 14071021.25
A16: =Resumo!A10 -> Perfuração e Instalação de Poços Tubulares Profundos - SEM DESONERAÇÃO
A17: Código | B17: ITEM | C17: COD | D17: DESCRIÇÃO DOS SERVIÇOS | E17: UNID. | F17: QUANT. | G17: PREÇO (R$)
G18: UNITÁRIO C/BDI | H18: TOTAL COM BDI
B19: 2 | D19: Poços Cristalinos - PERFURAÇÃO - 80 m média
A20: COMPOSIÇÃO | B20: 2.1 | C20: CPU-07 | D20: =VLOOKUP(C20,CPU!B:I,4,0) -> OBTENÇÃO E REGISTRO EM CARTÓRIO DE REGISTRO DE IMÓVEIS OU CARTÓRIO DE TÍTULOS E DOCUMENTOS DO TERMO DE CESSÃO DE USO | E20: =VLOOKUP(C20,CPU!B:I,5,0) -> UNID | F20: =1*$E$10 -> 260 | G20: =VLOOKUP(C20,CPU!F:I,4,0) -> 540.03 | H20: =TRUNC(G20*F20,2) -> 140407.8
A21: COMPOSIÇÃO | B21: 2.2 | C21: CPU-08 | D21: =VLOOKUP(C21,CPU!B:I,4,0) -> MONTAGEM, INSTALAÇÃO E DESINSTALAÇÃO DE SONDA | E21: =VLOOKUP(C21,CPU!B:I,5,0) -> UNID | F21: =1*$E$10 -> 260 | G21: =VLOOKUP(C21,CPU!F:I,4,0) -> 517.8 | H21: 134628
A22: COMPOSIÇÃO | B22: 2.3 | C22: CPU-09 | D22: =VLOOKUP(C22,CPU!B:I,4,0) -> CAPINA E LIMPEZA MANUAL DE TERRENO | E22: =VLOOKUP(C22,CPU!B:I,5,0) -> M² | F22: =4*$E$10 -> 1040 | G22: =VLOOKUP(C22,CPU!F:I,4,0) -> 2.1 | H22: 2184 | I22: =F24+F25+#REF!+#REF! -> 
A23: COMPOSIÇÃO | B23: 2.4 | C23: CPU-10 | D23: =VLOOKUP(C23,CPU!B:I,4,0) -> LOCAÇÃO, ACOMPANHAMENTO DA PERFURAÇÃO, TESTE DE VAZÃO E DA INSTALAÇÃO DO POÇO, POR PROFISSIONAL HABILITADO | E23: =VLOOKUP(C23,CPU!B:I,5,0) -> UNID | F23: =1*$E$10 -> 260 | G23: =VLOOKUP(C23,CPU!F:I,4,0) -> 1157.51 | H23: 300952.6
A24: COMPOSIÇÃO | B24: 2.5 | C24: CPU-11 | D24: =VLOOKUP(C24,CPU!B:I,4,0) -> PERFURAÇÃO EM ROCHA CRISTALINA ALTERADA/COMPACTADA DN 8" (POÇO 80M) | E24: =VLOOKUP(C24,CPU!B:I,5,0) -> M | F24: =14*$E$10 -> 3640 | G24: =VLOOKUP(C24,CPU!F:I,4,0) -> 133.59 | H24: 486267.6
A25: COMPOSIÇÃO | B25: 2.6 | C25: CPU-12 | D25: =VLOOKUP(C25,CPU!B:I,4,0) -> PERFURAÇÃO EM ROCHA CRISTALINA ALTERADA/COMPACTADA DN 6" (POÇO 80M) | E25: =VLOOKUP(C25,CPU!B:I,5,0) -> M | F25: =66*$E$10 -> 17160 | G25: =VLOOKUP(C25,CPU!F:I,4,0) -> 123.56 | H25: 2120289.6
A26: COMPOSIÇÃO | B26: 2.7 | C26: CPU-13 | D26: =VLOOKUP(C26,CPU!B:I,4,0) -> FORNECIMENTO E INSTALAÇÃO DE REVESTIMENTO DO POÇO EM TUBO PVC GEOMECÂNICO LEVE EM DN DE 6'' COM LUVAS E ROSCA | E26: =VLOOKUP(C26,CPU!B:I,5,0) -> M | F26: =14*$E$10 -> 3640 | G26: =VLOOKUP(C26,CPU!F:I,4,0) -> 169.42 | H26: 616688.8
A27: COMPOSIÇÃO | B27: 2.9 | C27: CPU-14 | D27: =VLOOKUP(C27,CPU!B:I,4,0) -> REALIZAÇÃO DE LIMPEZA, DESENVOLVIMENTO E ESTIMULAÇÃO DO POÇO, REALIZADO MEDIANTE A UTILIZAÇÃO DE COMPRESSOR DE AR PELO MÉTODO DE FLUXO E REFLUXO, INCLUINDO OPERAÇÃO E A INSTALAÇÃO DE COMPRESSOR DE AR | E27: =VLOOKUP(C27,CPU!B:I,5,0) -> UNID | F27: 260 | G27: =VLOOKUP(C27,CPU!F:I,4,0) -> 493.85 | H27: 128401
A28: COMPOSIÇÃO | B28: 2.10 | C28: CPU-15 | D28: =VLOOKUP(C28,CPU!B:I,4,0) -> REALIZAÇÃO DE TESTE DE VAZÃO E DE BOMBEAMENTO DO POÇO, INCLUINDO OPERAÇÃO E INSTALAÇÃO DE MOTOBOMBA SUBMERSA E GRUPO GERADOR | E28: =VLOOKUP(C28,CPU!B:I,5,0) -> UNID | F28: 260 | G28: =VLOOKUP(C28,CPU!F:I,4,0) -> 1083.56 | H28: 281725.6
A29: COMPOSIÇÃO | B29: 2.11 | C29: CPU-16 | D29: =VLOOKUP(C29,CPU!B:I,4,0) -> REALIZAÇÃO DE DESINFECÇÃO DO POÇO, INCLUINDO MATERIAL DE LIMPEZA, INSTALAÇÃO E DESINSTALAÇÃO DE COMPRESSOR, COMBUSTÍVEL E OPERADOR. | E29: =VLOOKUP(C29,CPU!B:I,5,0) -> UNID | F29: 260 | G29: =VLOOKUP(C29,CPU!F:I,4,0) -> 212.54 | H29: 55260.4
A30: COMPOSIÇÃO | B30: 2.12 | C30: CPU-17 | D30: =VLOOKUP(C30,CPU!B:I,4,0) -> ANÁLISE FÍSICO-QUÍMICA DA ÁGUA | E30: =VLOOKUP(C30,CPU!B:I,5,0) -> UNID | F30: 260 | G30: =VLOOKUP(C30,CPU!F:I,4,0) -> 698.82 | H30: =TRUNC(G30*F30,2) -> 181693.2
A31: COMPOSIÇÃO | B31: 2.13 | C31: CPU-18 | D31: =VLOOKUP(C31,CPU!B:I,4,0) -> ANÁLISE BACTERIOLÓGICA DA ÁGUA | E31: =VLOOKUP(C31,CPU!B:I,5,0) -> UNID | F31: 260 | G31: =VLOOKUP(C31,CPU!F:I,4,0) -> 69.21 | H31: 17994.6
A32: COMPOSIÇÃO | B32: 2.14 | C32: CPU-19 | D32: =VLOOKUP(C32,CPU!B:I,4,0) -> CIMENTAÇÃO ANELAR DO POÇO, COM ARGAMASSA DE CIMENTO E AREIA PRODUZIDA NO TRAÇO 1:3. | E32: =VLOOKUP(C32,CPU!B:I,5,0) -> M³ | F32: =(E10*14*3.1416*(0.1016*0.1016-0.0762*0.0762)+56*F38*3.1416*(0.0762*0.0762-0.0508*0.0508)) -> 95.91 | G32: =VLOOKUP(C32,CPU!F:I,4,0) -> 717.91 | H32: 68854.74
A33: COMPOSIÇÃO | B33: 2.15 | C33: CPU-20 | D33: =VLOOKUP(C33,CPU!B:I,4,0) -> CONSTRUÇÃO DE LAJE DE PROTEÇÃO SANITÁRIA FCK = 15 MPA, VIRADO EM BETONEIRA, INCLUINDO APLICAÇÃO E ADENSAMENTO, FORMA, ESCORAMENTO E FERRAGENS, NAS DIMENSÕES-1,5M X 1,5M X 0,10M, COM DECLIVIDADE DE PARA AS BORDAS, EM CONFORMIDADE COM A NBR 12212. | E33: =VLOOKUP(C33,CPU!B:I,5,0) -> M³ | F33: =1.5*1.5*0.1*$E$10 -> 58.5 | G33: =VLOOKUP(C33,CPU!F:I,4,0) -> 888.78 | H33: 51993.63
A34: COMPOSIÇÃO | B34: 2.16 | C34: CPU-21 | D34: =VLOOKUP(C34,CPU!B:I,4,0) -> FORNECIMENTO E INSTALAÇÃO DE CAP FÊMEA DE PONTA DE TUBO DE 6 POL., PARA IMPEDIR CONTAMINAÇÃO DO POÇO, INCLUSIVE ANEL DE VEDAÇÃO E BORRACHA | E34: =VLOOKUP(C34,CPU!B:I,5,0) -> UNID | F34: =1*$E$10 -> 260 | G34: =VLOOKUP(C34,CPU!F:I,4,0) -> 139 | H34: 36140
A35: COMPOSIÇÃO | B35: 2.17 | C35: CPU-36 | D35: =VLOOKUP(C35,CPU!B:I,4,0) -> FORNECIMENTO E INSTALAÇÃO DE PRÉ-FILTRO PREENCHIDO COM MATERIAL QUARTZOSO PREVIAMENTE LAVADO, PENEIRADO E SELECIONADO COM GRANULOMETRIA VARIÁVEL DE 2 - 4 MM EM CONFORMIDADE COM NBR 12244. | E35: =VLOOKUP(C35,CPU!B:I,5,0) -> M³ | F35: =F37*3.1416*(0.0762*0.0762-0.0508*0.0508) -> 7.9 | G35: =VLOOKUP(C35,CPU!F:I,4,0) -> 2142.27 | H35: 16923.93
A36: COMPOSIÇÃO | B36: 2.18 | C36: CPU-37 | D36: =VLOOKUP(C36,CPU!B:I,4,0) -> FORNECIMENTO E INSTALAÇÃO DE TUBO PVC GEO MECANICO LEVE DN DE 4'' COM LUVAS E ROSCA. | E36: =VLOOKUP(C36,CPU!B:I,5,0) -> M | F36: =F38*70 -> 5460 | G36: =VLOOKUP(C36,CPU!F:I,4,0) -> 201.06 | H36: 1097787.6
A37: COMPOSIÇÃO | B37: 2.19 | C37: CPU-38 | D37: =VLOOKUP(C37,CPU!B:I,4,0) -> FORNECIMENTO E INSTALAÇÃO DE FILTRO GEOMECANICO LEVE DN DE 4'' COM LUVAS E ROSCA. | E37: =VLOOKUP(C37,CPU!B:I,5,0) -> M | F37: =F38*10 -> 780 | G37: =VLOOKUP(C37,CPU!F:I,4,0) -> 195.98 | H37: 152864.4
A38: COMPOSIÇÃO | B38: 2.20 | C38: CPU-39 | D38: =VLOOKUP(C38,CPU!B:I,4,0) -> FORNECIMENTO E INSTALAÇÃO DE CAP PVC GEOMECÂNICO LEVE. EM DN 4'' PARA VEDAÇÃO DO FUNDO DO FILTRO, INCLUSIVE ANEL DE VEDAÇÃO E BORRACHA. | E38: =VLOOKUP(C38,CPU!B:I,5,0) -> UNID | F38: =E10*0.3 -> 78 | G38: =VLOOKUP(C38,CPU!F:I,4,0) -> 473.47 | H38: 36930.66
B39: 4 | D39: Poços Cristalinos -Montagem e Instalação
A40: COMPOSIÇÃO | B40: 4.1 | C40: CPU-24 | D40: =VLOOKUP(C40,CPU!B:I,4,0) -> FORNECIMENTO DE MATERIAL E INSTALAÇÃO DE RESERVATÓRIO EM FIBRA DE VIDRO COM CAPACIDADE DE 5.000L | E40: =VLOOKUP(C40,CPU!B:I,5,0) -> UNID | F40: =1*$E$10 -> 260 | G40: =VLOOKUP(C40,CPU!F:I,4,0) -> 4044.12 | H40: =TRUNC(G40*F40,2) -> 1051471.2
A41: COMPOSIÇÃO | B41: 4.2 | C41: CPU-09 | D41: =VLOOKUP(C41,CPU!B:I,4,0) -> CAPINA E LIMPEZA MANUAL DE TERRENO | E41: =VLOOKUP(C41,CPU!B:I,5,0) -> M² | F41: =40*$E$10 -> 10400 | G41: =VLOOKUP(C41,CPU!F:I,4,0) -> 2.1 | H41: =TRUNC(G41*F41,2) -> 21840
A42: COMPOSIÇÃO | B42: 4.3 | C42: CPU-25 | D42: =VLOOKUP(C42,CPU!B:I,4,0) -> ESCAVAÇÃO MANUAL DE VALA COM PROFUNDIDADE MENOR OU IGUAL A 1,30 M (0,40 M PROF. X 0,30 M LARG.) AF_02/2021 | E42: =VLOOKUP(C42,CPU!B:I,5,0) -> M³ | F42: =(F45*0.4*0.3)+F46*0.4*0.3 -> 3120 | G42: =VLOOKUP(C42,CPU!F:I,4,0) -> 104.08 | H42: =TRUNC(G42*F42,2) -> 324729.6
A43: COMPOSIÇÃO | B43: 4.4 | C43: CPU-26 | D43: =VLOOKUP(C43,CPU!B:I,4,0) -> EXECUÇÃO DE BASE DE SUSTENTAÇÃO DO RESERVATÓRIO EM CONCRETO ARMADO, DIÂMETRO DE 2,06M E ALTURA DE 1,10M | E43: =VLOOKUP(C43,CPU!B:I,5,0) -> UNID | F43: =1*$E$10 -> 260 | G43: =VLOOKUP(C43,CPU!F:I,4,0) -> 2730.62 | H43: 709961.2
A44: COMPOSIÇÃO | B44: 4.5 | C44: CPU-27 | D44: =VLOOKUP(C44,CPU!B:I,4,0) -> REATERRO MANUAL DE VALAS OU ÁREAS, COM ESPALHAMENTO E COMPACTAÇÃO, UTILIZANDO COMPACTADOR À PERCUSSÃO SAPINHO, SEM CONTROLE DO GRAU DE COMPACTAÇÃO | E44: =VLOOKUP(C44,CPU!B:I,5,0) -> M³ | F44: =F42-(3.1416*0.025*0.025*50*E10)-(3.1416*0.016*0.016*50*E10) -> 3084.02 | G44: =VLOOKUP(C44,CPU!F:I,4,0) -> 19.85 | H44: 61217.79
A45: COMPOSIÇÃO | B45: 4.6 | C45: CPU-28 | D45: =VLOOKUP(C45,CPU!B:I,4,0) -> FORNECIMENTO E ASSENTAMENTO DE TUBO PVC D=50MM | E45: =VLOOKUP(C45,CPU!B:I,5,0) -> M | F45: =50*$E$10 -> 13000 | G45: =VLOOKUP(C45,CPU!F:I,4,0) -> 19.95 | H45: 259350
A46: COMPOSIÇÃO | B46: 4.7 | C46: CPU-29 | D46: =VLOOKUP(C46,CPU!B:I,4,0) -> FORNECIMENTO E ASSENTAMENTO DE TUBO DE PVC D=32MM | E46: =VLOOKUP(C46,CPU!B:I,5,0) -> M | F46: =50*$E$10 -> 13000 | G46: =VLOOKUP(C46,CPU!F:I,4,0) -> 14.09 | H46: 183170
A47: COMPOSIÇÃO | B47: 4.8 | C47: CPU-30 | D47: =VLOOKUP(C47,CPU!B:I,4,0) -> EXECUÇÃO DE BEBEDOURO EM CONCRETO ARMADO, INCLUINDO A INSTALAÇÃO HIDRÁULICA. | E47: =VLOOKUP(C47,CPU!B:I,5,0) -> UNID | F47: =1*$E$10 -> 260 | G47: =VLOOKUP(C47,CPU!F:I,4,0) -> 1485.75 | H47: 386295
A48: COMPOSIÇÃO | B48: 4.9 | C48: CPU-31 | D48: =VLOOKUP(C48,CPU!B:I,4,0) -> FORNECIMENTO E MONTAGEM DE CERCA DE PROTEÇÃO CONSTRUÍDA COM MOURÕES DE CONCRETO ARMADO (H=2,5 M), COM 7 FIOS DE ARAME FARPADO, INCLUINDO ESTICADOR, CHUMBAMENTO E ARAME DE FIXAÇÃO | E48: =VLOOKUP(C48,CPU!B:I,5,0) -> M | F48: =24.5*$E$10 -> 6370 | G48: =VLOOKUP(C48,CPU!F:I,4,0) -> 86.43 | H48: 550559.1
A49: COMPOSIÇÃO | B49: 4.12 | C49: CPU-34 | D49: =VLOOKUP(C49,CPU!B:I,4,0) -> PINTURA DE LETREIRO | E49: =VLOOKUP(C49,CPU!B:I,5,0) -> UNID | F49: =1*$E$10 -> 260 | G49: =VLOOKUP(C49,CPU!F:I,4,0) -> 141.98 | H49: 36914.8
A50: COMPOSIÇÃO | B50: 4.13 | C50: CPU-35 | D50: =VLOOKUP(C50,CPU!B:I,4,0) -> FORNECIMENTO, MONTAGEM E INSTALAÇÃO DE PORTÃO DE FERRO TUBULAR, TELA EM AÇO GALVANIZADO, DOBRADIÇAS E FECHADURA PARA PASSAGEM DE PEDESTRE, MEDINDO 1,80M X 1,10M, INCLUINDO MOURÃO DE SUSTENTAÇÃO. | E50: =VLOOKUP(C50,CPU!B:I,5,0) -> UNID | F50: =1*$E$10 -> 260 | G50: =VLOOKUP(C50,CPU!F:I,4,0) -> 1556.09 | H50: 404583.4
B51: 4.1 | D51: Sistema de bombeamento com energia solar - Poços Cristalinos
A52: composição | B52: 4.1.1 | C52: CPU-22 | D52: =VLOOKUP(C52,CPU!B:I,4,0) -> FORNECIMENTO DE KIT PARA BOMBEAMENTO COM SUPRIMENTO POR ENERGIA SOLAR - SISTEMA GRID 1 | E52: =VLOOKUP(C52,CPU!B:I,5,0) -> UNID | F52: =1*$E$10 -> 260 | G52: =VLOOKUP(C52,CPU!F:I,4,0) -> 11309.78 | H52: =TRUNC(G52*F52,2) -> 2940542.8
A53: composição | B53: 4.1.2 | C53: CPU-23 | D53: =VLOOKUP(C53,CPU!B:I,4,0) -> INSTALAÇÃO DE BOMBA SUBMERSA COM MOTOR E BOMBA INOX, VAZÃO 2M³/H, AMT 80MCA 0,75CV, MONOFÁSICA, 220V, MULTIESTÁGIO DS=4 POL, COM QUADRO DE COMANDO PARA BOMBA SUBMERSA | E53: =VLOOKUP(C53,CPU!B:I,5,0) -> UNID | F53: =1*$E$10 -> 260 | G53: =VLOOKUP(C53,CPU!F:I,4,0) -> 4663.07 | H53: =TRUNC(G53*F53,2) -> 1212398.2

Sheet CPU
B4: OBJETO: | C4: ='Serv. Preliminares'!$D$8 -> Comunidades difusas dos municípios inseridos na área de atuação da 3ª Superintendência Regional da Codevasf, no estado de Pernambuco.
B6: Data Base Utilizada para Insumos: SINAPI Agosto/2023 Não Desonerado; ORSE Agosto/2023-1; Cotações | F6: BDI | H6: =BDI!D27 -> 0.2364
F7: Encargos Sociais: | H7: Horista | I7: Mensalista
H8: 1.1455 | I8: 0.7111
A10: PLANILHA ORÇAMENTARIA NÁO DESONERADA - Outubro/2023
A12: DETALHAMENTO DAS COMPOSIÇÕES DE CUSTO UNITÁRIO
B14: CPU-01 | C14: FONTE | D14: Codevasf | E14: =UPPER("Mobilização de Equipamentos, Materiais e Pessoal") -> MOBILIZAÇÃO DE EQUIPAMENTOS, MATERIAIS E PESSOAL | F14: UNID | G14: COEF. | H14: PRECO UNITÁRIO (R$) | I14: TOTAL (R$)
B17: COMP. SINAPI | C17: SINAPI | D17: 88316 | E17: =IF(B17="COMP. SINAPI",VLOOKUP(D17,'COMP SINAPI'!G:K,2,0),IF(B17="INS. SINAPI",VLOOKUP(D17,'INS SINAPI'!A:E,2,0),IF(B17="INS. ORSE",VLOOKUP(D17,'INS. ORSE'!A:D,2,0),IF(B17="COMP. ORSE",VLOOKUP(D17,'COMP. ORSE'!A:D,2,0))))) -> SERVENTE COM ENCARGOS COMPLEMENTARES | F17: =IF(B17="COMP. SINAPI",VLOOKUP(D17,'COMP SINAPI'!G:K,3,0),IF(B17="INS. SINAPI",VLOOKUP(D17,'INS SINAPI'!A:E,3,0),IF(B17="INS. ORSE",VLOOKUP(D17,'INS. ORSE'!A:D,3,0),IF(B17="COMP. ORSE",VLOOKUP(D17,'COMP. ORSE'!A:D,3,0))))) -> H | G17: 12 | H17: =IF(B17="COMP. SINAPI",VLOOKUP(D17,'COMP SINAPI'!G:K,5,0),IF(B17="INS. SINAPI",VLOOKUP(D17,'INS SINAPI'!A:E,5,0),IF(B17="INS. ORSE",VLOOKUP(D17,'INS. ORSE'!A:D,4,0),IF(B17="COMP. ORSE",VLOOKUP(D17,'COMP. ORSE'!A:D,4,0))))) -> 21,28 | I17: =TRUNC(G17*H17,2) -> 255.36
B18: INS. ORSE | C18: ORSE | D18: 10434 | E18: =IF(B18="COMP. SINAPI",VLOOKUP(D18,'COMP SINAPI'!G:K,2,0),IF(B18="INS. SINAPI",VLOOKUP(D18,'INS SINAPI'!A:E,2,0),IF(B18="INS. ORSE",VLOOKUP(D18,'INS. ORSE'!A:D,2,0),IF(B18="COMP. ORSE",VLOOKUP(D18,'COMP. ORSE'!A:D,2,0))))) -> CAMINHÃO CARROCERIA DE MADEIRA 9 T - FONTE:DNIT | F18: =IF(B18="COMP. SINAPI",VLOOKUP(D18,'COMP SINAPI'!G:K,3,0),IF(B18="INS. SINAPI",VLOOKUP(D18,'INS SINAPI'!A:E,3,0),IF(B18="INS. ORSE",VLOOKUP(D18,'INS. ORSE'!A:D,3,0),IF(B18="COMP. ORSE",VLOOKUP(D18,'COMP. ORSE'!A:D,3,0))))) -> H | G18: 6 | H18: =IF(B18="COMP. SINAPI",VLOOKUP(D18,'COMP SINAPI'!G:K,5,0),IF(B18="INS. SINAPI",VLOOKUP(D18,'INS SINAPI'!A:E,5,0),IF(B18="INS. ORSE",VLOOKUP(D18,'INS. ORSE'!A:D,4,0),IF(B18="COMP. ORSE",VLOOKUP(D18,'COMP. ORSE'!A:D,4,0))))) -> 96.04 | I18: =TRUNC(G18*H18,2) -> 576.24
B19: INS. ORSE | C19: ORSE | D19: 5896 | E19: =IF(B19="COMP. SINAPI",VLOOKUP(D19,'COMP SINAPI'!G:K,2,0),IF(B19="INS. SINAPI",VLOOKUP(D19,'INS SINAPI'!A:E,2,0),IF(B19="INS. ORSE",VLOOKUP(D19,'INS. ORSE'!A:D,2,0),IF(B19="COMP. ORSE",VLOOKUP(D19,'COMP. ORSE'!A:D,2,0))))) -> VEÍCULO TIPO SEDAN OU PICK-UP CAPACIDADE 0,6 TON | F19: =IF(B19="COMP. SINAPI",VLOOKUP(D19,'COMP SINAPI'!G:K,3,0),IF(B19="INS. SINAPI",VLOOKUP(D19,'INS SINAPI'!A:E,3,0),IF(B19="INS. ORSE",VLOOKUP(D19,'INS. ORSE'!A:D,3,0),IF(B19="COMP. ORSE",VLOOKUP(D19,'COMP. ORSE'!A:D,3,0))))) -> H | G19: 3 | H19: =IF(B19="COMP. SINAPI",VLOOKUP(D19,'COMP SINAPI'!G:K,5,0),IF(B19="INS. SINAPI",VLOOKUP(D19,'INS SINAPI'!A:E,5,0),IF(B19="INS. ORSE",VLOOKUP(D19,'INS. ORSE'!A:D,4,0),IF(B19="COMP. ORSE",VLOOKUP(D19,'COMP. ORSE'!A:D,4,0))))) -> 8.33 | I19: =TRUNC(G19*H19,2) -> 24.99
F20: Sub total: | I20: =SUM(I17:I19) -> 856.59
G21: BDI | H21: =BDI!$D$27 -> 0.2364 | I21: =TRUNC(I20*H21,2) -> 202.49
F22: =B14 -> CPU-01 | G22: PREÇO UNITÁRIO TOTAL: | I22: =TRUNC(I20+I21,2) -> 1059.08
B24: CPU-02 | C24: FONTE | D24: Codevasf | E24: =UPPER("Desmobilização de Equipamentos, Materiais e Pessoal") -> DESMOBILIZAÇÃO DE EQUIPAMENTOS, MATERIAIS E PESSOAL | F24: UNID | G24: COEF. | H24: PRECO UNITÁRIO (R$) | I24: TOTAL (R$)
B27: COMP. SINAPI | C27: SINAPI | D27: 88316 | E27: =IF(B27="COMP. SINAPI",VLOOKUP(D27,'COMP SINAPI'!G:K,2,0),IF(B27="INS. SINAPI",VLOOKUP(D27,'INS SINAPI'!A:E,2,0),IF(B27="INS. ORSE",VLOOKUP(D27,'INS. ORSE'!A:D,2,0),IF(B27="COMP. ORSE",VLOOKUP(D27,'COMP. ORSE'!A:D,2,0))))) -> SERVENTE COM ENCARGOS COMPLEMENTARES | F27: =IF(B27="COMP. SINAPI",VLOOKUP(D27,'COMP SINAPI'!G:K,3,0),IF(B27="INS. SINAPI",VLOOKUP(D27,'INS SINAPI'!A:E,3,0),IF(B27="INS. ORSE",VLOOKUP(D27,'INS. ORSE'!A:D,3,0),IF(B27="COMP. ORSE",VLOOKUP(D27,'COMP. ORSE'!A:D,3,0))))) -> H | G27: 12 | H27: =IF(B27="COMP. SINAPI",VLOOKUP(D27,'COMP SINAPI'!G:K,5,0),IF(B27="INS. SINAPI",VLOOKUP(D27,'INS SINAPI'!A:E,5,0),IF(B27="INS. ORSE",VLOOKUP(D27,'INS. ORSE'!A:D,4,0),IF(B27="COMP. ORSE",VLOOKUP(D27,'COMP. ORSE'!A:D,4,0))))) -> 21,28 | I27: =TRUNC(G27*H27,2) -> 255.36
B28: INS. ORSE | C28: ORSE | D28: 10434 | E28: =IF(B28="COMP. SINAPI",VLOOKUP(D28,'COMP SINAPI'!G:K,2,0),IF(B28="INS. SINAPI",VLOOKUP(D28,'INS SINAPI'!A:E,2,0),IF(B28="INS. ORSE",VLOOKUP(D28,'INS. ORSE'!A:D,2,0),IF(B28="COMP. ORSE",VLOOKUP(D28,'COMP. ORSE'!A:D,2,0))))) -> CAMINHÃO CARROCERIA DE MADEIRA 9 T - FONTE:DNIT | F28: =IF(B28="COMP. SINAPI",VLOOKUP(D28,'COMP SINAPI'!G:K,3,0),IF(B28="INS. SINAPI",VLOOKUP(D28,'INS SINAPI'!A:E,3,0),IF(B28="INS. ORSE",VLOOKUP(D28,'INS. ORSE'!A:D,3,0),IF(B28="COMP. ORSE",VLOOKUP(D28,'COMP. ORSE'!A:D,3,0))))) -> H | G28: 6 | H28: =IF(B28="COMP. SINAPI",VLOOKUP(D28,'COMP SINAPI'!G:K,5,0),IF(B28="INS. SINAPI",VLOOKUP(D28,'INS SINAPI'!A:E,5,0),IF(B28="INS. ORSE",VLOOKUP(D28,'INS. ORSE'!A:D,4,0),IF(B28="COMP. ORSE",VLOOKUP(D28,'COMP. ORSE'!A:D,4,0))))) -> 96.04 | I28: =TRUNC(G28*H28,2) -> 576.24
B29: INS. ORSE | C29: ORSE | D29: 5896 | E29: =IF(B29="COMP. SINAPI",VLOOKUP(D29,'COMP SINAPI'!G:K,2,0),IF(B29="INS. SINAPI",VLOOKUP(D29,'INS SINAPI'!A:E,2,0),IF(B29="INS. ORSE",VLOOKUP(D29,'INS. ORSE'!A:D,2,0),IF(B29="COMP. ORSE",VLOOKUP(D29,'COMP. ORSE'!A:D,2,0))))) -> VEÍCULO TIPO SEDAN OU PICK-UP CAPACIDADE 0,6 TON | F29: =IF(B29="COMP. SINAPI",VLOOKUP(D29,'COMP SINAPI'!G:K,3,0),IF(B29="INS. SINAPI",VLOOKUP(D29,'INS SINAPI'!A:E,3,0),IF(B29="INS. ORSE",VLOOKUP(D29,'INS. ORSE'!A:D,3,0),IF(B29="COMP. ORSE",VLOOKUP(D29,'COMP. ORSE'!A:D,3,0))))) -> H | G29: 3 | H29: =IF(B29="COMP. SINAPI",VLOOKUP(D29,'COMP SINAPI'!G:K,5,0),IF(B29="INS. SINAPI",VLOOKUP(D29,'INS SINAPI'!A:E,5,0),IF(B29="INS. ORSE",VLOOKUP(D29,'INS. ORSE'!A:D,4,0),IF(B29="COMP. ORSE",VLOOKUP(D29,'COMP. ORSE'!A:D,4,0))))) -> 8.33 | I29: =TRUNC(G29*H29,2) -> 24.99
F30: Sub total: | I30: =SUM(I27:I29) -> 856.59
G31: BDI | H31: =BDI!$D$27 -> 0.2364 | I31: =TRUNC(I30*H31,2) -> 202.49
F32: =B24 -> CPU-02 | G32: PREÇO UNITÁRIO TOTAL: | I32: =TRUNC(I30+I31,2) -> 1059.08
B34: CPU-03 | C34: FONTE | D34: 74209/001 | E34: =UPPER("Fornecimento, montagem e conservação de placa de identificação de obra padrão (3m x 2m).") -> FORNECIMENTO, MONTAGEM E CONSERVAÇÃO DE PLACA DE IDENTIFICAÇÃO DE OBRA PADRÃO (3M X 2M). | F34: M² | G34: COEF. | H34: PRECO UNITÁRIO (R$) | I34: TOTAL (R$)
B37: COMP. SINAPI | C37: SINAPI | D37: 88262 | E37: =IF(B37="COMP. SINAPI",VLOOKUP(D37,'COMP SINAPI'!G:K,2,0),IF(B37="INS. SINAPI",VLOOKUP(D37,'INS SINAPI'!A:E,2,0),IF(B37="INS. ORSE",VLOOKUP(D37,'INS. ORSE'!A:D,2,0),IF(B37="COMP. ORSE",VLOOKUP(D37,'COMP. ORSE'!A:D,2,0))))) -> CARPINTEIRO DE FORMAS COM ENCARGOS COMPLEMENTARES | F37: =IF(B37="COMP. SINAPI",VLOOKUP(D37,'COMP SINAPI'!G:K,3,0),IF(B37="INS. SINAPI",VLOOKUP(D37,'INS SINAPI'!A:E,3,0),IF(B37="INS. ORSE",VLOOKUP(D37,'INS. ORSE'!A:D,3,0),IF(B37="COMP. ORSE",VLOOKUP(D37,'COMP. ORSE'!A:D,3,0))))) -> H | G37: 1 | H37: =IF(B37="COMP. SINAPI",VLOOKUP(D37,'COMP SINAPI'!G:K,5,0),IF(B37="INS. SINAPI",VLOOKUP(D37,'INS SINAPI'!A:E,5,0),IF(B37="INS. ORSE",VLOOKUP(D37,'INS. ORSE'!A:D,4,0),IF(B37="COMP. ORSE",VLOOKUP(D37,'COMP. ORSE'!A:D,4,0))))) -> 26,13 | I37: =TRUNC(G37*H37,2) -> 26.13
B38: COMP. SINAPI | C38: SINAPI | D38: 88316 | E38: =IF(B38="COMP. SINAPI",VLOOKUP(D38,'COMP SINAPI'!G:K,2,0),IF(B38="INS. SINAPI",VLOOKUP(D38,'INS SINAPI'!A:E,2,0),IF(B38="INS. ORSE",VLOOKUP(D38,'INS. ORSE'!A:D,2,0),IF(B38="COMP. ORSE",VLOOKUP(D38,'COMP. ORSE'!A:D,2,0))))) -> SERVENTE COM ENCARGOS COMPLEMENTARES | F38: =IF(B38="COMP. SINAPI",VLOOKUP(D38,'COMP SINAPI'!G:K,3,0),IF(B38="INS. SINAPI",VLOOKUP(D38,'INS SINAPI'!A:E,3,0),IF(B38="INS. ORSE",VLOOKUP(D38,'INS. ORSE'!A:D,3,0),IF(B38="COMP. ORSE",VLOOKUP(D38,'COMP. ORSE'!A:D,3,0))))) -> H | G38: 2 | H38: =IF(B38="COMP. SINAPI",VLOOKUP(D38,'COMP SINAPI'!G:K,5,0),IF(B38="INS. SINAPI",VLOOKUP(D38,'INS SINAPI'!A:E,5,0),IF(B38="INS. ORSE",VLOOKUP(D38,'INS. ORSE'!A:D,4,0),IF(B38="COMP. ORSE",VLOOKUP(D38,'COMP. ORSE'!A:D,4,0))))) -> 21,28 | I38: =TRUNC(G38*H38,2) -> 42.56
B39: COMP. SINAPI | C39: SINAPI | D39: 94962 | E39: =IF(B39="COMP. SINAPI",VLOOKUP(D39,'COMP SINAPI'!G:K,2,0),IF(B39="INS. SINAPI",VLOOKUP(D39,'INS SINAPI'!A:E,2,0),IF(B39="INS. ORSE",VLOOKUP(D39,'INS. ORSE'!A:D,2,0),IF(B39="COMP. ORSE",VLOOKUP(D39,'COMP. ORSE'!A:D,2,0))))) -> CONCRETO MAGRO PARA LASTRO, TRAÇO 1:4,5:4,5 (EM MASSA SECA DE CIMENTO/ AREIA MÉDIA/ BRITA 1) - PREPARO MECÂNICO COM BETONEIRA 400 L. AF_05/2021 | F39: =IF(B39="COMP. SINAPI",VLOOKUP(D39,'COMP SINAPI'!G:K,3,0),IF(B39="INS. SINAPI",VLOOKUP(D39,'INS SINAPI'!A:E,3,0),IF(B39="INS. ORSE",VLOOKUP(D39,'INS. ORSE'!A:D,3,0),IF(B39="COMP. ORSE",VLOOKUP(D39,'COMP. ORSE'!A:D,3,0))))) -> M3 | G39: 0.01 | H39: =IF(B39="COMP. SINAPI",VLOOKUP(D39,'COMP SINAPI'!G:K,5,0),IF(B39="INS. SINAPI",VLOOKUP(D39,'INS SINAPI'!A:E,5,0),IF(B39="INS. ORSE",VLOOKUP(D39,'INS. ORSE'!A:D,4,0),IF(B39="COMP. ORSE",VLOOKUP(D39,'COMP. ORSE'!A:D,4,0))))) -> 406,90 | I39: =TRUNC(G39*H39,2) -> 4.06
B40: INS. SINAPI | C40: SINAPI | D40: 4417 | E40: =IF(B40="COMP. SINAPI",VLOOKUP(D40,'COMP SINAPI'!G:K,2,0),IF(B40="INS. SINAPI",VLOOKUP(D40,'INS SINAPI'!A:E,2,0),IF(B40="INS. ORSE",VLOOKUP(D40,'INS. ORSE'!A:D,2,0),IF(B40="COMP. ORSE",VLOOKUP(D40,'COMP. ORSE'!A:D,2,0))))) -> SARRAFO NAO APARELHADO *2,5 X 7* CM, EM MACARANDUBA/MASSARANDUBA, ANGELIM, PEROBA-ROSA OU EQUIVALENTE DA REGIAO - BRUTA | F40: =IF(B40="COMP. SINAPI",VLOOKUP(D40,'COMP SINAPI'!G:K,3,0),IF(B40="INS. SINAPI",VLOOKUP(D40,'INS SINAPI'!A:E,3,0),IF(B40="INS. ORSE",VLOOKUP(D40,'INS. ORSE'!A:D,3,0),IF(B40="COMP. ORSE",VLOOKUP(D40,'COMP. ORSE'!A:D,3,0))))) -> M | G40: 1 | H40: =IF(B40="COMP. SINAPI",VLOOKUP(D40,'COMP SINAPI'!G:K,5,0),IF(B40="INS. SINAPI",VLOOKUP(D40,'INS SINAPI'!A:E,5,0),IF(B40="INS. ORSE",VLOOKUP(D40,'INS. ORSE'!A:D,4,0),IF(B40="COMP. ORSE",VLOOKUP(D40,'COMP. ORSE'!A:D,4,0))))) -> 8,43 | I40: =TRUNC(G40*H40,2) -> 8.43
B41: INS. SINAPI | C41: SINAPI | D41: 4491 | E41: =IF(B41="COMP. SINAPI",VLOOKUP(D41,'COMP SINAPI'!G:K,2,0),IF(B41="INS. SINAPI",VLOOKUP(D41,'INS SINAPI'!A:E,2,0),IF(B41="INS. ORSE",VLOOKUP(D41,'INS. ORSE'!A:D,2,0),IF(B41="COMP. ORSE",VLOOKUP(D41,'COMP. ORSE'!A:D,2,0))))) -> PONTALETE *7,5 X 7,5* CM EM PINUS, MISTA OU EQUIVALENTE DA REGIAO - BRUTA | F41: =IF(B41="COMP. SINAPI",VLOOKUP(D41,'COMP SINAPI'!G:K,3,0),IF(B41="INS. SINAPI",VLOOKUP(D41,'INS SINAPI'!A:E,3,0),IF(B41="INS. ORSE",VLOOKUP(D41,'INS. ORSE'!A:D,3,0),IF(B41="COMP. ORSE",VLOOKUP(D41,'COMP. ORSE'!A:D,3,0))))) -> M | G41: 4 | H41: =IF(B41="COMP. SINAPI",VLOOKUP(D41,'COMP SINAPI'!G:K,5,0),IF(B41="INS. SINAPI",VLOOKUP(D41,'INS SINAPI'!A:E,5,0),IF(B41="INS. ORSE",VLOOKUP(D41,'INS. ORSE'!A:D,4,0),IF(B41="COMP. ORSE",VLOOKUP(D41,'COMP. ORSE'!A:D,4,0))))) -> 10,38 | I41: 41.52
B42: INS. SINAPI | C42: SINAPI | D42: 4813 | E42: =IF(B42="COMP. SINAPI",VLOOKUP(D42,'COMP SINAPI'!G:K,2,0),IF(B42="INS. SINAPI",VLOOKUP(D42,'INS SINAPI'!A:E,2,0),IF(B42="INS. ORSE",VLOOKUP(D42,'INS. ORSE'!A:D,2,0),IF(B42="COMP. ORSE",VLOOKUP(D42,'COMP. ORSE'!A:D,2,0))))) -> PLACA DE OBRA (PARA CONSTRUCAO CIVIL) EM CHAPA GALVANIZADA *N. 22*, ADESIVADA, DE *2,4 X 1,2* M (SEM POSTES PARA FIXACAO) | F42: =IF(B42="COMP. SINAPI",VLOOKUP(D42,'COMP SINAPI'!G:K,3,0),IF(B42="INS. SINAPI",VLOOKUP(D42,'INS SINAPI'!A:E,3,0),IF(B42="INS. ORSE",VLOOKUP(D42,'INS. ORSE'!A:D,3,0),IF(B42="COMP. ORSE",VLOOKUP(D42,'COMP. ORSE'!A:D,3,0))))) -> M2 | G42: 1 | H42: =IF(B42="COMP. SINAPI",VLOOKUP(D42,'COMP SINAPI'!G:K,5,0),IF(B42="INS. SINAPI",VLOOKUP(D42,'INS SINAPI'!A:E,5,0),IF(B42="INS. ORSE",VLOOKUP(D42,'INS. ORSE'!A:D,4,0),IF(B42="COMP. ORSE",VLOOKUP(D42,'COMP. ORSE'!A:D,4,0))))) -> 250,00 | I42: 250
B43: INS. SINAPI | C43: SINAPI | D43: 5075 | E43: =IF(B43="COMP. SINAPI",VLOOKUP(D43,'COMP SINAPI'!G:K,2,0),IF(B43="INS. SINAPI",VLOOKUP(D43,'INS SINAPI'!A:E,2,0),IF(B43="INS. ORSE",VLOOKUP(D43,'INS. ORSE'!A:D,2,0),IF(B43="COMP. ORSE",VLOOKUP(D43,'COMP. ORSE'!A:D,2,0))))) -> PREGO DE ACO POLIDO COM CABECA 18 X 30 (2 3/4 X 10) | F43: =IF(B43="COMP. SINAPI",VLOOKUP(D43,'COMP SINAPI'!G:K,3,0),IF(B43="INS. SINAPI",VLOOKUP(D43,'INS SINAPI'!A:E,3,0),IF(B43="INS. ORSE",VLOOKUP(D43,'INS. ORSE'!A:D,3,0),IF(B43="COMP. ORSE",VLOOKUP(D43,'COMP. ORSE'!A:D,3,0))))) -> KG | G43: 0.11 | H43: =IF(B43="COMP. SINAPI",VLOOKUP(D43,'COMP SINAPI'!G:K,5,0),IF(B43="INS. SINAPI",VLOOKUP(D43,'INS SINAPI'!A:E,5,0),IF(B43="INS. ORSE",VLOOKUP(D43,'INS. ORSE'!A:D,4,0),IF(B43="COMP. ORSE",VLOOKUP(D43,'COMP. ORSE'!A:D,4,0))))) -> 18,82 | I43: 2.07
F44: Sub total: | I44: =SUM(I37:I43) -> 374.77
G45: BDI | H45: =BDI!$D$27 -> 0.2364 | I45: =TRUNC(I44*H45,2) -> 88.59
F46: =B34 -> CPU-03 | G46: PREÇO UNITÁRIO TOTAL: | I46: =TRUNC(I44+I45,2) -> 463.36
B48: CPU-04 | C48: FONTE | D48: Codevasf | E48: =UPPER("Fornecimento de Veículo 4x4 à fiscalização com seguro, taxas de licenciamento, revisão periódica, manutenção, combustível e pneus.") -> FORNECIMENTO DE VEÍCULO 4X4 À FISCALIZAÇÃO COM SEGURO, TAXAS DE LICENCIAMENTO, REVISÃO PERIÓDICA, MANUTENÇÃO, COMBUSTÍVEL E PNEUS. | F48: MÊS | G48: COEF. | H48: PRECO UNITÁRIO (R$) | I48: TOTAL (R$)
B51: COMP. SINAPI | C51: SINAPI | D51: 92138 | E51: =IF(B51="COMP. SINAPI",VLOOKUP(D51,'COMP SINAPI'!G:K,2,0),IF(B51="INS. SINAPI",VLOOKUP(D51,'INS SINAPI'!A:E,2,0),IF(B51="INS. ORSE",VLOOKUP(D51,'INS. ORSE'!A:D,2,0),IF(B51="COMP. ORSE",VLOOKUP(D51,'COMP. ORSE'!A:D,2,0))))) -> CAMINHONETE COM MOTOR A DIESEL, POTÊNCIA 180 CV, CABINE DUPLA, 4X4 - CHP DIURNO. AF_11/2015 | F51: =IF(B51="COMP. SINAPI",VLOOKUP(D51,'COMP SINAPI'!G:K,3,0),IF(B51="INS. SINAPI",VLOOKUP(D51,'INS SINAPI'!A:E,3,0),IF(B51="INS. ORSE",VLOOKUP(D51,'INS. ORSE'!A:D,3,0),IF(B51="COMP. ORSE",VLOOKUP(D51,'COMP. ORSE'!A:D,3,0))))) -> CHP | G51: 120 | H51: =IF(B51="COMP. SINAPI",VLOOKUP(D51,'COMP SINAPI'!G:K,5,0),IF(B51="INS. SINAPI",VLOOKUP(D51,'INS SINAPI'!A:E,5,0),IF(B51="INS. ORSE",VLOOKUP(D51,'INS. ORSE'!A:D,4,0),IF(B51="COMP. ORSE",VLOOKUP(D51,'COMP. ORSE'!A:D,4,0))))) -> 93,55 | I51: =TRUNC(G51*H51,2) -> 11226
F52: Sub total: | I52: =SUM(I51:I51) -> 11226
G53: BDI | H53: =BDI!$D$27 -> 0.2364 | I53: =TRUNC(I52*H53,2) -> 2653.82
F54: =B48 -> CPU-04 | G54: PREÇO UNITÁRIO TOTAL: | I54: =TRUNC(I52+I53,2) -> 13879.82
B56: CPU-06 | C56: FONTE | D56: Codevasf | E56: =UPPER("Administração local da obra") -> ADMINISTRAÇÃO LOCAL DA OBRA | F56: UNID | G56: COEF. | H56: PRECO UNITÁRIO (R$) | I56: TOTAL (R$)
B59: COMP. SINAPI | C59: SINAPI | D59: 90778 | E59: =IF(B59="COMP. SINAPI",VLOOKUP(D59,'COMP SINAPI'!G:K,2,0),IF(B59="INS. SINAPI",VLOOKUP(D59,'INS SINAPI'!A:E,2,0),IF(B59="INS. ORSE",VLOOKUP(D59,'INS. ORSE'!A:D,2,0),IF(B59="COMP. ORSE",VLOOKUP(D59,'COMP. ORSE'!A:D,2,0))))) -> ENGENHEIRO CIVIL DE OBRA PLENO COM ENCARGOS COMPLEMENTARES | F59: =IF(B59="COMP. SINAPI",VLOOKUP(D59,'COMP SINAPI'!G:K,3,0),IF(B59="INS. SINAPI",VLOOKUP(D59,'INS SINAPI'!A:E,3,0),IF(B59="INS. ORSE",VLOOKUP(D59,'INS. ORSE'!A:D,3,0),IF(B59="COMP. ORSE",VLOOKUP(D59,'COMP. ORSE'!A:D,3,0))))) -> H | G59: 840 | H59: =IF(B59="COMP. SINAPI",VLOOKUP(D59,'COMP SINAPI'!G:K,5,0),IF(B59="INS. SINAPI",VLOOKUP(D59,'INS SINAPI'!A:E,5,0),IF(B59="INS. ORSE",VLOOKUP(D59,'INS. ORSE'!A:D,4,0),IF(B59="COMP. ORSE",VLOOKUP(D59,'COMP. ORSE'!A:D,4,0))))) -> 128,96 | I59: =TRUNC(G59*H59,2) -> 108326.4
B60: INS. SINAPI | C60: SINAPI | D60: 43486 | E60: =IF(B60="COMP. SINAPI",VLOOKUP(D60,'COMP SINAPI'!G:K,2,0),IF(B60="INS. SINAPI",VLOOKUP(D60,'INS SINAPI'!A:E,2,0),IF(B60="INS. ORSE",VLOOKUP(D60,'INS. ORSE'!A:D,2,0),IF(B60="COMP. ORSE",VLOOKUP(D60,'COMP. ORSE'!A:D,2,0))))) -> EPI - FAMILIA ENGENHEIRO CIVIL - HORISTA (ENCARGOS COMPLEMENTARES - COLETADO CAIXA) | F60: =IF(B60="COMP. SINAPI",VLOOKUP(D60,'COMP SINAPI'!G:K,3,0),IF(B60="INS. SINAPI",VLOOKUP(D60,'INS SINAPI'!A:E,3,0),IF(B60="INS. ORSE",VLOOKUP(D60,'INS. ORSE'!A:D,3,0),IF(B60="COMP. ORSE",VLOOKUP(D60,'COMP. ORSE'!A:D,3,0))))) -> H | G60: 840 | H60: =IF(B60="COMP. SINAPI",VLOOKUP(D60,'COMP SINAPI'!G:K,5,0),IF(B60="INS. SINAPI",VLOOKUP(D60,'INS SINAPI'!A:E,5,0),IF(B60="INS. ORSE",VLOOKUP(D60,'INS. ORSE'!A:D,4,0),IF(B60="COMP. ORSE",VLOOKUP(D60,'COMP. ORSE'!A:D,4,0))))) -> 0,71 | I60: 596.4
B61: INS. ORSE | C61: ORSE | D61: 5896 | E61: =IF(B61="COMP. SINAPI",VLOOKUP(D61,'COMP SINAPI'!G:K,2,0),IF(B61="INS. SINAPI",VLOOKUP(D61,'INS SINAPI'!A:E,2,0),IF(B61="INS. ORSE",VLOOKUP(D61,'INS. ORSE'!A:D,2,0),IF(B61="COMP. ORSE",VLOOKUP(D61,'COMP. ORSE'!A:D,2,0))))) -> VEÍCULO TIPO SEDAN OU PICK-UP CAPACIDADE 0,6 TON | F61: =IF(B61="COMP. SINAPI",VLOOKUP(D61,'COMP SINAPI'!G:K,3,0),IF(B61="INS. SINAPI",VLOOKUP(D61,'INS SINAPI'!A:E,3,0),IF(B61="INS. ORSE",VLOOKUP(D61,'INS. ORSE'!A:D,3,0),IF(B61="COMP. ORSE",VLOOKUP(D61,'COMP. ORSE'!A:D,3,0))))) -> H | G61: 1800 | H61: =IF(B61="COMP. SINAPI",VLOOKUP(D61,'COMP SINAPI'!G:K,5,0),IF(B61="INS. SINAPI",VLOOKUP(D61,'INS SINAPI'!A:E,5,0),IF(B61="INS. ORSE",VLOOKUP(D61,'INS. ORSE'!A:D,4,0),IF(B61="COMP. ORSE",VLOOKUP(D61,'COMP. ORSE'!A:D,4,0))))) -> 8.33 | I61: 14994
B62: DNIT | C62: SICRO | D62: B8959 | E62: ESCRITÓRIO - despesas gerais | F62: OCUP X MÊS | G62: =24*3 -> 72 | H62: ='DNIT CONSULT'!F22 -> 131.32 | I62: 9455.04
B63: DNIT | C63: SICRO | D63: B8953 | E63: ESCRITÓRIO - mobiliário | F63: OCUP X MÊS | G63: 24 | H63: ='DNIT CONSULT'!F16 -> 510.96 | I63: 12263.04
B64: COMP. SINAPI | C64: SINAPI | D64: 90772 | E64: =IF(B64="COMP. SINAPI",VLOOKUP(D64,'COMP SINAPI'!G:K,2,0),IF(B64="INS. SINAPI",VLOOKUP(D64,'INS SINAPI'!A:E,2,0),IF(B64="INS. ORSE",VLOOKUP(D64,'INS. ORSE'!A:D,2,0),IF(B64="COMP. ORSE",VLOOKUP(D64,'COMP. ORSE'!A:D,2,0))))) -> AUXILIAR DE ESCRITORIO COM ENCARGOS COMPLEMENTARES | F64: =IF(B64="COMP. SINAPI",VLOOKUP(D64,'COMP SINAPI'!G:K,3,0),IF(B64="INS. SINAPI",VLOOKUP(D64,'INS SINAPI'!A:E,3,0),IF(B64="INS. ORSE",VLOOKUP(D64,'INS. ORSE'!A:D,3,0),IF(B64="COMP. ORSE",VLOOKUP(D64,'COMP. ORSE'!A:D,3,0))))) -> H | G64: =G59 -> 840 | H64: =IF(B64="COMP. SINAPI",VLOOKUP(D64,'COMP SINAPI'!G:K,5,0),IF(B64="INS. SINAPI",VLOOKUP(D64,'INS SINAPI'!A:E,5,0),IF(B64="INS. ORSE",VLOOKUP(D64,'INS. ORSE'!A:D,4,0),IF(B64="COMP. ORSE",VLOOKUP(D64,'COMP. ORSE'!A:D,4,0))))) -> 17,95 | I64: 15078
B65: INS. SICRO | C65: SICRO | D65: P9836 | E65: GEÓLOGO | F65: H | G65: 840 | H65: ='INS SICRO'!F31 -> 116.12 | I65: =TRUNC(G65*H65,2) -> 97540.8
F66: Sub total: | I66: =SUM(I59:I65) -> 258253.68
G67: BDI | H67: =BDI!$D$27 -> 0.2364 | I67: =TRUNC(I66*H67,2) -> 61051.16
F68: =B56 -> CPU-06 | G68: PREÇO UNITÁRIO TOTAL: | I68: =TRUNC(I66+I67,2) -> 319304.84
B70: CPU-07 | C70: FONTE | D70: Codevasf | E70: =UPPER("Obtenção e registro em Cartório de Registro de Imóveis ou Cartório de Títulos e documentos do Termo de Cessão de Uso") -> OBTENÇÃO E REGISTRO EM CARTÓRIO DE REGISTRO DE IMÓVEIS OU CARTÓRIO DE TÍTULOS E DOCUMENTOS DO TERMO DE CESSÃO DE USO | F70: UNID | G70: COEF. | H70: PRECO UNITÁRIO (R$) | I70: TOTAL (R$)
B73: COMP. SINAPI | C73: SINAPI | D73: 88255 | E73: =IF(B73="COMP. SINAPI",VLOOKUP(D73,'COMP SINAPI'!G:K,2,0),IF(B73="INS. SINAPI",VLOOKUP(D73,'INS SINAPI'!A:E,2,0),IF(B73="INS. ORSE",VLOOKUP(D73,'INS. ORSE'!A:D,2,0),IF(B73="COMP. ORSE",VLOOKUP(D73,'COMP. ORSE'!A:D,2,0))))) -> AUXILIAR TÉCNICO DE ENGENHARIA COM ENCARGOS COMPLEMENTARES | F73: =IF(B73="COMP. SINAPI",VLOOKUP(D73,'COMP SINAPI'!G:K,3,0),IF(B73="INS. SINAPI",VLOOKUP(D73,'INS SINAPI'!A:E,3,0),IF(B73="INS. ORSE",VLOOKUP(D73,'INS. ORSE'!A:D,3,0),IF(B73="COMP. ORSE",VLOOKUP(D73,'COMP. ORSE'!A:D,3,0))))) -> H | G73: 4 | H73: =IF(B73="COMP. SINAPI",VLOOKUP(D73,'COMP SINAPI'!G:K,5,0),IF(B73="INS. SINAPI",VLOOKUP(D73,'INS SINAPI'!A:E,5,0),IF(B73="INS. ORSE",VLOOKUP(D73,'INS. ORSE'!A:D,4,0),IF(B73="COMP. ORSE",VLOOKUP(D73,'COMP. ORSE'!A:D,4,0))))) -> 35,62 | I73: =TRUNC(G73*H73,2) -> 142.48
B74: INS. ORSE | C74: ORSE | D74: 4415 | E74: =IF(B74="COMP. SINAPI",VLOOKUP(D74,'COMP SINAPI'!G:K,2,0),IF(B74="INS. SINAPI",VLOOKUP(D74,'INS SINAPI'!A:E,2,0),IF(B74="INS. ORSE",VLOOKUP(D74,'INS. ORSE'!A:D,2,0),IF(B74="COMP. ORSE",VLOOKUP(D74,'COMP. ORSE'!A:D,2,0))))) -> VEÍCULO LEVE - VOLKSWAGEN:GOL OU SIMILAR | F74: =IF(B74="COMP. SINAPI",VLOOKUP(D74,'COMP SINAPI'!G:K,3,0),IF(B74="INS. SINAPI",VLOOKUP(D74,'INS SINAPI'!A:E,3,0),IF(B74="INS. ORSE",VLOOKUP(D74,'INS. ORSE'!A:D,3,0),IF(B74="COMP. ORSE",VLOOKUP(D74,'COMP. ORSE'!A:D,3,0))))) -> H | G74: 4 | H74: =IF(B74="COMP. SINAPI",VLOOKUP(D74,'COMP SINAPI'!G:K,5,0),IF(B74="INS. SINAPI",VLOOKUP(D74,'INS SINAPI'!A:E,5,0),IF(B74="INS. ORSE",VLOOKUP(D74,'INS. ORSE'!A:D,4,0),IF(B74="COMP. ORSE",VLOOKUP(D74,'COMP. ORSE'!A:D,4,0))))) -> 13.18 | I74: =TRUNC(G74*H74,2) -> 52.72
B75: INS. SINAPI | C75: SINAPI | D75: 4222 | E75: =IF(B75="COMP. SINAPI",VLOOKUP(D75,'COMP SINAPI'!G:K,2,0),IF(B75="INS. SINAPI",VLOOKUP(D75,'INS SINAPI'!A:E,2,0),IF(B75="INS. ORSE",VLOOKUP(D75,'INS. ORSE'!A:D,2,0),IF(B75="COMP. ORSE",VLOOKUP(D75,'COMP. ORSE'!A:D,2,0))))) -> GASOLINA COMUM | F75: =IF(B75="COMP. SINAPI",VLOOKUP(D75,'COMP SINAPI'!G:K,3,0),IF(B75="INS. SINAPI",VLOOKUP(D75,'INS SINAPI'!A:E,3,0),IF(B75="INS. ORSE",VLOOKUP(D75,'INS. ORSE'!A:D,3,0),IF(B75="COMP. ORSE",VLOOKUP(D75,'COMP. ORSE'!A:D,3,0))))) -> L | G75: 5 | H75: =IF(B75="COMP. SINAPI",VLOOKUP(D75,'COMP SINAPI'!G:K,5,0),IF(B75="INS. SINAPI",VLOOKUP(D75,'INS SINAPI'!A:E,5,0),IF(B75="INS. ORSE",VLOOKUP(D75,'INS. ORSE'!A:D,4,0),IF(B75="COMP. ORSE",VLOOKUP(D75,'COMP. ORSE'!A:D,4,0))))) -> 5,83 | I75: =TRUNC(G75*H75,2) -> 29.15
C76: Tabela TJPE | D76: COT. 01 | E76: Registro em Cartório | F76: Und | G76: 1 | H76: 207.39 | I76: =TRUNC(G76*H76,2) -> 207.39
C77: Tabela TJPE | D77: COT. 02 | E77: Reconhecimento de firma em cartório | F77: Und | G77: 1 | H77: 5.04 | I77: 5.04
F78: Sub total: | I78: =SUM(I73:I77) -> 436.78
G79: BDI | H79: =BDI!$D$27 -> 0.2364 | I79: =TRUNC(I78*H79,2) -> 103.25
F80: =B70 -> CPU-07 | G80: PREÇO UNITÁRIO TOTAL: | I80: =TRUNC(I78+I79,2) -> 540.03
B82: CPU-08 | C82: FONTE | D82: Codevasf | E82: =UPPER("Montagem, instalação e desinstalação de sonda") -> MONTAGEM, INSTALAÇÃO E DESINSTALAÇÃO DE SONDA | F82: UNID | G82: COEF. | H82: PRECO UNITÁRIO (R$) | I82: TOTAL (R$)
B85: INS. SINAPI | C85: SINAPI | D85: 4227 | E85: Lubrificante | F85: l | G85: 0.5 | H85: =IF(B85="COMP. SINAPI",VLOOKUP(D85,'COMP SINAPI'!G:K,5,0),IF(B85="INS. SINAPI",VLOOKUP(D85,'INS SINAPI'!A:E,5,0),IF(B85="INS. ORSE",VLOOKUP(D85,'INS. ORSE'!A:D,4,0),IF(B85="COMP. ORSE",VLOOKUP(D85,'COMP. ORSE'!A:D,4,0))))) -> 37,50 | I85: =TRUNC(G85*H85,2) -> 18.75
B86: INS. SINAPI | C86: SINAPI | D86: 4221 | E86: Óleo diesel | F86: l | G86: 15 | H86: =IF(B86="COMP. SINAPI",VLOOKUP(D86,'COMP SINAPI'!G:K,5,0),IF(B86="INS. SINAPI",VLOOKUP(D86,'INS SINAPI'!A:E,5,0),IF(B86="INS. ORSE",VLOOKUP(D86,'INS. ORSE'!A:D,4,0),IF(B86="COMP. ORSE",VLOOKUP(D86,'COMP. ORSE'!A:D,4,0))))) -> 6,18 | I86: 92.7
B87: COMP. SINAPI | C87: SINAPI | D87: 88316 | E87: SERVENTE COM ENCARGOS COMPLEMENTARES | F87: h | G87: 0.2 | H87: =IF(B87="COMP. SINAPI",VLOOKUP(D87,'COMP SINAPI'!G:K,5,0),IF(B87="INS. SINAPI",VLOOKUP(D87,'INS SINAPI'!A:E,5,0),IF(B87="INS. ORSE",VLOOKUP(D87,'INS. ORSE'!A:D,4,0),IF(B87="COMP. ORSE",VLOOKUP(D87,'COMP. ORSE'!A:D,4,0))))) -> 21,28 | I87: 4.25
B88: COMP. SINAPI | C88: SINAPI | D88: 90776 | E88: Encarregado | F88: h | G88: 1 | H88: =IF(B88="COMP. SINAPI",VLOOKUP(D88,'COMP SINAPI'!G:K,5,0),IF(B88="INS. SINAPI",VLOOKUP(D88,'INS SINAPI'!A:E,5,0),IF(B88="INS. ORSE",VLOOKUP(D88,'INS. ORSE'!A:D,4,0),IF(B88="COMP. ORSE",VLOOKUP(D88,'COMP. ORSE'!A:D,4,0))))) -> 38,89 | I88: 38.89
B89: COMP. SINAPI | C89: SINAPI | D89: 88282 | E89: Motorista | F89: h | G89: 2 | H89: =IF(B89="COMP. SINAPI",VLOOKUP(D89,'COMP SINAPI'!G:K,5,0),IF(B89="INS. SINAPI",VLOOKUP(D89,'INS SINAPI'!A:E,5,0),IF(B89="INS. ORSE",VLOOKUP(D89,'INS. ORSE'!A:D,4,0),IF(B89="COMP. ORSE",VLOOKUP(D89,'COMP. ORSE'!A:D,4,0))))) -> 24,99 | I89: 49.98
B90: COMP. SINAPI | C90: SINAPI | D90: 5953 | E90: Perfuratriz | F90: h | G90: 3.5 | H90: =IF(B90="COMP. SINAPI",VLOOKUP(D90,'COMP SINAPI'!G:K,5,0),IF(B90="INS. SINAPI",VLOOKUP(D90,'INS SINAPI'!A:E,5,0),IF(B90="INS. ORSE",VLOOKUP(D90,'INS. ORSE'!A:D,4,0),IF(B90="COMP. ORSE",VLOOKUP(D90,'COMP. ORSE'!A:D,4,0))))) -> 61,21 | I90: 214.23
F91: Sub total: | I91: =SUM(I85:I90) -> 418.8
G92: BDI | H92: =BDI!$D$27 -> 0.2364 | I92: =TRUNC(I91*H92,2) -> 99
F93: =B82 -> CPU-08 | G93: PREÇO UNITÁRIO TOTAL: | I93: =TRUNC(I91+I92,2) -> 517.8
B95: CPU-09 | C95: FONTE | D95: 73859/002 | E95: =UPPER("CAPINA E LIMPEZA MANUAL DE TERRENO") -> CAPINA E LIMPEZA MANUAL DE TERRENO | F95: M² | G95: COEF. | H95: PRECO UNITÁRIO (R$) | I95: TOTAL (R$)
B98: COMP. SINAPI | C98: SINAPI | D98: 88316 | E98: =IF(B98="COMP. SINAPI",VLOOKUP(D98,'COMP SINAPI'!G:K,2,0),IF(B98="INS. SINAPI",VLOOKUP(D98,'INS SINAPI'!A:E,2,0),IF(B98="INS. ORSE",VLOOKUP(D98,'INS. ORSE'!A:D,2,0),IF(B98="COMP. ORSE",VLOOKUP(D98,'COMP. ORSE'!A:D,2,0))))) -> SERVENTE COM ENCARGOS COMPLEMENTARES | F98: =IF(B98="COMP. SINAPI",VLOOKUP(D98,'COMP SINAPI'!G:K,3,0),IF(B98="INS. SINAPI",VLOOKUP(D98,'INS SINAPI'!A:E,3,0),IF(B98="INS. ORSE",VLOOKUP(D98,'INS. ORSE'!A:D,3,0),IF(B98="COMP. ORSE",VLOOKUP(D98,'COMP. ORSE'!A:D,3,0))))) -> H | G98: 0.08 | H98: =IF(B98="COMP. SINAPI",VLOOKUP(D98,'COMP SINAPI'!G:K,5,0),IF(B98="INS. SINAPI",VLOOKUP(D98,'INS SINAPI'!A:E,5,0),IF(B98="INS. ORSE",VLOOKUP(D98,'INS. ORSE'!A:D,4,0),IF(B98="COMP. ORSE",VLOOKUP(D98,'COMP. ORSE'!A:D,4,0))))) -> 21,28 | I98: =TRUNC(G98*H98,2) -> 1.7
F99: Sub total: | I99: =SUM(I98:I98) -> 1.7
G100: BDI | H100: =BDI!$D$27 -> 0.2364 | I100: =TRUNC(I99*H100,2) -> 0.4
F101: =B95 -> CPU-09 | G101: PREÇO UNITÁRIO TOTAL: | I101: =TRUNC(I99+I100,2) -> 2.1
B103: CPU-10 | C103: FONTE | D103: Codevasf | E103: =UPPER("Locação, acompanhamento da perfuração, teste de vazão e da instalação do poço, por profissional habilitado") -> LOCAÇÃO, ACOMPANHAMENTO DA PERFURAÇÃO, TESTE DE VAZÃO E DA INSTALAÇÃO DO POÇO, POR PROFISSIONAL HABILITADO | F103: UNID | G103: COEF. | H103: PRECO UNITÁRIO (R$) | I103: TOTAL (R$)
B106: COMP. SINAPI | C106: SINAPI | D106: 88316 | E106: =IF(B106="COMP. SINAPI",VLOOKUP(D106,'COMP SINAPI'!G:K,2,0),IF(B106="INS. SINAPI",VLOOKUP(D106,'INS SINAPI'!A:E,2,0),IF(B106="INS. ORSE",VLOOKUP(D106,'INS. ORSE'!A:D,2,0),IF(B106="COMP. ORSE",VLOOKUP(D106,'COMP. ORSE'!A:D,2,0))))) -> SERVENTE COM ENCARGOS COMPLEMENTARES | F106: =IF(B106="COMP. SINAPI",VLOOKUP(D106,'COMP SINAPI'!G:K,3,0),IF(B106="INS. SINAPI",VLOOKUP(D106,'INS SINAPI'!A:E,3,0),IF(B106="INS. ORSE",VLOOKUP(D106,'INS. ORSE'!A:D,3,0),IF(B106="COMP. ORSE",VLOOKUP(D106,'COMP. ORSE'!A:D,3,0))))) -> H | G106: 4 | H106: =IF(B106="COMP. SINAPI",VLOOKUP(D106,'COMP SINAPI'!G:K,5,0),IF(B106="INS. SINAPI",VLOOKUP(D106,'INS SINAPI'!A:E,5,0),IF(B106="INS. ORSE",VLOOKUP(D106,'INS. ORSE'!A:D,4,0),IF(B106="COMP. ORSE",VLOOKUP(D106,'COMP. ORSE'!A:D,4,0))))) -> 21,28 | I106: =TRUNC(G106*H106,2) -> 85.12
B107: COMP. SINAPI | C107: SINAPI | D107: 92138 | E107: =IF(B107="COMP. SINAPI",VLOOKUP(D107,'COMP SINAPI'!G:K,2,0),IF(B107="INS. SINAPI",VLOOKUP(D107,'INS SINAPI'!A:E,2,0),IF(B107="INS. ORSE",VLOOKUP(D107,'INS. ORSE'!A:D,2,0),IF(B107="COMP. ORSE",VLOOKUP(D107,'COMP. ORSE'!A:D,2,0))))) -> CAMINHONETE COM MOTOR A DIESEL, POTÊNCIA 180 CV, CABINE DUPLA, 4X4 - CHP DIURNO. AF_11/2015 | F107: =IF(B107="COMP. SINAPI",VLOOKUP(D107,'COMP SINAPI'!G:K,3,0),IF(B107="INS. SINAPI",VLOOKUP(D107,'INS SINAPI'!A:E,3,0),IF(B107="INS. ORSE",VLOOKUP(D107,'INS. ORSE'!A:D,3,0),IF(B107="COMP. ORSE",VLOOKUP(D107,'COMP. ORSE'!A:D,3,0))))) -> CHP | G107: 4 | H107: =IF(B107="COMP. SINAPI",VLOOKUP(D107,'COMP SINAPI'!G:K,5,0),IF(B107="INS. SINAPI",VLOOKUP(D107,'INS SINAPI'!A:E,5,0),IF(B107="INS. ORSE",VLOOKUP(D107,'INS. ORSE'!A:D,4,0),IF(B107="COMP. ORSE",VLOOKUP(D107,'COMP. ORSE'!A:D,4,0))))) -> 93,55 | I107: =TRUNC(G107*H107,2) -> 374.2
B108: INS. ORSE | C108: ORSE | D108: 2479 | E108: EQUIPAMENTO DE GEOFÍSICA | F108: =IF(B108="COMP. SINAPI",VLOOKUP(D108,'COMP SINAPI'!G:K,3,0),IF(B108="INS. SINAPI",VLOOKUP(D108,'INS SINAPI'!A:E,3,0),IF(B108="INS. ORSE",VLOOKUP(D108,'INS. ORSE'!A:D,3,0),IF(B108="COMP. ORSE",VLOOKUP(D108,'COMP. ORSE'!A:D,3,0))))) -> H | G108: 4 | H108: =IF(B108="COMP. SINAPI",VLOOKUP(D108,'COMP SINAPI'!G:K,5,0),IF(B108="INS. SINAPI",VLOOKUP(D108,'INS SINAPI'!A:E,5,0),IF(B108="INS. ORSE",VLOOKUP(D108,'INS. ORSE'!A:D,4,0),IF(B108="COMP. ORSE",VLOOKUP(D108,'COMP. ORSE'!A:D,4,0))))) -> 3.1 | I108: =TRUNC(G108*H108,2) -> 12.4
B109: INS. SICRO | C109: SICRO | D109: P9836 | E109: GEÓLOGO | F109: H | G109: 4 | H109: =H65 -> 116.12 | I109: 464.48
F110: Sub total: | I110: =SUM(I106:I109) -> 936.2
G111: BDI | H111: =BDI!$D$27 -> 0.2364 | I111: =TRUNC(I110*H111,2) -> 221.31
F112: =B103 -> CPU-10 | G112: PREÇO UNITÁRIO TOTAL: | I112: =TRUNC(I110+I111,2) -> 1157.51
B114: CPU-11 | C114: ORSE | D114: 6237 | E114: PERFURAÇÃO EM ROCHA CRISTALINA ALTERADA/COMPACTADA DN 8" (POÇO 80M) | F114: M | G114: COEF. | H114: PRECO UNITÁRIO (R$) | I114: TOTAL (R$)
B116: INS. SINAPI | C116: SINAPI | D116: 4227 | E116: Lubrificante | F116: l | G116: 0.12 | H116: =IF(B116="COMP. SINAPI",VLOOKUP(D116,'COMP SINAPI'!G:K,5,0),IF(B116="INS. SINAPI",VLOOKUP(D116,'INS SINAPI'!A:E,5,0),IF(B116="INS. ORSE",VLOOKUP(D116,'INS. ORSE'!A:D,4,0),IF(B116="COMP. ORSE",VLOOKUP(D116,'COMP. ORSE'!A:D,4,0))))) -> 37,50 | I116: =TRUNC(G116*H116,2) -> 4.5
B117: INS. SINAPI | C117: SINAPI | D117: 4229 | E117: Graxa grafitada | F117: kg | G117: 0.12 | H117: =IF(B117="COMP. SINAPI",VLOOKUP(D117,'COMP SINAPI'!G:K,5,0),IF(B117="INS. SINAPI",VLOOKUP(D117,'INS SINAPI'!A:E,5,0),IF(B117="INS. ORSE",VLOOKUP(D117,'INS. ORSE'!A:D,4,0),IF(B117="COMP. ORSE",VLOOKUP(D117,'COMP. ORSE'!A:D,4,0))))) -> 55,05 | I117: =TRUNC(G117*H117,2) -> 6.6
B118: INS. SINAPI | C118: SINAPI | D118: 4221 | E118: Óleo diesel | F118: l | G118: 4.5 | H118: =IF(B118="COMP. SINAPI",VLOOKUP(D118,'COMP SINAPI'!G:K,5,0),IF(B118="INS. SINAPI",VLOOKUP(D118,'INS SINAPI'!A:E,5,0),IF(B118="INS. ORSE",VLOOKUP(D118,'INS. ORSE'!A:D,4,0),IF(B118="COMP. ORSE",VLOOKUP(D118,'COMP. ORSE'!A:D,4,0))))) -> 6,18 | I118: 27.81
B119: COMP. SINAPI | C119: SINAPI | D119: 88316 | E119: SERVENTE COM ENCARGOS COMPLEMENTARES | F119: h | G119: 0.8 | H119: =IF(B119="COMP. SINAPI",VLOOKUP(D119,'COMP SINAPI'!G:K,5,0),IF(B119="INS. SINAPI",VLOOKUP(D119,'INS SINAPI'!A:E,5,0),IF(B119="INS. ORSE",VLOOKUP(D119,'INS. ORSE'!A:D,4,0),IF(B119="COMP. ORSE",VLOOKUP(D119,'COMP. ORSE'!A:D,4,0))))) -> 21,28 | I119: 17.02
B120: COMP. SINAPI | C120: SINAPI | D120: 90776 | E120: Encarregado | F120: h | G120: 0.4 | H120: =IF(B120="COMP. SINAPI",VLOOKUP(D120,'COMP SINAPI'!G:K,5,0),IF(B120="INS. SINAPI",VLOOKUP(D120,'INS SINAPI'!A:E,5,0),IF(B120="INS. ORSE",VLOOKUP(D120,'INS. ORSE'!A:D,4,0),IF(B120="COMP. ORSE",VLOOKUP(D120,'COMP. ORSE'!A:D,4,0))))) -> 38,89 | I120: 15.55
B121: COMP. SINAPI | C121: SINAPI | D121: 88297 | E121: Operador de perfuratriz | F121: h | G121: 0.4 | H121: =IF(B121="COMP. SINAPI",VLOOKUP(D121,'COMP SINAPI'!G:K,5,0),IF(B121="INS. SINAPI",VLOOKUP(D121,'INS SINAPI'!A:E,5,0),IF(B121="INS. ORSE",VLOOKUP(D121,'INS. ORSE'!A:D,4,0),IF(B121="COMP. ORSE",VLOOKUP(D121,'COMP. ORSE'!A:D,4,0))))) -> 32,97 | I121: 13.18
B122: INS. ORSE | C122: ORSE | D122: 2464 | E122: Compressor | F122: h | G122: 0.4 | H122: 26.68 | I122: 10.67
B123: COMP. SINAPI | C123: SINAPI | D123: 95620 | E123: Perfuratriz | F123: h | G123: 0.4 | H123: =IF(B123="COMP. SINAPI",VLOOKUP(D123,'COMP SINAPI'!G:K,5,0),IF(B123="INS. SINAPI",VLOOKUP(D123,'INS SINAPI'!A:E,5,0),IF(B123="INS. ORSE",VLOOKUP(D123,'INS. ORSE'!A:D,4,0),IF(B123="COMP. ORSE",VLOOKUP(D123,'COMP. ORSE'!A:D,4,0))))) -> 31,81 | I123: 12.72
F124: Sub total: | I124: =SUM(I116:I123) -> 108.05
G125: BDI | H125: =BDI!$D$27 -> 0.2364 | I125: =TRUNC(I124*H125,2) -> 25.54
F126: =B114 -> CPU-11 | G126: PREÇO UNITÁRIO TOTAL: | I126: =TRUNC(I124+I125,2) -> 133.59
B128: CPU-12 | C128: FONTE | D128: Codevasf | E128: PERFURAÇÃO EM ROCHA CRISTALINA ALTERADA/COMPACTADA DN 6" (POÇO 80M) | F128: M | G128: COEF. | H128: PRECO UNITÁRIO (R$) | I128: TOTAL (R$)
B130: INS. SINAPI | C130: SINAPI | D130: 4227 | E130: Lubrificante | F130: l | G130: 0.1 | H130: =IF(B130="COMP. SINAPI",VLOOKUP(D130,'COMP SINAPI'!G:K,5,0),IF(B130="INS. SINAPI",VLOOKUP(D130,'INS SINAPI'!A:E,5,0),IF(B130="INS. ORSE",VLOOKUP(D130,'INS. ORSE'!A:D,4,0),IF(B130="COMP. ORSE",VLOOKUP(D130,'COMP. ORSE'!A:D,4,0))))) -> 37,50 | I130: =TRUNC(G130*H130,2) -> 3.75
B131: INS. SINAPI | C131: SINAPI | D131: 4229 | E131: Graxa grafitada | F131: kg | G131: 0.1 | H131: =IF(B131="COMP. SINAPI",VLOOKUP(D131,'COMP SINAPI'!G:K,5,0),IF(B131="INS. SINAPI",VLOOKUP(D131,'INS SINAPI'!A:E,5,0),IF(B131="INS. ORSE",VLOOKUP(D131,'INS. ORSE'!A:D,4,0),IF(B131="COMP. ORSE",VLOOKUP(D131,'COMP. ORSE'!A:D,4,0))))) -> 55,05 | I131: =TRUNC(G131*H131,2) -> 5.5
B132: INS. SINAPI | C132: SINAPI | D132: 4221 | E132: Óleo diesel | F132: l | G132: 3 | H132: =IF(B132="COMP. SINAPI",VLOOKUP(D132,'COMP SINAPI'!G:K,5,0),IF(B132="INS. SINAPI",VLOOKUP(D132,'INS SINAPI'!A:E,5,0),IF(B132="INS. ORSE",VLOOKUP(D132,'INS. ORSE'!A:D,4,0),IF(B132="COMP. ORSE",VLOOKUP(D132,'COMP. ORSE'!A:D,4,0))))) -> 6,18 | I132: 18.54
B133: COMP. SINAPI | C133: SINAPI | D133: 88316 | E133: SERVENTE COM ENCARGOS COMPLEMENTARES | F133: h | G133: 0.7 | H133: =IF(B133="COMP. SINAPI",VLOOKUP(D133,'COMP SINAPI'!G:K,5,0),IF(B133="INS. SINAPI",VLOOKUP(D133,'INS SINAPI'!A:E,5,0),IF(B133="INS. ORSE",VLOOKUP(D133,'INS. ORSE'!A:D,4,0),IF(B133="COMP. ORSE",VLOOKUP(D133,'COMP. ORSE'!A:D,4,0))))) -> 21,28 | I133: 14.89
B134: COMP. SINAPI | C134: SINAPI | D134: 90776 | E134: Encarregado | F134: h | G134: 0.65 | H134: =IF(B134="COMP. SINAPI",VLOOKUP(D134,'COMP SINAPI'!G:K,5,0),IF(B134="INS. SINAPI",VLOOKUP(D134,'INS SINAPI'!A:E,5,0),IF(B134="INS. ORSE",VLOOKUP(D134,'INS. ORSE'!A:D,4,0),IF(B134="COMP. ORSE",VLOOKUP(D134,'COMP. ORSE'!A:D,4,0))))) -> 38,89 | I134: 25.27
B135: COMP. SINAPI | C135: SINAPI | D135: 88297 | E135: Operador de perfuratriz | F135: h | G135: 0.35 | H135: =IF(B135="COMP. SINAPI",VLOOKUP(D135,'COMP SINAPI'!G:K,5,0),IF(B135="INS. SINAPI",VLOOKUP(D135,'INS SINAPI'!A:E,5,0),IF(B135="INS. ORSE",VLOOKUP(D135,'INS. ORSE'!A:D,4,0),IF(B135="COMP. ORSE",VLOOKUP(D135,'COMP. ORSE'!A:D,4,0))))) -> 32,97 | I135: 11.53
B136: INS. ORSE | C136: ORSE | D136: 2464 | E136: Compressor | F136: h | G136: 0.35 | H136: =H122 -> 26.68 | I136: 9.33
B137: COMP. SINAPI | C137: SINAPI | D137: 95620 | E137: Perfuratriz | F137: h | G137: 0.35 | H137: =IF(B137="COMP. SINAPI",VLOOKUP(D137,'COMP SINAPI'!G:K,5,0),IF(B137="INS. SINAPI",VLOOKUP(D137,'INS SINAPI'!A:E,5,0),IF(B137="INS. ORSE",VLOOKUP(D137,'INS. ORSE'!A:D,4,0),IF(B137="COMP. ORSE",VLOOKUP(D137,'COMP. ORSE'!A:D,4,0))))) -> 31,81 | I137: 11.13
F138: Sub total: | I138: =SUM(I130:I137) -> 99.94
G139: BDI | H139: =BDI!$D$27 -> 0.2364 | I139: =TRUNC(I138*H139,2) -> 23.62
F140: =B128 -> CPU-12 | G140: PREÇO UNITÁRIO TOTAL: | I140: =TRUNC(I138+I139,2) -> 123.56
B142: CPU-13 | C142: FONTE | D142: Codevasf | E142: =UPPER("Fornecimento e instalação de Revestimento do Poço em Tubo PVC Geomecânico LEVE em DN de 6'' com luvas e rosca") -> FORNECIMENTO E INSTALAÇÃO DE REVESTIMENTO DO POÇO EM TUBO PVC GEOMECÂNICO LEVE EM DN DE 6'' COM LUVAS E ROSCA | F142: M | G142: COEF. | H142: PRECO UNITÁRIO (R$) | I142: TOTAL (R$)
B145: INS. SINAPI | C145: SINAPI | D145: 9854 | E145: Tubo de 6" de PVC geomecânico | F145: m | G145: 1 | H145: =IF(B145="COMP. SINAPI",VLOOKUP(D145,'COMP SINAPI'!G:K,5,0),IF(B145="INS. SINAPI",VLOOKUP(D145,'INS SINAPI'!A:E,5,0),IF(B145="INS. ORSE",VLOOKUP(D145,'INS. ORSE'!A:D,4,0),IF(B145="COMP. ORSE",VLOOKUP(D145,'COMP. ORSE'!A:D,4,0))))) -> 115,12 | I145: =TRUNC(G145*H145,2) -> 115.12
B146: INS. SINAPI | C146: SINAPI | D146: 4229 | E146: Graxa grafitada | F146: kg | G146: 0.2 | H146: =IF(B146="COMP. SINAPI",VLOOKUP(D146,'COMP SINAPI'!G:K,5,0),IF(B146="INS. SINAPI",VLOOKUP(D146,'INS SINAPI'!A:E,5,0),IF(B146="INS. ORSE",VLOOKUP(D146,'INS. ORSE'!A:D,4,0),IF(B146="COMP. ORSE",VLOOKUP(D146,'COMP. ORSE'!A:D,4,0))))) -> 55,05 | I146: =TRUNC(G146*H146,2) -> 11.01
B147: INS. SINAPI | C147: SINAPI | D147: 4221 | E147: Óleo diesel | F147: l | G147: 0.01 | H147: =IF(B147="COMP. SINAPI",VLOOKUP(D147,'COMP SINAPI'!G:K,5,0),IF(B147="INS. SINAPI",VLOOKUP(D147,'INS SINAPI'!A:E,5,0),IF(B147="INS. ORSE",VLOOKUP(D147,'INS. ORSE'!A:D,4,0),IF(B147="COMP. ORSE",VLOOKUP(D147,'COMP. ORSE'!A:D,4,0))))) -> 6,18 | I147: =TRUNC(G147*H147,2) -> 0.06
B148: COMP. SINAPI | C148: SINAPI | D148: 88316 | E148: SERVENTE COM ENCARGOS COMPLEMENTARES | F148: h | G148: 0.2 | H148: =IF(B148="COMP. SINAPI",VLOOKUP(D148,'COMP SINAPI'!G:K,5,0),IF(B148="INS. SINAPI",VLOOKUP(D148,'INS SINAPI'!A:E,5,0),IF(B148="INS. ORSE",VLOOKUP(D148,'INS. ORSE'!A:D,4,0),IF(B148="COMP. ORSE",VLOOKUP(D148,'COMP. ORSE'!A:D,4,0))))) -> 21,28 | I148: =TRUNC(G148*H148,2) -> 4.25
B149: COMP. SINAPI | C149: SINAPI | D149: 88297 | E149: =IF(B149="COMP. SINAPI",VLOOKUP(D149,'COMP SINAPI'!G:K,2,0),IF(B149="INS. SINAPI",VLOOKUP(D149,'INS SINAPI'!A:E,2,0),IF(B149="INS. ORSE",VLOOKUP(D149,'INS. ORSE'!A:D,2,0),IF(B149="COMP. ORSE",VLOOKUP(D149,'COMP. ORSE'!A:D,2,0))))) -> OPERADOR DE MÁQUINAS E EQUIPAMENTOS COM ENCARGOS COMPLEMENTARES | F149: =IF(B149="COMP. SINAPI",VLOOKUP(D149,'COMP SINAPI'!G:K,3,0),IF(B149="INS. SINAPI",VLOOKUP(D149,'INS SINAPI'!A:E,3,0),IF(B149="INS. ORSE",VLOOKUP(D149,'INS. ORSE'!A:D,3,0),IF(B149="COMP. ORSE",VLOOKUP(D149,'COMP. ORSE'!A:D,3,0))))) -> H | G149: 0.2 | H149: =IF(B149="COMP. SINAPI",VLOOKUP(D149,'COMP SINAPI'!G:K,5,0),IF(B149="INS. SINAPI",VLOOKUP(D149,'INS SINAPI'!A:E,5,0),IF(B149="INS. ORSE",VLOOKUP(D149,'INS. ORSE'!A:D,4,0),IF(B149="COMP. ORSE",VLOOKUP(D149,'COMP. ORSE'!A:D,4,0))))) -> 32,97 | I149: =TRUNC(G149*H149,2) -> 6.59
F150: Sub total: | I150: =SUM(I145:I149) -> 137.03
G151: BDI | H151: =BDI!$D$27 -> 0.2364 | I151: =TRUNC(I150*H151,2) -> 32.39
F152: =B142 -> CPU-13 | G152: PREÇO UNITÁRIO TOTAL: | I152: =TRUNC(I150+I151,2) -> 169.42
B154: CPU-14 | C154: FONTE | D154: Codevasf | E154: =UPPER("Realização de limpeza, desenvolvimento e estimulação do poço, realizado mediante a utilização de compressor de ar pelo método de fluxo e refluxo, incluindo operação e a instalação de compressor de ar ") -> REALIZAÇÃO DE LIMPEZA, DESENVOLVIMENTO E ESTIMULAÇÃO DO POÇO, REALIZADO MEDIANTE A UTILIZAÇÃO DE COMPRESSOR DE AR PELO MÉTODO DE FLUXO E REFLUXO, INCLUINDO OPERAÇÃO E A INSTALAÇÃO DE COMPRESSOR DE AR | F154: UNID | G154: COEF. | H154: PRECO UNITÁRIO (R$) | I154: TOTAL (R$)
B157: COMP. SINAPI | C157: SINAPI | D157: 88292 | E157: =IF(B157="COMP. SINAPI",VLOOKUP(D157,'COMP SINAPI'!G:K,2,0),IF(B157="INS. SINAPI",VLOOKUP(D157,'INS SINAPI'!A:E,2,0),IF(B157="INS. ORSE",VLOOKUP(D157,'INS. ORSE'!A:D,2,0),IF(B157="COMP. ORSE",VLOOKUP(D157,'COMP. ORSE'!A:D,2,0))))) -> OPERADOR DE COMPRESSOR OU COMPRESSORISTA COM ENCARGOS COMPLEMENTARES | F157: =IF(B157="COMP. SINAPI",VLOOKUP(D157,'COMP SINAPI'!G:K,3,0),IF(B157="INS. SINAPI",VLOOKUP(D157,'INS SINAPI'!A:E,3,0),IF(B157="INS. ORSE",VLOOKUP(D157,'INS. ORSE'!A:D,3,0),IF(B157="COMP. ORSE",VLOOKUP(D157,'COMP. ORSE'!A:D,3,0))))) -> H | G157: 1 | H157: =IF(B157="COMP. SINAPI",VLOOKUP(D157,'COMP SINAPI'!G:K,5,0),IF(B157="INS. SINAPI",VLOOKUP(D157,'INS SINAPI'!A:E,5,0),IF(B157="INS. ORSE",VLOOKUP(D157,'INS. ORSE'!A:D,4,0),IF(B157="COMP. ORSE",VLOOKUP(D157,'COMP. ORSE'!A:D,4,0))))) -> 32,25 | I157: =TRUNC(G157*H157,2) -> 32.25
B158: INS. SINAPI | C158: SINAPI | D158: 4221 | E158: =IF(B158="COMP. SINAPI",VLOOKUP(D158,'COMP SINAPI'!G:K,2,0),IF(B158="INS. SINAPI",VLOOKUP(D158,'INS SINAPI'!A:E,2,0),IF(B158="INS. ORSE",VLOOKUP(D158,'INS. ORSE'!A:D,2,0),IF(B158="COMP. ORSE",VLOOKUP(D158,'COMP. ORSE'!A:D,2,0))))) -> OLEO DIESEL COMBUSTIVEL COMUM | F158: =IF(B158="COMP. SINAPI",VLOOKUP(D158,'COMP SINAPI'!G:K,3,0),IF(B158="INS. SINAPI",VLOOKUP(D158,'INS SINAPI'!A:E,3,0),IF(B158="INS. ORSE",VLOOKUP(D158,'INS. ORSE'!A:D,3,0),IF(B158="COMP. ORSE",VLOOKUP(D158,'COMP. ORSE'!A:D,3,0))))) -> L | G158: 25 | H158: =IF(B158="COMP. SINAPI",VLOOKUP(D158,'COMP SINAPI'!G:K,5,0),IF(B158="INS. SINAPI",VLOOKUP(D158,'INS SINAPI'!A:E,5,0),IF(B158="INS. ORSE",VLOOKUP(D158,'INS. ORSE'!A:D,4,0),IF(B158="COMP. ORSE",VLOOKUP(D158,'COMP. ORSE'!A:D,4,0))))) -> 6,18 | I158: =TRUNC(G158*H158,2) -> 154.5
B159: INS. SINAPI | C159: SINAPI | D159: 4227 | E159: =IF(B159="COMP. SINAPI",VLOOKUP(D159,'COMP SINAPI'!G:K,2,0),IF(B159="INS. SINAPI",VLOOKUP(D159,'INS SINAPI'!A:E,2,0),IF(B159="INS. ORSE",VLOOKUP(D159,'INS. ORSE'!A:D,2,0),IF(B159="COMP. ORSE",VLOOKUP(D159,'COMP. ORSE'!A:D,2,0))))) -> OLEO LUBRIFICANTE PARA MOTORES DE EQUIPAMENTOS PESADOS (CAMINHOES, TRATORES, RETROS E ETC) | F159: =IF(B159="COMP. SINAPI",VLOOKUP(D159,'COMP SINAPI'!G:K,3,0),IF(B159="INS. SINAPI",VLOOKUP(D159,'INS SINAPI'!A:E,3,0),IF(B159="INS. ORSE",VLOOKUP(D159,'INS. ORSE'!A:D,3,0),IF(B159="COMP. ORSE",VLOOKUP(D159,'COMP. ORSE'!A:D,3,0))))) -> L | G159: 5 | H159: =IF(B159="COMP. SINAPI",VLOOKUP(D159,'COMP SINAPI'!G:K,5,0),IF(B159="INS. SINAPI",VLOOKUP(D159,'INS SINAPI'!A:E,5,0),IF(B159="INS. ORSE",VLOOKUP(D159,'INS. ORSE'!A:D,4,0),IF(B159="COMP. ORSE",VLOOKUP(D159,'COMP. ORSE'!A:D,4,0))))) -> 37,50 | I159: =TRUNC(G159*H159,2) -> 187.5
B160: INS. ORSE | C160: ORSE | D160: 2463 | E160: =IF(B160="COMP. SINAPI",VLOOKUP(D160,'COMP SINAPI'!G:K,2,0),IF(B160="INS. SINAPI",VLOOKUP(D160,'INS SINAPI'!A:E,2,0),IF(B160="INS. ORSE",VLOOKUP(D160,'INS. ORSE'!A:D,2,0),IF(B160="COMP. ORSE",VLOOKUP(D160,'COMP. ORSE'!A:D,2,0))))) -> Compressor 250 pcm (atlas copco - xa-120dd - 94,0 hp ou equivalente) | F160: =IF(B160="COMP. SINAPI",VLOOKUP(D160,'COMP SINAPI'!G:K,3,0),IF(B160="INS. SINAPI",VLOOKUP(D160,'INS SINAPI'!A:E,3,0),IF(B160="INS. ORSE",VLOOKUP(D160,'INS. ORSE'!A:D,3,0),IF(B160="COMP. ORSE",VLOOKUP(D160,'COMP. ORSE'!A:D,3,0))))) -> H | G160: 2 | H160: =IF(B160="COMP. SINAPI",VLOOKUP(D160,'COMP SINAPI'!G:K,5,0),IF(B160="INS. SINAPI",VLOOKUP(D160,'INS SINAPI'!A:E,5,0),IF(B160="INS. ORSE",VLOOKUP(D160,'INS. ORSE'!A:D,4,0),IF(B160="COMP. ORSE",VLOOKUP(D160,'COMP. ORSE'!A:D,4,0))))) -> 12.59 | I160: =TRUNC(G160*H160,2) -> 25.18
F161: Sub total: | I161: =SUM(I157:I160) -> 399.43
G162: BDI | H162: =BDI!$D$27 -> 0.2364 | I162: =TRUNC(I161*H162,2) -> 94.42
F163: =B154 -> CPU-14 | G163: PREÇO UNITÁRIO TOTAL: | I163: =TRUNC(I161+I162,2) -> 493.85
B165: CPU-15 | C165: ORSE | D165: 6310 | E165: =UPPER("Realização de teste de vazão e de bombeamento do poço, incluindo operação e instalação de motobomba submersa e grupo gerador") -> REALIZAÇÃO DE TESTE DE VAZÃO E DE BOMBEAMENTO DO POÇO, INCLUINDO OPERAÇÃO E INSTALAÇÃO DE MOTOBOMBA SUBMERSA E GRUPO GERADOR | F165: UNID | G165: COEF. | H165: PRECO UNITÁRIO (R$) | I165: TOTAL (R$)
B168: INS. SINAPI | C168: SINAPI | D168: 4221 | E168: Óleo diesel | F168: l | G168: 4.5 | H168: =IF(B168="COMP. SINAPI",VLOOKUP(D168,'COMP SINAPI'!G:K,5,0),IF(B168="INS. SINAPI",VLOOKUP(D168,'INS SINAPI'!A:E,5,0),IF(B168="INS. ORSE",VLOOKUP(D168,'INS. ORSE'!A:D,4,0),IF(B168="COMP. ORSE",VLOOKUP(D168,'COMP. ORSE'!A:D,4,0))))) -> 6,18 | I168: =ROUND(G168*H168,2) -> 27.81
B169: INS. SINAPI | C169: SINAPI | D169: 4227 | E169: Óleo Lubrificante. | F169: l | G169: 0.25 | H169: =IF(B169="COMP. SINAPI",VLOOKUP(D169,'COMP SINAPI'!G:K,5,0),IF(B169="INS. SINAPI",VLOOKUP(D169,'INS SINAPI'!A:E,5,0),IF(B169="INS. ORSE",VLOOKUP(D169,'INS. ORSE'!A:D,4,0),IF(B169="COMP. ORSE",VLOOKUP(D169,'COMP. ORSE'!A:D,4,0))))) -> 37,50 | I169: 9.38
B170: INS. ORSE | C170: ORSE | D170: 04233/ORSE | E170: Compressor | F170: h | G170: 24 | H170: 10.03 | I170: 240.72
B171: COMP. SINAPI | C171: SINAPI | D171: 88292 | E171: Operador de Compressor. | F171: h | G171: 8 | H171: =IF(B171="COMP. SINAPI",VLOOKUP(D171,'COMP SINAPI'!G:K,5,0),IF(B171="INS. SINAPI",VLOOKUP(D171,'INS SINAPI'!A:E,5,0),IF(B171="INS. ORSE",VLOOKUP(D171,'INS. ORSE'!A:D,4,0),IF(B171="COMP. ORSE",VLOOKUP(D171,'COMP. ORSE'!A:D,4,0))))) -> 32,25 | I171: 258
B172: COMP. SINAPI | C172: SINAPI | D172: 88316 | E172: SERVENTE COM ENCARGOS COMPLEMENTARES | F172: h | G172: 16 | H172: =IF(B172="COMP. SINAPI",VLOOKUP(D172,'COMP SINAPI'!G:K,5,0),IF(B172="INS. SINAPI",VLOOKUP(D172,'INS SINAPI'!A:E,5,0),IF(B172="INS. ORSE",VLOOKUP(D172,'INS. ORSE'!A:D,4,0),IF(B172="COMP. ORSE",VLOOKUP(D172,'COMP. ORSE'!A:D,4,0))))) -> 21,28 | I172: 340.48
F173: Sub total: | I173: =SUM(I168:I172) -> 876.39
G174: BDI | H174: =BDI!$D$27 -> 0.2364 | I174: =TRUNC(I173*H174,2) -> 207.17
F175: =B165 -> CPU-15 | G175: PREÇO UNITÁRIO TOTAL: | I175: =TRUNC(I173+I174,2) -> 1083.56
B177: CPU-16 | C177: FONTE | D177: Codevasf | E177: =UPPER("Realização de desinfecção do poço, incluindo material de limpeza, instalação e desinstalação de compressor, combustível e operador.") -> REALIZAÇÃO DE DESINFECÇÃO DO POÇO, INCLUINDO MATERIAL DE LIMPEZA, INSTALAÇÃO E DESINSTALAÇÃO DE COMPRESSOR, COMBUSTÍVEL E OPERADOR. | F177: UNID | G177: COEF. | H177: PRECO UNITÁRIO (R$) | I177: TOTAL (R$)
B180: COMP. SINAPI | C180: SINAPI | D180: 88292 | E180: =IF(B180="COMP. SINAPI",VLOOKUP(D180,'COMP SINAPI'!G:K,2,0),IF(B180="INS. SINAPI",VLOOKUP(D180,'INS SINAPI'!A:E,2,0),IF(B180="INS. ORSE",VLOOKUP(D180,'INS. ORSE'!A:D,2,0),IF(B180="COMP. ORSE",VLOOKUP(D180,'COMP. ORSE'!A:D,2,0))))) -> OPERADOR DE COMPRESSOR OU COMPRESSORISTA COM ENCARGOS COMPLEMENTARES | F180: =IF(B180="COMP. SINAPI",VLOOKUP(D180,'COMP SINAPI'!G:K,3,0),IF(B180="INS. SINAPI",VLOOKUP(D180,'INS SINAPI'!A:E,3,0),IF(B180="INS. ORSE",VLOOKUP(D180,'INS. ORSE'!A:D,3,0),IF(B180="COMP. ORSE",VLOOKUP(D180,'COMP. ORSE'!A:D,3,0))))) -> H | G180: 2 | H180: =IF(B180="COMP. SINAPI",VLOOKUP(D180,'COMP SINAPI'!G:K,5,0),IF(B180="INS. SINAPI",VLOOKUP(D180,'INS SINAPI'!A:E,5,0),IF(B180="INS. ORSE",VLOOKUP(D180,'INS. ORSE'!A:D,4,0),IF(B180="COMP. ORSE",VLOOKUP(D180,'COMP. ORSE'!A:D,4,0))))) -> 32,25 | I180: =TRUNC(G180*H180,2) -> 64.5
B181: COMP. SINAPI | C181: SINAPI | D181: 88316 | E181: =IF(B181="COMP. SINAPI",VLOOKUP(D181,'COMP SINAPI'!G:K,2,0),IF(B181="INS. SINAPI",VLOOKUP(D181,'INS SINAPI'!A:E,2,0),IF(B181="INS. ORSE",VLOOKUP(D181,'INS. ORSE'!A:D,2,0),IF(B181="COMP. ORSE",VLOOKUP(D181,'COMP. ORSE'!A:D,2,0))))) -> SERVENTE COM ENCARGOS COMPLEMENTARES | F181: =IF(B181="COMP. SINAPI",VLOOKUP(D181,'COMP SINAPI'!G:K,3,0),IF(B181="INS. SINAPI",VLOOKUP(D181,'INS SINAPI'!A:E,3,0),IF(B181="INS. ORSE",VLOOKUP(D181,'INS. ORSE'!A:D,3,0),IF(B181="COMP. ORSE",VLOOKUP(D181,'COMP. ORSE'!A:D,3,0))))) -> H | G181: 3 | H181: =IF(B181="COMP. SINAPI",VLOOKUP(D181,'COMP SINAPI'!G:K,5,0),IF(B181="INS. SINAPI",VLOOKUP(D181,'INS SINAPI'!A:E,5,0),IF(B181="INS. ORSE",VLOOKUP(D181,'INS. ORSE'!A:D,4,0),IF(B181="COMP. ORSE",VLOOKUP(D181,'COMP. ORSE'!A:D,4,0))))) -> 21,28 | I181: =TRUNC(G181*H181,2) -> 63.84
B182: INS. ORSE | C182: ORSE | D182: 2463 | E182: =IF(B182="COMP. SINAPI",VLOOKUP(D182,'COMP SINAPI'!G:K,2,0),IF(B182="INS. SINAPI",VLOOKUP(D182,'INS SINAPI'!A:E,2,0),IF(B182="INS. ORSE",VLOOKUP(D182,'INS. ORSE'!A:D,2,0),IF(B182="COMP. ORSE",VLOOKUP(D182,'COMP. ORSE'!A:D,2,0))))) -> Compressor 250 pcm (atlas copco - xa-120dd - 94,0 hp ou equivalente) | F182: =IF(B182="COMP. SINAPI",VLOOKUP(D182,'COMP SINAPI'!G:K,3,0),IF(B182="INS. SINAPI",VLOOKUP(D182,'INS SINAPI'!A:E,3,0),IF(B182="INS. ORSE",VLOOKUP(D182,'INS. ORSE'!A:D,3,0),IF(B182="COMP. ORSE",VLOOKUP(D182,'COMP. ORSE'!A:D,3,0))))) -> H | G182: 2 | H182: =IF(B182="COMP. SINAPI",VLOOKUP(D182,'COMP SINAPI'!G:K,5,0),IF(B182="INS. SINAPI",VLOOKUP(D182,'INS SINAPI'!A:E,5,0),IF(B182="INS. ORSE",VLOOKUP(D182,'INS. ORSE'!A:D,4,0),IF(B182="COMP. ORSE",VLOOKUP(D182,'COMP. ORSE'!A:D,4,0))))) -> 12.59 | I182: =TRUNC(G182*H182,2) -> 25.18
C183: INTERNET | D183: COT.03 | E183: Hipoclorito de sódio | F183: L | G183: 1 | H183: 8.2 | I183: =TRUNC(G183*H183,2) -> 8.2
B184: INS. ORSE | C184: ORSE | D184: 1997 | E184: =IF(B184="COMP. SINAPI",VLOOKUP(D184,'COMP SINAPI'!G:K,2,0),IF(B184="INS. SINAPI",VLOOKUP(D184,'INS SINAPI'!A:E,2,0),IF(B184="INS. ORSE",VLOOKUP(D184,'INS. ORSE'!A:D,2,0),IF(B184="COMP. ORSE",VLOOKUP(D184,'COMP. ORSE'!A:D,2,0))))) -> SABÃO EM PÓ | F184: =IF(B184="COMP. SINAPI",VLOOKUP(D184,'COMP SINAPI'!G:K,3,0),IF(B184="INS. SINAPI",VLOOKUP(D184,'INS SINAPI'!A:E,3,0),IF(B184="INS. ORSE",VLOOKUP(D184,'INS. ORSE'!A:D,3,0),IF(B184="COMP. ORSE",VLOOKUP(D184,'COMP. ORSE'!A:D,3,0))))) -> KG | G184: 1 | H184: =IF(B184="COMP. SINAPI",VLOOKUP(D184,'COMP SINAPI'!G:K,5,0),IF(B184="INS. SINAPI",VLOOKUP(D184,'INS SINAPI'!A:E,5,0),IF(B184="INS. ORSE",VLOOKUP(D184,'INS. ORSE'!A:D,4,0),IF(B184="COMP. ORSE",VLOOKUP(D184,'COMP. ORSE'!A:D,4,0))))) -> 10.19 | I184: 10.19
F185: Sub total: | I185: =SUM(I180:I184) -> 171.91
G186: BDI | H186: =BDI!$D$27 -> 0.2364 | I186: =TRUNC(I185*H186,2) -> 40.63
F187: =B177 -> CPU-16 | G187: PREÇO UNITÁRIO TOTAL: | I187: =TRUNC(I185+I186,2) -> 212.54
B189: CPU-17 | C189: ORSE | D189: 6312 | E189: =UPPER("Análise Físico-química da Água") -> ANÁLISE FÍSICO-QUÍMICA DA ÁGUA | F189: UNID | G189: COEF. | H189: PRECO UNITÁRIO (R$) | I189: TOTAL (R$)
B192: INS. ORSE | C192: ORSE | D192: 5022 | E192: =IF(B192="COMP. SINAPI",VLOOKUP(D192,'COMP SINAPI'!G:K,2,0),IF(B192="INS. SINAPI",VLOOKUP(D192,'INS SINAPI'!A:E,2,0),IF(B192="INS. ORSE",VLOOKUP(D192,'INS. ORSE'!A:D,2,0),IF(B192="COMP. ORSE",VLOOKUP(D192,'COMP. ORSE'!A:D,2,0))))) -> ANÁLISE FÍSICO-QUÍMICA DE ÁGUA | F192: =IF(B192="COMP. SINAPI",VLOOKUP(D192,'COMP SINAPI'!G:K,3,0),IF(B192="INS. SINAPI",VLOOKUP(D192,'INS SINAPI'!A:E,3,0),IF(B192="INS. ORSE",VLOOKUP(D192,'INS. ORSE'!A:D,3,0),IF(B192="COMP. ORSE",VLOOKUP(D192,'COMP. ORSE'!A:D,3,0))))) -> UN | G192: 1 | H192: =IF(B192="COMP. SINAPI",VLOOKUP(D192,'COMP SINAPI'!G:K,5,0),IF(B192="INS. SINAPI",VLOOKUP(D192,'INS SINAPI'!A:E,5,0),IF(B192="INS. ORSE",VLOOKUP(D192,'INS. ORSE'!A:D,4,0),IF(B192="COMP. ORSE",VLOOKUP(D192,'COMP. ORSE'!A:D,4,0))))) -> 565.21 | I192: =TRUNC(G192*H192,2) -> 565.21
F193: Sub total: | I193: =SUM(I192:I192) -> 565.21
G194: BDI | H194: =BDI!$D$27 -> 0.2364 | I194: =TRUNC(I193*H194,2) -> 133.61
F195: =B189 -> CPU-17 | G195: PREÇO UNITÁRIO TOTAL: | I195: =TRUNC(I193+I194,2) -> 698.82
B197: CPU-18 | C197: ORSE | D197: 6313 | E197: =UPPER("Análise Bacteriológica da Água") -> ANÁLISE BACTERIOLÓGICA DA ÁGUA | F197: UNID | G197: COEF. | H197: PRECO UNITÁRIO (R$) | I197: TOTAL (R$)
B200: INS. ORSE | C200: ORSE | D200: 5021 | E200: =IF(B200="COMP. SINAPI",VLOOKUP(D200,'COMP SINAPI'!G:K,2,0),IF(B200="INS. SINAPI",VLOOKUP(D200,'INS SINAPI'!A:E,2,0),IF(B200="INS. ORSE",VLOOKUP(D200,'INS. ORSE'!A:D,2,0),IF(B200="COMP. ORSE",VLOOKUP(D200,'COMP. ORSE'!A:D,2,0))))) -> ANÁLISE BACTERIOLÓGICA DE ÁGUA | F200: =IF(B200="COMP. SINAPI",VLOOKUP(D200,'COMP SINAPI'!G:K,3,0),IF(B200="INS. SINAPI",VLOOKUP(D200,'INS SINAPI'!A:E,3,0),IF(B200="INS. ORSE",VLOOKUP(D200,'INS. ORSE'!A:D,3,0),IF(B200="COMP. ORSE",VLOOKUP(D200,'COMP. ORSE'!A:D,3,0))))) -> UN | G200: 1 | H200: =IF(B200="COMP. SINAPI",VLOOKUP(D200,'COMP SINAPI'!G:K,5,0),IF(B200="INS. SINAPI",VLOOKUP(D200,'INS SINAPI'!A:E,5,0),IF(B200="INS. ORSE",VLOOKUP(D200,'INS. ORSE'!A:D,4,0),IF(B200="COMP. ORSE",VLOOKUP(D200,'COMP. ORSE'!A:D,4,0))))) -> 55.98 | I200: =TRUNC(G200*H200,2) -> 55.98
F201: Sub total: | I201: =SUM(I200:I200) -> 55.98
G202: BDI | H202: =BDI!$D$27 -> 0.2364 | I202: =TRUNC(I201*H202,2) -> 13.23
F203: =B197 -> CPU-18 | G203: PREÇO UNITÁRIO TOTAL: | I203: =TRUNC(I201+I202,2) -> 69.21
B205: CPU-19 | C205: FONTE | D205: Codevasf | E205: =UPPER("Cimentação anelar do poço, com argamassa de cimento e areia produzida no traço 1:3.") -> CIMENTAÇÃO ANELAR DO POÇO, COM ARGAMASSA DE CIMENTO E AREIA PRODUZIDA NO TRAÇO 1:3. | F205: M³ | G205: COEF. | H205: PRECO UNITÁRIO (R$) | I205: TOTAL (R$)
B208: INS. SINAPI | C208: SINAPI | D208: 1379 | E208: Cimento Portland CP II - 32. | F208: kg | G208: 473 | H208: =IF(B208="COMP. SINAPI",VLOOKUP(D208,'COMP SINAPI'!G:K,5,0),IF(B208="INS. SINAPI",VLOOKUP(D208,'INS SINAPI'!A:E,5,0),IF(B208="INS. ORSE",VLOOKUP(D208,'INS. ORSE'!A:D,4,0),IF(B208="COMP. ORSE",VLOOKUP(D208,'COMP. ORSE'!A:D,4,0))))) -> 0,70 | I208: =TRUNC(G208*H208,2) -> 331.1
B209: INS. SINAPI | C209: SINAPI | D209: 367 | E209: Areia Lavável. | F209: m³ | G209: 1.3 | H209: =IF(B209="COMP. SINAPI",VLOOKUP(D209,'COMP SINAPI'!G:K,5,0),IF(B209="INS. SINAPI",VLOOKUP(D209,'INS SINAPI'!A:E,5,0),IF(B209="INS. ORSE",VLOOKUP(D209,'INS. ORSE'!A:D,4,0),IF(B209="COMP. ORSE",VLOOKUP(D209,'COMP. ORSE'!A:D,4,0))))) -> 131,69 | I209: =TRUNC(G209*H209,2) -> 171.19
B210: COMP. SINAPI | C210: SINAPI | D210: 88316 | E210: SERVENTE COM ENCARGOS COMPLEMENTARES | F210: h | G210: 3.5 | H210: =IF(B210="COMP. SINAPI",VLOOKUP(D210,'COMP SINAPI'!G:K,5,0),IF(B210="INS. SINAPI",VLOOKUP(D210,'INS SINAPI'!A:E,5,0),IF(B210="INS. ORSE",VLOOKUP(D210,'INS. ORSE'!A:D,4,0),IF(B210="COMP. ORSE",VLOOKUP(D210,'COMP. ORSE'!A:D,4,0))))) -> 21,28 | I210: =TRUNC(G210*H210,2) -> 74.48
B211: COMP. SINAPI | C211: SINAPI | D211: 87445 | E211: Betoneira com capacidade de 400l. Motor Diesel de 7 HP. | F211: h | G211: 0.71 | H211: =IF(B211="COMP. SINAPI",VLOOKUP(D211,'COMP SINAPI'!G:K,5,0),IF(B211="INS. SINAPI",VLOOKUP(D211,'INS SINAPI'!A:E,5,0),IF(B211="INS. ORSE",VLOOKUP(D211,'INS. ORSE'!A:D,4,0),IF(B211="COMP. ORSE",VLOOKUP(D211,'COMP. ORSE'!A:D,4,0))))) -> 5,47 | I211: =TRUNC(G211*H211,2) -> 3.88
F212: Sub total: | I212: =SUM(I208:I211) -> 580.65
G213: BDI | H213: =BDI!$D$27 -> 0.2364 | I213: =TRUNC(I212*H213,2) -> 137.26
F214: =B205 -> CPU-19 | G214: PREÇO UNITÁRIO TOTAL: | I214: =TRUNC(I212+I213,2) -> 717.91
B216: CPU-20 | C216: FONTE | D216: Codevasf | E216: =UPPER("Construção de laje de proteção sanitária FCK = 15 Mpa, virado em betoneira, incluindo aplicação e adensamento, forma, escoramento e ferragens, nas dimensões-1,5m x 1,5m x 0,10m, com declividade de para as bordas, em conformidade com a NBR 12212.") -> CONSTRUÇÃO DE LAJE DE PROTEÇÃO SANITÁRIA FCK = 15 MPA, VIRADO EM BETONEIRA, INCLUINDO APLICAÇÃO E ADENSAMENTO, FORMA, ESCORAMENTO E FERRAGENS, NAS DIMENSÕES-1,5M X 1,5M X 0,10M, COM DECLIVIDADE DE PARA AS BORDAS, EM CONFORMIDADE COM A NBR 12212. | F216: M³ | G216: COEF. | H216: PRECO UNITÁRIO (R$) | I216: TOTAL (R$)
B219: INS. SINAPI | C219: SINAPI | D219: 1379 | E219: Cimento Portland comum CP II - 32. | F219: kg | G219: 285 | H219: =IF(B219="COMP. SINAPI",VLOOKUP(D219,'COMP SINAPI'!G:K,5,0),IF(B219="INS. SINAPI",VLOOKUP(D219,'INS SINAPI'!A:E,5,0),IF(B219="INS. ORSE",VLOOKUP(D219,'INS. ORSE'!A:D,4,0),IF(B219="COMP. ORSE",VLOOKUP(D219,'COMP. ORSE'!A:D,4,0))))) -> 0,70 | I219: =TRUNC(G219*H219,2) -> 199.5
B220: INS. SINAPI | C220: SINAPI | D220: 367 | E220: Areia Lavada | F220: m³ | G220: 0.63 | H220: =IF(B220="COMP. SINAPI",VLOOKUP(D220,'COMP SINAPI'!G:K,5,0),IF(B220="INS. SINAPI",VLOOKUP(D220,'INS SINAPI'!A:E,5,0),IF(B220="INS. ORSE",VLOOKUP(D220,'INS. ORSE'!A:D,4,0),IF(B220="COMP. ORSE",VLOOKUP(D220,'COMP. ORSE'!A:D,4,0))))) -> 131,69 | I220: =TRUNC(G220*H220,2) -> 82.96
B221: INS. SINAPI | C221: SINAPI | D221: 4721 | E221: Brita 1 | F221: m³ | G221: 0.37 | H221: =IF(B221="COMP. SINAPI",VLOOKUP(D221,'COMP SINAPI'!G:K,5,0),IF(B221="INS. SINAPI",VLOOKUP(D221,'INS SINAPI'!A:E,5,0),IF(B221="INS. ORSE",VLOOKUP(D221,'INS. ORSE'!A:D,4,0),IF(B221="COMP. ORSE",VLOOKUP(D221,'COMP. ORSE'!A:D,4,0))))) -> 99,83 | I221: =TRUNC(G221*H221,2) -> 36.93
B222: INS. SINAPI | C222: SINAPI | D222: 4718 | E222: Brita 2 | F222: m³ | G222: 0.37 | H222: =IF(B222="COMP. SINAPI",VLOOKUP(D222,'COMP SINAPI'!G:K,5,0),IF(B222="INS. SINAPI",VLOOKUP(D222,'INS SINAPI'!A:E,5,0),IF(B222="INS. ORSE",VLOOKUP(D222,'INS. ORSE'!A:D,4,0),IF(B222="COMP. ORSE",VLOOKUP(D222,'COMP. ORSE'!A:D,4,0))))) -> 100,36 | I222: =TRUNC(G222*H222,2) -> 37.13
B223: INS. SINAPI | C223: SINAPI | D223: 5075 | E223: Prego de aço 18 x 30 | F223: kg | G223: 0.7 | H223: =IF(B223="COMP. SINAPI",VLOOKUP(D223,'COMP SINAPI'!G:K,5,0),IF(B223="INS. SINAPI",VLOOKUP(D223,'INS SINAPI'!A:E,5,0),IF(B223="INS. ORSE",VLOOKUP(D223,'INS. ORSE'!A:D,4,0),IF(B223="COMP. ORSE",VLOOKUP(D223,'COMP. ORSE'!A:D,4,0))))) -> 18,82 | I223: =TRUNC(G223*H223,2) -> 13.17
B224: INS. SINAPI | C224: SINAPI | D224: 2692 | E224: Desmoldante para forma de madeira | F224: l | G224: 0.34 | H224: =IF(B224="COMP. SINAPI",VLOOKUP(D224,'COMP SINAPI'!G:K,5,0),IF(B224="INS. SINAPI",VLOOKUP(D224,'INS SINAPI'!A:E,5,0),IF(B224="INS. ORSE",VLOOKUP(D224,'INS. ORSE'!A:D,4,0),IF(B224="COMP. ORSE",VLOOKUP(D224,'COMP. ORSE'!A:D,4,0))))) -> 7,50 | I224: 2.55
B225: INS. SINAPI | C225: SINAPI | D225: 34 | E225: Armação de aço CA 50 - forn. e inst. | F225: kg | G225: 20 | H225: =IF(B225="COMP. SINAPI",VLOOKUP(D225,'COMP SINAPI'!G:K,5,0),IF(B225="INS. SINAPI",VLOOKUP(D225,'INS SINAPI'!A:E,5,0),IF(B225="INS. ORSE",VLOOKUP(D225,'INS. ORSE'!A:D,4,0),IF(B225="COMP. ORSE",VLOOKUP(D225,'COMP. ORSE'!A:D,4,0))))) -> 9,84 | I225: 196.8
B226: INS. SINAPI | C226: SINAPI | D226: 6212 | E226: Forma plana em tábua em madeira de mista. | F226: m² | G226: 0.64 | H226: =IF(B226="COMP. SINAPI",VLOOKUP(D226,'COMP SINAPI'!G:K,5,0),IF(B226="INS. SINAPI",VLOOKUP(D226,'INS SINAPI'!A:E,5,0),IF(B226="INS. ORSE",VLOOKUP(D226,'INS. ORSE'!A:D,4,0),IF(B226="COMP. ORSE",VLOOKUP(D226,'COMP. ORSE'!A:D,4,0))))) -> 17,21 | I226: 11.01
B227: COMP. SINAPI | C227: SINAPI | D227: 87445 | E227: Betoneira com capacidade de 400l. Motor Diesel de 7 HP. | F227: h | G227: 0.6 | H227: =IF(B227="COMP. SINAPI",VLOOKUP(D227,'COMP SINAPI'!G:K,5,0),IF(B227="INS. SINAPI",VLOOKUP(D227,'INS SINAPI'!A:E,5,0),IF(B227="INS. ORSE",VLOOKUP(D227,'INS. ORSE'!A:D,4,0),IF(B227="COMP. ORSE",VLOOKUP(D227,'COMP. ORSE'!A:D,4,0))))) -> 5,47 | I227: 3.28
B228: COMP. SINAPI | C228: SINAPI | D228: 88309 | E228: Pedreiro | F228: h | G228: 1.5 | H228: =IF(B228="COMP. SINAPI",VLOOKUP(D228,'COMP SINAPI'!G:K,5,0),IF(B228="INS. SINAPI",VLOOKUP(D228,'INS SINAPI'!A:E,5,0),IF(B228="INS. ORSE",VLOOKUP(D228,'INS. ORSE'!A:D,4,0),IF(B228="COMP. ORSE",VLOOKUP(D228,'COMP. ORSE'!A:D,4,0))))) -> 26,51 | I228: 39.76
B229: COMP. SINAPI | C229: SINAPI | D229: 88316 | E229: Servente | F229: h | G229: 4.5 | H229: =IF(B229="COMP. SINAPI",VLOOKUP(D229,'COMP SINAPI'!G:K,5,0),IF(B229="INS. SINAPI",VLOOKUP(D229,'INS SINAPI'!A:E,5,0),IF(B229="INS. ORSE",VLOOKUP(D229,'INS. ORSE'!A:D,4,0),IF(B229="COMP. ORSE",VLOOKUP(D229,'COMP. ORSE'!A:D,4,0))))) -> 21,28 | I229: 95.76
F230: Sub total: | I230: =SUM(I219:I229) -> 718.85
G231: BDI | H231: =BDI!$D$27 -> 0.2364 | I231: =TRUNC(I230*H231,2) -> 169.93
F232: =B216 -> CPU-20 | G232: PREÇO UNITÁRIO TOTAL: | I232: =TRUNC(I230+I231,2) -> 888.78
B234: CPU-21 | C234: FONTE | D234: Codevasf | E234: =UPPER("Fornecimento e instalação de Cap fêmea de ponta de tubo de 6 pol., para impedir contaminação do poço, inclusive anel de vedação e borracha") -> FORNECIMENTO E INSTALAÇÃO DE CAP FÊMEA DE PONTA DE TUBO DE 6 POL., PARA IMPEDIR CONTAMINAÇÃO DO POÇO, INCLUSIVE ANEL DE VEDAÇÃO E BORRACHA | F234: UNID | G234: COEF. | H234: PRECO UNITÁRIO (R$) | I234: TOTAL (R$)
B237: COMP. SINAPI | C237: SINAPI | D237: 88267 | E237: =IF(B237="COMP. SINAPI",VLOOKUP(D237,'COMP SINAPI'!G:K,2,0),IF(B237="INS. SINAPI",VLOOKUP(D237,'INS SINAPI'!A:E,2,0),IF(B237="INS. ORSE",VLOOKUP(D237,'INS. ORSE'!A:D,2,0),IF(B237="COMP. ORSE",VLOOKUP(D237,'COMP. ORSE'!A:D,2,0))))) -> ENCANADOR OU BOMBEIRO HIDRÁULICO COM ENCARGOS COMPLEMENTARES | F237: =IF(B237="COMP. SINAPI",VLOOKUP(D237,'COMP SINAPI'!G:K,3,0),IF(B237="INS. SINAPI",VLOOKUP(D237,'INS SINAPI'!A:E,3,0),IF(B237="INS. ORSE",VLOOKUP(D237,'INS. ORSE'!A:D,3,0),IF(B237="COMP. ORSE",VLOOKUP(D237,'COMP. ORSE'!A:D,3,0))))) -> H | G237: 0.2 | H237: =IF(B237="COMP. SINAPI",VLOOKUP(D237,'COMP SINAPI'!G:K,5,0),IF(B237="INS. SINAPI",VLOOKUP(D237,'INS SINAPI'!A:E,5,0),IF(B237="INS. ORSE",VLOOKUP(D237,'INS. ORSE'!A:D,4,0),IF(B237="COMP. ORSE",VLOOKUP(D237,'COMP. ORSE'!A:D,4,0))))) -> 25,76 | I237: =TRUNC(G237*H237,2) -> 5.15
B238: INS. ORSE | C238: ORSE | D238: 5128 | E238: =IF(B238="COMP. SINAPI",VLOOKUP(D238,'COMP SINAPI'!G:K,2,0),IF(B238="INS. SINAPI",VLOOKUP(D238,'INS SINAPI'!A:E,2,0),IF(B238="INS. ORSE",VLOOKUP(D238,'INS. ORSE'!A:D,2,0),IF(B238="COMP. ORSE",VLOOKUP(D238,'COMP. ORSE'!A:D,2,0))))) -> TAMPA DE POÇO GALVANIZADA EM 6POL | F238: =IF(B238="COMP. SINAPI",VLOOKUP(D238,'COMP SINAPI'!G:K,3,0),IF(B238="INS. SINAPI",VLOOKUP(D238,'INS SINAPI'!A:E,3,0),IF(B238="INS. ORSE",VLOOKUP(D238,'INS. ORSE'!A:D,3,0),IF(B238="COMP. ORSE",VLOOKUP(D238,'COMP. ORSE'!A:D,3,0))))) -> UN | G238: 1 | H238: =IF(B238="COMP. SINAPI",VLOOKUP(D238,'COMP SINAPI'!G:K,5,0),IF(B238="INS. SINAPI",VLOOKUP(D238,'INS SINAPI'!A:E,5,0),IF(B238="INS. ORSE",VLOOKUP(D238,'INS. ORSE'!A:D,4,0),IF(B238="COMP. ORSE",VLOOKUP(D238,'COMP. ORSE'!A:D,4,0))))) -> 107.28 | I238: =TRUNC(G238*H238,2) -> 107.28
F239: Sub total: | I239: =SUM(I237:I238) -> 112.43
G240: BDI | H240: =BDI!$D$27 -> 0.2364 | I240: =TRUNC(I239*H240,2) -> 26.57
F241: =B234 -> CPU-21 | G241: PREÇO UNITÁRIO TOTAL: | I241: =TRUNC(I239+I240,2) -> 139
B244: CPU-37 | C244: FONTE | D244: Codevasf | E244: =UPPER("Fornecimento e instalação de Tubo PVC Geo mecanico LEVE DN de 4'' com luvas e rosca.") -> FORNECIMENTO E INSTALAÇÃO DE TUBO PVC GEO MECANICO LEVE DN DE 4'' COM LUVAS E ROSCA. | F244: M | G244: COEF. | H244: PRECO UNITÁRIO (R$) | I244: TOTAL (R$)
B247: INS. SINAPI | C247: SINAPI | D247: 9854 | E247: Tubo PVC Geomecânico STD em DN de 4" | F247: m | G247: 1 | H247: =IF(B247="COMP. SINAPI",VLOOKUP(D247,'COMP SINAPI'!G:K,5,0),IF(B247="INS. SINAPI",VLOOKUP(D247,'INS SINAPI'!A:E,5,0),IF(B247="INS. ORSE",VLOOKUP(D247,'INS. ORSE'!A:D,4,0),IF(B247="COMP. ORSE",VLOOKUP(D247,'COMP. ORSE'!A:D,4,0))))) -> 115,12 | I247: =ROUND(G247*H247,2) -> 115.12
B248: INS. SINAPI | C248: SINAPI | D248: 4221 | E248: Óleo diesel | F248: l | G248: 0.2 | H248: =IF(B248="COMP. SINAPI",VLOOKUP(D248,'COMP SINAPI'!G:K,5,0),IF(B248="INS. SINAPI",VLOOKUP(D248,'INS SINAPI'!A:E,5,0),IF(B248="INS. ORSE",VLOOKUP(D248,'INS. ORSE'!A:D,4,0),IF(B248="COMP. ORSE",VLOOKUP(D248,'COMP. ORSE'!A:D,4,0))))) -> 6,18 | I248: 1.24
B249: INS. SINAPI | C249: SINAPI | D249: 4227 | E249: Óleo lubrificante | F249: l | G249: 0.03 | H249: =IF(B249="COMP. SINAPI",VLOOKUP(D249,'COMP SINAPI'!G:K,5,0),IF(B249="INS. SINAPI",VLOOKUP(D249,'INS SINAPI'!A:E,5,0),IF(B249="INS. ORSE",VLOOKUP(D249,'INS. ORSE'!A:D,4,0),IF(B249="COMP. ORSE",VLOOKUP(D249,'COMP. ORSE'!A:D,4,0))))) -> 37,50 | I249: 1.13
B250: COMP. SINAPI | C250: SINAPI | D250: 88316 | E250: SERVENTE COM ENCARGOS COMPLEMENTARES | F250: h | G250: 0.75 | H250: =IF(B250="COMP. SINAPI",VLOOKUP(D250,'COMP SINAPI'!G:K,5,0),IF(B250="INS. SINAPI",VLOOKUP(D250,'INS SINAPI'!A:E,5,0),IF(B250="INS. ORSE",VLOOKUP(D250,'INS. ORSE'!A:D,4,0),IF(B250="COMP. ORSE",VLOOKUP(D250,'COMP. ORSE'!A:D,4,0))))) -> 21,28 | I250: 15.96
B251: COMP. SINAPI | C251: SINAPI | D251: 90776 | E251: Encarregado | F251: h | G251: 0.75 | H251: =IF(B251="COMP. SINAPI",VLOOKUP(D251,'COMP SINAPI'!G:K,5,0),IF(B251="INS. SINAPI",VLOOKUP(D251,'INS SINAPI'!A:E,5,0),IF(B251="INS. ORSE",VLOOKUP(D251,'INS. ORSE'!A:D,4,0),IF(B251="COMP. ORSE",VLOOKUP(D251,'COMP. ORSE'!A:D,4,0))))) -> 38,89 | I251: 29.17
F252: Sub total: | I252: =SUM(I247:I251) -> 162.62
G253: BDI | H253: =BDI!$D$27 -> 0.2364 | I253: =ROUND(I252*H253,2) -> 38.44
F254: =B244 -> CPU-37 | G254: PREÇO UNITÁRIO TOTAL: | I254: =TRUNC(I252+I253,2) -> 201.06
B256: CPU-38 | C256: FONTE | D256: Codevasf | E256: =UPPER("Fornecimento e instalação de Filtro Geomecanico LEVE DN de 4'' com luvas e rosca.") -> FORNECIMENTO E INSTALAÇÃO DE FILTRO GEOMECANICO LEVE DN DE 4'' COM LUVAS E ROSCA. | F256: M | G256: COEF. | H256: PRECO UNITÁRIO (R$) | I256: TOTAL (R$)
B259: ORSE | C259: ORSE | D259: 5090 | E259: Filtro PVC Geomecânico STD em DN de 4" | F259: m | G259: 1 | H259: 127.46 | I259: =ROUND(G259*H259,2) -> 127.46
B260: INS. SINAPI | C260: SINAPI | D260: 4221 | E260: Óleo diesel | F260: l | G260: 0.2 | H260: =IF(B260="COMP. SINAPI",VLOOKUP(D260,'COMP SINAPI'!G:K,5,0),IF(B260="INS. SINAPI",VLOOKUP(D260,'INS SINAPI'!A:E,5,0),IF(B260="INS. ORSE",VLOOKUP(D260,'INS. ORSE'!A:D,4,0),IF(B260="COMP. ORSE",VLOOKUP(D260,'COMP. ORSE'!A:D,4,0))))) -> 6,18 | I260: 1.24
B261: INS. SINAPI | C261: SINAPI | D261: 4227 | E261: Óleo lubrificante | F261: l | G261: 0.03 | H261: =IF(B261="COMP. SINAPI",VLOOKUP(D261,'COMP SINAPI'!G:K,5,0),IF(B261="INS. SINAPI",VLOOKUP(D261,'INS SINAPI'!A:E,5,0),IF(B261="INS. ORSE",VLOOKUP(D261,'INS. ORSE'!A:D,4,0),IF(B261="COMP. ORSE",VLOOKUP(D261,'COMP. ORSE'!A:D,4,0))))) -> 37,50 | I261: 1.13
B262: COMP. SINAPI | C262: SINAPI | D262: 88309 | E262: Pedreiro | F262: h | G262: 0.6 | H262: =IF(B262="COMP. SINAPI",VLOOKUP(D262,'COMP SINAPI'!G:K,5,0),IF(B262="INS. SINAPI",VLOOKUP(D262,'INS SINAPI'!A:E,5,0),IF(B262="INS. ORSE",VLOOKUP(D262,'INS. ORSE'!A:D,4,0),IF(B262="COMP. ORSE",VLOOKUP(D262,'COMP. ORSE'!A:D,4,0))))) -> 26,51 | I262: 15.91
B263: COMP. SINAPI | C263: SINAPI | D263: 88316 | E263: Servente | F263: h | G263: 0.6 | H263: =IF(B263="COMP. SINAPI",VLOOKUP(D263,'COMP SINAPI'!G:K,5,0),IF(B263="INS. SINAPI",VLOOKUP(D263,'INS SINAPI'!A:E,5,0),IF(B263="INS. ORSE",VLOOKUP(D263,'INS. ORSE'!A:D,4,0),IF(B263="COMP. ORSE",VLOOKUP(D263,'COMP. ORSE'!A:D,4,0))))) -> 21,28 | I263: 12.77
F264: Sub total: | I264: =SUM(I259:I263) -> 158.51
G265: BDI | H265: =BDI!$D$27 -> 0.2364 | I265: =ROUND(I264*H265,2) -> 37.47
F266: =B256 -> CPU-38 | G266: PREÇO UNITÁRIO TOTAL: | I266: =TRUNC(I264+I265,2) -> 195.98
B268: CPU-39 | C268: FONTE | D268: Codevasf | E268: =UPPER("Fornecimento e instalação de Cap PVC geomecânico LEVE. em DN 4'' para vedação do fundo do filtro, inclusive anel de vedação e borracha.") -> FORNECIMENTO E INSTALAÇÃO DE CAP PVC GEOMECÂNICO LEVE. EM DN 4'' PARA VEDAÇÃO DO FUNDO DO FILTRO, INCLUSIVE ANEL DE VEDAÇÃO E BORRACHA. | F268: UNID | G268: COEF. | H268: PRECO UNITÁRIO (R$) | I268: TOTAL (R$)
B271: ORSE | C271: ORSE | D271: 5117 | E271: Cap PVC geomecânico STD. DN 4". | F271: unid | G271: 1 | H271: 340.49 | I271: =ROUND(G271*H271,2) -> 340.49
B272: INS. SINAPI | C272: SINAPI | D272: 4227 | E272: Lubrificante. | F272: l | G272: 0.01 | H272: =IF(B272="COMP. SINAPI",VLOOKUP(D272,'COMP SINAPI'!G:K,5,0),IF(B272="INS. SINAPI",VLOOKUP(D272,'INS SINAPI'!A:E,5,0),IF(B272="INS. ORSE",VLOOKUP(D272,'INS. ORSE'!A:D,4,0),IF(B272="COMP. ORSE",VLOOKUP(D272,'COMP. ORSE'!A:D,4,0))))) -> 37,50 | I272: 0.38
B273: INS. SINAPI | C273: SINAPI | D273: 311 | E273: Anel de Borracha de 4". | F273: un | G273: 1 | H273: =IF(B273="COMP. SINAPI",VLOOKUP(D273,'COMP SINAPI'!G:K,5,0),IF(B273="INS. SINAPI",VLOOKUP(D273,'INS SINAPI'!A:E,5,0),IF(B273="INS. ORSE",VLOOKUP(D273,'INS. ORSE'!A:D,4,0),IF(B273="COMP. ORSE",VLOOKUP(D273,'COMP. ORSE'!A:D,4,0))))) -> 13,39 | I273: 13.39
B274: COMP. SINAPI | C274: SINAPI | D274: 88309 | E274: Pedreiro | F274: h | G274: 0.6 | H274: =IF(B274="COMP. SINAPI",VLOOKUP(D274,'COMP SINAPI'!G:K,5,0),IF(B274="INS. SINAPI",VLOOKUP(D274,'INS SINAPI'!A:E,5,0),IF(B274="INS. ORSE",VLOOKUP(D274,'INS. ORSE'!A:D,4,0),IF(B274="COMP. ORSE",VLOOKUP(D274,'COMP. ORSE'!A:D,4,0))))) -> 26,51 | I274: 15.91
... 335 more rows

Sheet ENCARGOS SOCIAIS

Sheet BDI
A3: DETALHAMENTO DO BDI - SERVIÇOS
A4: NÃO DESONERADO
A5: Item | B5: Descrição dos serviços | C5: Preço de Venda (%) | D5: Custo Direto (%)
A7: 1 | B7: Administração Central (A) | D7: 0.0493
A9: 2 | B9: Impostos e Taxas (I) | C9: =SUM(C10:C13) -> 0.0665
A10: 2.1 | B10: ISS | C10: 0.03
A11: 2.2 | B11: PIS | C11: 0.0065
A12: 2.3 | B12: Cofins | C12: 0.03
A13: 2.4 | B13: CPRB | C13: 0
A15: 3 | B15: Risco, seguro e garantia (R) | D15: =SUM(D16:D17) -> 0.0188
A16: 3.1 | B16: Risco | D16: 0.0139
A17: 3.2 | B17: Seguro + Garantia | D17: 0.0049
A19: 4 | B19: Despesas Financeiras (DF) | D19: 0.0099
A21: 5 | B21: Lucro (L) | D21: 0.07
B23: BDI* (%) | D23: =((((1+D7+D15)*(1+D19)*(1+D21))/(1-C9)))-1 -> 0.2364
B27: BDI (%) - ADOTADO | D27: =D23 -> 0.2364
A29: AC = | B29: taxa de rateio da Administração Central | D29: =D7 -> 0.0493
A30: I = | B30: taxa de tributos | D30: =C9 -> 0.0665
A31: R = | B31: taxa de risco, seguro e garantia | D31: =D15 -> 0.0188
A32: DF = | B32: taxa das despesas financeiras | D32: =D19 -> 0.0099
A33: L = | B33: taxa de lucro | D33: =D21 -> 0.07

Sheet Memória de Cálculo
A6: Obra: | D6: =Resumo!D6 -> Perfuração e Instalação de Poços Tubulares Profundos
A8: ='Cristalino completo'!A8 -> Local: | D8: ='Cristalino completo'!D8 -> Comunidades difusas dos municípios inseridos na área de atuação da 3ª Superintendência Regional da Codevasf, no estado de Pernambuco.
A9: Total de poços a perfurar | E9: Cristalino
E10: 260
A11: Total de poços a instalar | E11: Bomba c/ Energia Solar | I11: =#REF! -> 
E12: =E10 -> 260
A13: Data Base Utilizada para Insumos: SINAPI Agosto/2023 Não Desonerado; ORSE Agosto/2023; Cotações; SICRO - Abril/2023 | E13: Valor Perfuração (R$)
E14: Instalação Motobomba c/ Sist. Solar (R$) | J14: =#REF!/E10 -> 
E15: Total das Obras
A16: =#REF! -> 
A17: Código | B17: ITEM | C17: COD | D17: DESCRIÇÃO DOS SERVIÇOS | E17: UNID. | F17: QUANT.
B19: 2 | D19: Poços Cristalinos - PERFURAÇÃO | G19: MEMÓRIA DE CÁLCULO
A20: COMPOSIÇÃO | B20: 2.1 | C20: CPU-07 | D20: =VLOOKUP(C20,[1]CPU!B:I,4,0) -> OBTENÇÃO E REGISTRO EM CARTÓRIO DE REGISTRO DE IMÓVEIS OU CARTÓRIO DE TÍTULOS E DOCUMENTOS DO TERMO DE CESSÃO DE USO | E20: =VLOOKUP(C20,[1]CPU!B:I,5,0) -> UNID | F20: ='Cristalino completo'!F20 -> 260 | G20: 1 unidade por poço x 260 poços
A21: COMPOSIÇÃO | B21: 2.2 | C21: CPU-08 | D21: =VLOOKUP(C21,[1]CPU!B:I,4,0) -> MONTAGEM, INSTALAÇÃO E DESINSTALAÇÃO DE SONDA | E21: =VLOOKUP(C21,[1]CPU!B:I,5,0) -> UNID | F21: ='Cristalino completo'!F21 -> 260 | G21: 1 unidade por poço x 260 poços
A22: COMPOSIÇÃO | B22: 2.3 | C22: CPU-09 | D22: =VLOOKUP(C22,[1]CPU!B:I,4,0) -> CAPINA E LIMPEZA MANUAL DE TERRENO | E22: =VLOOKUP(C22,[1]CPU!B:I,5,0) -> M² | F22: ='Cristalino completo'!F22 -> 1040 | G22: 4 m² por poço x 260 poços | H22: =F24+F25+#REF!+#REF! -> 
A23: COMPOSIÇÃO | B23: 2.4 | C23: CPU-10 | D23: =VLOOKUP(C23,[1]CPU!B:I,4,0) -> LOCAÇÃO, ACOMPANHAMENTO DA PERFURAÇÃO, TESTE DE VAZÃO E DA INSTALAÇÃO DO POÇO, POR PROFISSIONAL HABILITADO | E23: =VLOOKUP(C23,[1]CPU!B:I,5,0) -> UNID | F23: ='Cristalino completo'!F23 -> 260 | G23: 1 unidade por poço x 260 poços
A24: COMPOSIÇÃO | B24: 2.5 | C24: CPU-11 | D24: =VLOOKUP(C24,[1]CPU!B:I,4,0) -> PERFURAÇÃO EM ROCHA CRISTALINA ALTERADA/COMPACTADA DN 8" (POÇO 80M) | E24: =VLOOKUP(C24,[1]CPU!B:I,5,0) -> M | F24: ='Cristalino completo'!F24 -> 3640 | G24: 14 m por poço x 260 poços
A25: COMPOSIÇÃO | B25: 2.6 | C25: CPU-12 | D25: =VLOOKUP(C25,[1]CPU!B:I,4,0) -> PERFURAÇÃO EM ROCHA CRISTALINA ALTERADA/COMPACTADA DN 6" (POÇO 80M) | E25: =VLOOKUP(C25,[1]CPU!B:I,5,0) -> M | F25: ='Cristalino completo'!F25 -> 17160 | G25: 66 m por poço x 260 poços
A26: COMPOSIÇÃO | B26: 2.7 | C26: CPU-13 | D26: =VLOOKUP(C26,[1]CPU!B:I,4,0) -> FORNECIMENTO E INSTALAÇÃO DE REVESTIMENTO DO POÇO EM TUBO PVC GEOMECÂNICO LEVE EM DN DE 6'' COM LUVAS E ROSCA | E26: =VLOOKUP(C26,[1]CPU!B:I,5,0) -> M | F26: ='Cristalino completo'!F26 -> 3640 | G26: 14 m por poço x 260 poços
A27: COMPOSIÇÃO | B27: 2.9 | C27: CPU-14 | D27: =VLOOKUP(C27,[1]CPU!B:I,4,0) -> REALIZAÇÃO DE LIMPEZA, DESENVOLVIMENTO E ESTIMULAÇÃO DO POÇO, REALIZADO MEDIANTE A UTILIZAÇÃO DE COMPRESSOR DE AR PELO MÉTODO DE FLUXO E REFLUXO, INCLUINDO OPERAÇÃO E A INSTALAÇÃO DE COMPRESSOR DE AR | E27: =VLOOKUP(C27,[1]CPU!B:I,5,0) -> UNID | F27: ='Cristalino completo'!F27 -> 260 | G27: 1 unidade por poço x 260 poços
A28: COMPOSIÇÃO | B28: 2.10 | C28: CPU-15 | D28: =VLOOKUP(C28,[1]CPU!B:I,4,0) -> REALIZAÇÃO DE TESTE DE VAZÃO E DE BOMBEAMENTO DO POÇO, INCLUINDO OPERAÇÃO E INSTALAÇÃO DE MOTOBOMBA SUBMERSA E GRUPO GERADOR | E28: =VLOOKUP(C28,[1]CPU!B:I,5,0) -> UNID | F28: ='Cristalino completo'!F28 -> 260 | G28: 1 unidade por poço x 260 poços
A29: COMPOSIÇÃO | B29: 2.11 | C29: CPU-16 | D29: =VLOOKUP(C29,[1]CPU!B:I,4,0) -> REALIZAÇÃO DE DESINFECÇÃO DO POÇO, INCLUINDO MATERIAL DE LIMPEZA, INSTALAÇÃO E DESINSTALAÇÃO DE COMPRESSOR, COMBUSTÍVEL E OPERADOR. | E29: =VLOOKUP(C29,[1]CPU!B:I,5,0) -> UNID | F29: ='Cristalino completo'!F29 -> 260 | G29: 1 unidade por poço x 260 poços
A30: COMPOSIÇÃO | B30: 2.12 | C30: CPU-17 | D30: =VLOOKUP(C30,[1]CPU!B:I,4,0) -> ANÁLISE FÍSICO-QUÍMICA DA ÁGUA | E30: =VLOOKUP(C30,[1]CPU!B:I,5,0) -> UNID | F30: ='Cristalino completo'!F30 -> 260 | G30: 1 unidade por poço x 260 poços
A31: COMPOSIÇÃO | B31: 2.13 | C31: CPU-18 | D31: =VLOOKUP(C31,[1]CPU!B:I,4,0) -> ANÁLISE BACTERIOLÓGICA DA ÁGUA | E31: =VLOOKUP(C31,[1]CPU!B:I,5,0) -> UNID | F31: ='Cristalino completo'!F31 -> 260 | G31: 1 unidade por poço x 260 poços
A32: COMPOSIÇÃO | B32: 2.14 | C32: CPU-19 | D32: =VLOOKUP(C32,[1]CPU!B:I,4,0) -> CIMENTAÇÃO ANELAR DO POÇO, COM ARGAMASSA DE CIMENTO E AREIA PRODUZIDA NO TRAÇO 1:3. | E32: =VLOOKUP(C32,[1]CPU!B:I,5,0) -> M³ | F32: ='Cristalino completo'!F32 -> 95.91 | G32: Preenchimento do espaço de 14 m da parede do poço 8" e o revestimento de 6", para os 260 poços, e 56 m entre a parede do poço 6" e o revestimento 4", descontado filtro (10 m), para os 78 poços, quando aplicável
A33: COMPOSIÇÃO | B33: 2.15 | C33: CPU-20 | D33: =VLOOKUP(C33,[1]CPU!B:I,4,0) -> CONSTRUÇÃO DE LAJE DE PROTEÇÃO SANITÁRIA FCK = 15 MPA, VIRADO EM BETONEIRA, INCLUINDO APLICAÇÃO E ADENSAMENTO, FORMA, ESCORAMENTO E FERRAGENS, NAS DIMENSÕES-1,5M X 1,5M X 0,10M, COM DECLIVIDADE DE PARA AS BORDAS, EM CONFORMIDADE COM A NBR 12212. | E33: =VLOOKUP(C33,[1]CPU!B:I,5,0) -> M³ | F33: ='Cristalino completo'!F33 -> 58.5 | G33: 1,5 m x 1,5 m x 0,1 m x 260 poços
A34: COMPOSIÇÃO | B34: 2.16 | C34: CPU-21 | D34: =VLOOKUP(C34,[1]CPU!B:I,4,0) -> FORNECIMENTO E INSTALAÇÃO DE CAP FÊMEA DE PONTA DE TUBO DE 6 POL., PARA IMPEDIR CONTAMINAÇÃO DO POÇO, INCLUSIVE ANEL DE VEDAÇÃO E BORRACHA | E34: =VLOOKUP(C34,[1]CPU!B:I,5,0) -> UNID | F34: ='Cristalino completo'!F34 -> 260 | G34: 1 unidade por poço x 260 poços
A35: COMPOSIÇÃO | B35: 2.17 | C35: CPU-36 | D35: =VLOOKUP(C35,[1]CPU!B:I,4,0) -> FORNECIMENTO E INSTALAÇÃO DE PRÉ-FILTRO PREENCHIDO COM MATERIAL QUARTZOSO PREVIAMENTE LAVADO, PENEIRADO E SELECIONADO COM GRANULOMETRIA VARIÁVEL DE 2 - 4 MM EM CONFORMIDADE COM NBR 12244. | E35: =VLOOKUP(C35,[1]CPU!B:I,5,0) -> M³ | F35: ='Cristalino completo'!F35 -> 7.9 | G35: Preenchimento espaço entre filtro 4" (item 2.19) e a parede do poço 6"
A36: COMPOSIÇÃO | B36: 2.18 | C36: CPU-37 | D36: =VLOOKUP(C36,[1]CPU!B:I,4,0) -> FORNECIMENTO E INSTALAÇÃO DE TUBO PVC GEO MECANICO LEVE DN DE 4'' COM LUVAS E ROSCA. | E36: =VLOOKUP(C36,[1]CPU!B:I,5,0) -> M | F36: ='Cristalino completo'!F36 -> 5460 | G36: Estimativa de necessidade de uso em 30% dos poços (78 poços), 70 m por poço
A37: COMPOSIÇÃO | B37: 2.19 | C37: CPU-38 | D37: =VLOOKUP(C37,[1]CPU!B:I,4,0) -> FORNECIMENTO E INSTALAÇÃO DE FILTRO GEOMECANICO LEVE DN DE 4'' COM LUVAS E ROSCA. | E37: =VLOOKUP(C37,[1]CPU!B:I,5,0) -> M | F37: ='Cristalino completo'!F37 -> 780 | G37: Estimativa de necessidade de uso em 30% dos poços (78 poços), 10 m por poço
A38: COMPOSIÇÃO | B38: 2.20 | C38: CPU-39 | D38: =VLOOKUP(C38,[1]CPU!B:I,4,0) -> FORNECIMENTO E INSTALAÇÃO DE CAP PVC GEOMECÂNICO LEVE. EM DN 4'' PARA VEDAÇÃO DO FUNDO DO FILTRO, INCLUSIVE ANEL DE VEDAÇÃO E BORRACHA. | E38: =VLOOKUP(C38,[1]CPU!B:I,5,0) -> UNID | F38: ='Cristalino completo'!F38 -> 78 | G38: Estimativa de necessidade de uso em 30% dos poços
B39: 4 | D39: Poços Cristalinos -Montagem e Instalação
A40: COMPOSIÇÃO | B40: 4.1 | C40: CPU-24 | D40: =VLOOKUP(C40,[1]CPU!B:I,4,0) -> FORNECIMENTO DE MATERIAL E INSTALAÇÃO DE RESERVATÓRIO EM FIBRA DE VIDRO COM CAPACIDADE DE 5.000L | E40: =VLOOKUP(C40,[1]CPU!B:I,5,0) -> UNID | F40: ='Cristalino completo'!F40 -> 260 | G40: 1 unidade por poço x 260 poços
A41: COMPOSIÇÃO | B41: 4.2 | C41: CPU-09 | D41: =VLOOKUP(C41,[1]CPU!B:I,4,0) -> CAPINA E LIMPEZA MANUAL DE TERRENO | E41: =VLOOKUP(C41,[1]CPU!B:I,5,0) -> M² | F41: ='Cristalino completo'!F41 -> 10400 | G41: 40 m² por poço x 260 unidades
A42: COMPOSIÇÃO | B42: 4.3 | C42: CPU-25 | D42: =VLOOKUP(C42,[1]CPU!B:I,4,0) -> ESCAVAÇÃO MANUAL DE VALA COM PROFUNDIDADE MENOR OU IGUAL A 1,30 M (0,40 M PROF. X 0,30 M LARG.) AF_02/2021 | E42: =VLOOKUP(C42,[1]CPU!B:I,5,0) -> M³ | F42: ='Cristalino completo'!F42 -> 3120 | G42: 13.000 m de tubulação 50 mm + 13.000 m tubulação 32 mm x 0,40 m prof. x 0,30 m larg.
A43: COMPOSIÇÃO | B43: 4.4 | C43: CPU-26 | D43: =VLOOKUP(C43,[1]CPU!B:I,4,0) -> EXECUÇÃO DE BASE DE SUSTENTAÇÃO DO RESERVATÓRIO EM CONCRETO ARMADO, DIÂMETRO DE 2,06M E ALTURA DE 1,10M | E43: =VLOOKUP(C43,[1]CPU!B:I,5,0) -> UNID | F43: ='Cristalino completo'!F43 -> 260 | G43: 1 unidade por poço x 260 poços
A44: COMPOSIÇÃO | B44: 4.5 | C44: CPU-27 | D44: =VLOOKUP(C44,[1]CPU!B:I,4,0) -> REATERRO MANUAL DE VALAS OU ÁREAS, COM ESPALHAMENTO E COMPACTAÇÃO, UTILIZANDO COMPACTADOR À PERCUSSÃO SAPINHO, SEM CONTROLE DO GRAU DE COMPACTAÇÃO | E44: =VLOOKUP(C44,[1]CPU!B:I,5,0) -> M³ | F44: ='Cristalino completo'!F44 -> 3084.02 | G44: reaterro escavação (item 4.3) descontado diâmetro tubos
A45: COMPOSIÇÃO | B45: 4.6 | C45: CPU-28 | D45: =VLOOKUP(C45,[1]CPU!B:I,4,0) -> FORNECIMENTO E ASSENTAMENTO DE TUBO PVC D=50MM | E45: =VLOOKUP(C45,[1]CPU!B:I,5,0) -> M | F45: ='Cristalino completo'!F45 -> 13000 | G45: 50 m por poço x 260 poços, ligação entre poço e reservatório
A46: COMPOSIÇÃO | B46: 4.7 | C46: CPU-29 | D46: =VLOOKUP(C46,[1]CPU!B:I,4,0) -> FORNECIMENTO E ASSENTAMENTO DE TUBO DE PVC D=32MM | E46: =VLOOKUP(C46,[1]CPU!B:I,5,0) -> M | F46: ='Cristalino completo'!F46 -> 13000 | G46: 50 m por poço x 260 poços, ligação entre reservatório e bebedouro
A47: COMPOSIÇÃO | B47: 4.8 | C47: CPU-30 | D47: =VLOOKUP(C47,[1]CPU!B:I,4,0) -> EXECUÇÃO DE BEBEDOURO EM CONCRETO ARMADO, INCLUINDO A INSTALAÇÃO HIDRÁULICA. | E47: =VLOOKUP(C47,[1]CPU!B:I,5,0) -> UNID | F47: ='Cristalino completo'!F47 -> 260 | G47: 1 unidade por poço x 260 poços
A48: COMPOSIÇÃO | B48: 4.9 | C48: CPU-31 | D48: =VLOOKUP(C48,[1]CPU!B:I,4,0) -> FORNECIMENTO E MONTAGEM DE CERCA DE PROTEÇÃO CONSTRUÍDA COM MOURÕES DE CONCRETO ARMADO (H=2,5 M), COM 7 FIOS DE ARAME FARPADO, INCLUINDO ESTICADOR, CHUMBAMENTO E ARAME DE FIXAÇÃO | E48: =VLOOKUP(C48,[1]CPU!B:I,5,0) -> M | F48: ='Cristalino completo'!F48 -> 6370 | G48: 24,5 m perímetro por poço x 260 poços
A49: COMPOSIÇÃO | B49: 4.12 | C49: CPU-34 | D49: =VLOOKUP(C49,[1]CPU!B:I,4,0) -> PINTURA DE LETREIRO | E49: =VLOOKUP(C49,[1]CPU!B:I,5,0) -> UNID | F49: ='Cristalino completo'!F49 -> 260 | G49: 1 unidade por poço x 260 poços
A50: COMPOSIÇÃO | B50: 4.13 | C50: CPU-35 | D50: =VLOOKUP(C50,[1]CPU!B:I,4,0) -> FORNECIMENTO, MONTAGEM E INSTALAÇÃO DE PORTÃO DE FERRO TUBULAR, TELA EM AÇO GALVANIZADO, DOBRADIÇAS E FECHADURA PARA PASSAGEM DE PEDESTRE, MEDINDO 1,80M X 1,10M, INCLUINDO MOURÃO DE SUSTENTAÇÃO. | E50: =VLOOKUP(C50,[1]CPU!B:I,5,0) -> UNID | F50: ='Cristalino completo'!F50 -> 260 | G50: 1 unidade por poço x 260 poços
B51: 4.1 | D51: Sistema de bombeamento com energia solar - Poços Cristalinos
A52: composição | B52: 4.1.1 | C52: CPU-22 | D52: =VLOOKUP(C52,[1]CPU!B:I,4,0) -> FORNECIMENTO DE KIT PARA BOMBEAMENTO COM SUPRIMENTO POR ENERGIA SOLAR - SISTEMA GRID 1 | E52: =VLOOKUP(C52,[1]CPU!B:I,5,0) -> UNID | F52: ='Cristalino completo'!F52 -> 260 | G52: 1 unidade por poço x 260 poços
A53: composição | B53: 4.1.2 | C53: CPU-23 | D53: =VLOOKUP(C53,[1]CPU!B:I,4,0) -> INSTALAÇÃO DE BOMBA SUBMERSA COM MOTOR E BOMBA INOX, VAZÃO 2M³/H, AMT 80MCA 0,75CV, MONOFÁSICA, 220V, MULTIESTÁGIO DS=4 POL, COM QUADRO DE COMANDO PARA BOMBA SUBMERSA | E53: =VLOOKUP(C53,[1]CPU!B:I,5,0) -> UNID | F53: ='Cristalino completo'!F53 -> 260 | G53: 1 unidade por poço x 260 poços

Sheet INS SICRO
A1: CGCIT | B1: SISTEMA DE CUSTOS REFERENCIAIS DE OBRAS - SICRO | G1: DNIT
A3: Pernambuco - Abril/2023
A4: Sem desoneração
A6: Código | B6: Descrição | C6: Unidade | D6: Salário (R$) | E6: Encargos Totais | F6: Custo (R$) | G6: Periculosidade/ Insalubridade
A7: P9801 | B7: Ajudante | C7: h | D7: 6.8879 | E7: 2.067394 | F7: 21.1279 | G7: 0
A8: P9802 | B8: Ajudante especializado | C8: h | D8: 8.2142 | E8: 2.017127 | F8: 24.7832 | G8: 0
A9: P9803 | B9: Almoxarife | C9: mês | D9: 2582.8 | E9: 1.220953 | F9: 5736.2774 | G9: 0
A10: P9804 | B10: Apontador | C10: mês | D10: 1953.6 | E10: 1.37631 | F10: 4642.3592 | G10: 0
A11: P9805 | B11: Armador | C11: h | D11: 10.25 | E11: 1.75223 | F11: 28.2103 | G11: 0
A12: P9806 | B12: Auxiliar administrativo | C12: mês | D12: 1953.6 | E12: 1.37159 | F12: 4633.1382 | G12: 0
A13: P9807 | B13: Bombeiro hidráulico | C13: h | D13: 10.772 | E13: 1.805628 | F13: 30.2222 | G13: 0
A14: P9808 | B14: Carpinteiro | C14: h | D14: 8.88 | E14: 1.854801 | F14: 25.3506 | G14: 0
A15: P9809 | B15: Encarregado administrativo | C15: mês | D15: 3814.417 | E15: 0.972263 | F15: 7523.0335 | G15: 0
A16: P9810 | B16: Eletricista | C16: h | D16: 10.2874 | E16: 1.813187 | F16: 28.9403 | G16: 0
A17: P9811 | B17: Encarregado especializado | C17: mês | D17: 3572.7672 | E17: 1.014049 | F17: 7195.7282 | G17: 0
A18: P9812 | B18: Engenheiro | C18: mês | D18: 12570.149 | E18: 0.82518 | F18: 22942.7845 | G18: 0
A19: P9814 | B19: Operacional | C19: mês | D19: 1432.3199 | E19: 1.506466 | F19: 3590.0611 | G19: 0
A20: P9815 | B20: Jardineiro | C20: h | D20: 7.75 | E20: 1.969929 | F20: 23.0169 | G20: 0
A21: P9819 | B21: Engenheiro supervisor | C21: mês | D21: 12570.149 | E21: 0.82518 | F21: 22942.7845 | G21: 0
A22: P9821 | B22: Pedreiro | C22: h | D22: 8.88 | E22: 1.852876 | F22: 25.3335 | G22: 0
A23: P9822 | B23: Pintor | C23: h | D23: 10.25 | E23: 1.764677 | F23: 28.3379 | G23: 0
A24: P9823 | B24: Serralheiro | C24: h | D24: 9.3101 | E24: 1.824692 | F24: 26.2981 | G24: 0
A25: P9824 | B25: Servente | C25: h | D25: 6.7 | E25: 2.09222 | F25: 20.7178 | G25: 0
A26: P9825 | B26: Soldador | C26: h | D26: 12.2767 | E26: 1.653255 | F26: 32.5732 | G26: 0
A27: P9826 | B27: Chefe setor de finanças | C27: mês | D27: 7889.6392 | E27: 0.874471 | F27: 14788.8998 | G27: 0
A28: P9827 | B28: Vigia | C28: mês | D28: 1391.4995 | E28: 1.843341 | F28: 4373.9574 | G28: 0.3
A29: P9830 | B29: Montador | C29: h | D29: 10.2723 | E29: 1.838015 | F29: 29.1529 | G29: 0
A30: P9833 | B30: Auxiliar de laboratório | C30: mês | D30: 2255 | E30: 1.281238 | F30: 5144.1916 | G30: 0
A31: P9836 | B31: Geólogo | C31: h | D31: 53.0587 | E31: 1.188601 | F31: 116.1243 | G31: 0
A32: P9837 | B32: Oceanógrafo | C32: mês | D32: 4408.8627 | E32: 0.999965 | F32: 8817.571 | G32: 0
A33: P9840 | B33: Encarregado geral | C33: mês | D33: 5248.407 | E33: 0.93096 | F33: 10134.4639 | G33: 0
A34: P9842 | B34: Faxineiro | C34: mês | D34: 1377.2 | E34: 1.636689 | F34: 3631.248 | G34: 0
A35: P9843 | B35: Operador de equipamento leve | C35: h | D35: 8.88 | E35: 1.833131 | F35: 25.1582 | G35: 0
A36: P9844 | B36: Capitão fluvial | C36: mês | D36: 5937.7022 | E36: 0.934517 | F36: 11486.5858 | G36: 0
A37: P9845 | B37: Operador de equipamento pesado | C37: h | D37: 11.74 | E37: 1.652132 | F37: 31.136 | G37: 0
A38: P9846 | B38: Operador de equipamento especial | C38: h | D38: 14.44 | E38: 1.53309 | F38: 36.5778 | G38: 0
A39: P9847 | B39: Perfurador de tubulão | C39: h | D39: 6.8461 | E39: 2.066431 | F39: 20.993 | G39: 0
A40: P9848 | B40: Desenhista | C40: mês | D40: 2830.9126 | E40: 1.145553 | F40: 6073.873 | G40: 0
A41: P9849 | B41: Condutor maquinista fluvial | C41: mês | D41: 2146.73 | E41: 1.253845 | F41: 4838.3966 | G41: 0
A42: P9850 | B42: Copeiro | C42: mês | D42: 1504.8 | E42: 1.527063 | F42: 3802.7244 | G42: 0
A43: P9851 | B43: Médico do trabalho | C43: mês | D43: 9843.5398 | E43: 0.844135 | F43: 18152.8162 | G43: 0
A44: P9852 | B44: Blaster | C44: h | D44: 9.8999 | E44: 2.12771 | F44: 33.9339 | G44: 0.3
A45: P9853 | B45: Pré-marcador | C45: h | D45: 6.8452 | E45: 2.039366 | F45: 20.805 | G45: 0
A46: P9854 | B46: Recepcionista | C46: mês | D46: 1632.0016 | E46: 1.434933 | F46: 3973.8145 | G46: 0
A47: P9855 | B47: Marinheiro de máquinas | C47: mês | D47: 2001.6548 | E47: 1.289828 | F47: 4583.4452 | G47: 0
A48: P9856 | B48: Marinheiro de convés | C48: h | D48: 8.8933 | E48: 1.751391 | F48: 24.4689 | G48: 0
A49: P9857 | B49: Marinheiro de convés - mensalista | C49: mês | D49: 1956.5248 | E49: 1.301273 | F49: 4502.4976 | G49: 0
A50: P9858 | B50: Laboratorista | C50: mês | D50: 3176.8 | E50: 1.130709 | F50: 6768.8363 | G50: 0
A51: P9859 | B51: Trabalhador de via | C51: h | D51: 6.221 | E51: 2.183704 | F51: 19.8058 | G51: 0
A52: P9861 | B52: Selecionador de material pétreo | C52: h | D52: 6.8452 | E52: 2.051937 | F52: 20.8911 | G52: 0
A53: P9864 | B53: Engenheiro de segurança do trabalho | C53: mês | D53: 11149.0872 | E53: 0.839279 | F53: 20506.2819 | G53: 0
A54: P9865 | B54: Técnico em enfermagem | C54: mês | D54: 2911.9894 | E54: 1.178603 | F54: 6344.0688 | G54: 0
A55: P9866 | B55: Motorista de caminhão | C55: h | D55: 11.74 | E55: 1.635685 | F55: 30.9429 | G55: 0
A56: P9867 | B56: Técnico especializado - mensalista | C56: mês | D56: 3150.4021 | E56: 1.140486 | F56: 6743.3915 | G56: 0
A57: P9869 | B57: Encarregado de obras de artes especiais | C57: mês | D57: 3572.7672 | E57: 1.014049 | F57: 7195.7282 | G57: 0
A58: P9870 | B58: Motorista de veículo leve | C58: h | D58: 10.25 | E58: 1.714065 | F58: 27.8191 | G58: 0
A59: P9871 | B59: Motorista de veículo especial | C59: h | D59: 11.7483 | E59: 1.635301 | F59: 30.9603 | G59: 0
A60: P9875 | B60: Encarregado de turma | C60: mês | D60: 2295.995 | E60: 1.276366 | F60: 5226.5249 | G60: 0
A61: P9876 | B61: Técnico de segurança do trabalho | C61: mês | D61: 3093.2 | E61: 1.142388 | F61: 6626.8345 | G61: 0
A62: P9878 | B62: Secretária | C62: mês | D62: 2593.8973 | E62: 1.185133 | F62: 5668.0105 | G62: 0
A63: P9880 | B63: Piloto fluvial | C63: mês | D63: 3276.33 | E63: 1.080258 | F63: 6815.6116 | G63: 0
A64: P9882 | B64: Técnico especializado | C64: h | D64: 14.32 | E64: 1.55376 | F64: 36.5698 | G64: 0
A65: P9883 | B65: Chefe do setor administrativo | C65: mês | D65: 3814.411 | E65: 0.972263 | F65: 7523.0216 | G65: 0
A66: P9884 | B66: Encarregado de terraplenagem | C66: mês | D66: 3572.7672 | E66: 1.014049 | F66: 7195.7282 | G66: 0
A67: P9885 | B67: Frentista de túnel | C67: h | D67: 8.88 | E67: 1.892258 | F67: 25.6832 | G67: 0
A68: P9889 | B68: Técnico da qualidade | C68: mês | D68: 3433.6928 | E68: 1.031486 | F68: 6975.4988 | G68: 0
A69: P9891 | B69: Engenheiro mecânico | C69: mês | D69: 12633.3004 | E69: 0.828942 | F69: 23105.5737 | G69: 0
A70: P9892 | B70: Auxiliar de blaster | C70: h | D70: 8.2651 | E70: 2.266683 | F70: 29.4789 | G70: 0.3
A71: P9893 | B71: Encarregado de pavimentação | C71: mês | D71: 3572.7672 | E71: 1.014049 | F71: 7195.7282 | G71: 0
A72: P9896 | B72: Porteiro | C72: mês | D72: 1431.4407 | E72: 1.597809 | F72: 3718.6095 | G72: 0
A73: P9897 | B73: Técnico de meio ambiente | C73: mês | D73: 3429.5822 | E73: 1.027682 | F73: 6954.102 | G73: 0
A74: P9900 | B74: Comprador | C74: mês | D74: 3174.5236 | E74: 1.133783 | F74: 6773.7444 | G74: 0
A75: P9901 | B75: Encarregado de superestrutura ferroviária | C75: mês | D75: 3572.7672 | E75: 1.014049 | F75: 7195.7282 | G75: 0
A76: P9903 | B76: Auxiliar técnico | C76: mês | D76: 1704.9316 | E76: 1.448858 | F76: 4175.1353 | G76: 0
A77: P9907 | B77: Comandante de longo curso | C77: mês | D77: 14307.3935 | E77: 0.82956 | F77: 26176.2348 | G77: 0
A78: P9908 | B78: Imediato | C78: mês | D78: 9204.4566 | E78: 0.87084 | F78: 17220.0655 | G78: 0
A79: P9909 | B79: Oficial de náutica | C79: mês | D79: 2559.2555 | E79: 1.174634 | F79: 5565.444 | G79: 0
A80: P9910 | B80: Oficial de máquinas | C80: mês | D80: 3003.1723 | E80: 1.111844 | F80: 6342.2314 | G80: 0
A81: P9911 | B81: Condutor de máquinas | C81: mês | D81: 2146.73 | E81: 1.253845 | F81: 4838.3966 | G81: 0
A82: P9912 | B82: Capitão fluvial com periculosidade | C82: h | D82: 26.9895 | E82: 1.638889 | F82: 79.3191 | G82: 0.3
A83: P9913 | B83: Draguista | C83: mês | D83: 3595.3388 | E83: 1.051407 | F83: 7375.5031 | G83: 0
A84: P9915 | B84: Maquinista | C84: h | D84: 12.5669 | E84: 1.630902 | F84: 33.0622 | G84: 0
A85: P9916 | B85: Encarregado de conservação rodoviária | C85: mês | D85: 3572.7672 | E85: 1.014049 | F85: 7195.7282 | G85: 0
A86: P9920 | B86: Mestre fluvial | C86: mês | D86: 5937.7022 | E86: 0.934517 | F86: 11486.5858 | G86: 0
A87: P9921 | B87: Mergulhador raso autônomo de emergência | C87: h | D87: 9.0128 | E87: 2.534226 | F87: 34.2209 | G87: 0.2627
A88: P9922 | B88: Mergulhador raso dependente de emergência | C88: h | D88: 8.9931 | E88: 2.618729 | F88: 35.2415 | G88: 0.3
A89: P9924 | B89: Mergulhador raso dependente | C89: h | D89: 8.9931 | E89: 4.101611 | F89: 48.5772 | G89: 0.3
A90: P9925 | B90: Mergulhador raso autônomo | C90: h | D90: 9.0128 | E90: 3.681142 | F90: 44.5578 | G90: 0.2627
A91: P9926 | B91: Mergulhador raso auxiliar de superfície | C91: h | D91: 9.0128 | E91: 2.282251 | F91: 31.9499 | G91: 0.2627
A92: P9927 | B92: Frentista de túnel com periculosidade | C92: h | D92: 8.88 | E92: 2.219798 | F92: 31.2558 | G92: 0.3
A93: P9928 | B93: Servente com periculosidade | C93: h | D93: 6.7 | E93: 2.41976 | F93: 24.9223 | G93: 0.3
A94: P9929 | B94: Bombeiro hidráulico com periculosidade | C94: h | D94: 10.772 | E94: 2.133498 | F94: 36.9856 | G94: 0.3
A95: P9930 | B95: Eletricista com periculosidade | C95: h | D95: 10.2874 | E95: 2.140875 | F95: 35.3976 | G95: 0.3
A96: P9931 | B96: Operador de equipamento de mergulho | C96: h | D96: 16.6882 | E96: 1.815353 | F96: 49.3512 | G96: 0.1419
A97: P9932 | B97: Operador de equipamento pesado com periculosidade | C97: h | D97: 11.74 | E97: 1.979612 | F97: 38.5026 | G97: 0.3
A98: P9933 | B98: Supervisor de mergulho raso | C98: mês | D98: 3671.3967 | E98: 1.334482 | F98: 9091.7807 | G98: 0.1419
A99: P9934 | B99: Motorista de veículo especial com periculosidade | C99: h | D99: 11.7483 | E99: 1.962962 | F99: 38.3342 | G99: 0.3
A100: P9938 | B100: Operador de equipamento leve com periculosidade | C100: h | D100: 8.88 | E100: 2.160611 | F100: 30.7302 | G100: 0.3
A101: P9939 | B101: Operador de equipamento leve com insalubridade | C101: h | D101: 8.88 | E101: 2.339711 | F101: 32.024 | G101: 0.2666
A102: P9940 | B102: Piloto fluvial com periculosidade | C102: h | D102: 14.8924 | E102: 1.814583 | F102: 46.3836 | G102: 0.3
A103: P9941 | B103: Mestre fluvial com periculosidade | C103: h | D103: 26.9895 | E103: 1.638889 | F103: 79.3191 | G103: 0.3
A104: P9942 | B104: Marinheiro de convés com periculosidade | C104: h | D104: 8.8933 | E104: 2.079893 | F104: 30.0584 | G104: 0.3
A105: P9943 | B105: Técnico de batimetria com periculosidade | C105: h | D105: 11.6521 | E105: 1.924869 | F105: 37.5764 | G105: 0.3
A106: P9944 | B106: Operador de equipamento especial com periculosidade | C106: h | D106: 14.44 | E106: 1.86057 | F106: 45.6386 | G106: 0.3
A107: P9945 | B107: Draguista com periculosidade | C107: h | D107: 16.3424 | E107: 1.779803 | F107: 50.3313 | G107: 0.3
A108: P9946 | B108: Engenheiro auxiliar | C108: mês | D108: 11067 | E108: 0.834536 | F108: 20302.8099 | G108: 0
A109: P9947 | B109: Técnico florestal | C109: mês | D109: 3429.5822 | E109: 1.027682 | F109: 6954.102 | G109: 0
A110: P9948 | B110: Motorista de veículo leve - mensalista | C110: mês | D110: 2255 | E110: 1.272852 | F110: 5125.2812 | G110: 0
A111: P9949 | B111: Topógrafo | C111: mês | D111: 3825.8 | E111: 1.002749 | F111: 7662.1171 | G111: 0
A112: P9950 | B112: Auxiliar de topografia | C112: mês | D112: 2255 | E112: 1.291648 | F112: 5167.6662 | G112: 0
A113: P9951 | B113: Médico de câmara hiperbárica | C113: mês | D113: 9843.5398 | E113: 1.034489 | F113: 20547.2966 | G113: 0.0529
A114: P9952 | B114: Pedreiro - mensalista | C114: mês | D114: 1953.6 | E114: 1.390127 | F114: 4669.3521 | G114: 0
A115: P9953 | B115: Eletricista - mensalista | C115: mês | D115: 2263.2083 | E115: 1.357579 | F115: 5335.6923 | G115: 0
A116: P9954 | B116: Servente - mensalista | C116: mês | D116: 1474 | E116: 1.589845 | F116: 3817.4315 | G116: 0
A117: P9955 | B117: Engenheiro chefe | C117: mês | D117: 16619.4923 | E117: 0.808397 | F117: 30054.64 | G117: 0
A118: P9956 | B118: Motorista de caminhão com periculosidade | C118: h | D118: 11.74 | E118: 1.963345 | F118: 38.3116 | G118: 0.3
A119: P9972 | B119: Técnico de batimetria | C119: mês | D119: 2563.4643 | E119: 1.173393 | F119: 5571.4153 | G119: 0

Sheet DNIT CONSULT
A1: 2023-04-01
A2: Tabela 1 - Custos de veículos
A3: ="Tabela de Preços de Consultoria - mês de referência: "&TEXT(A1,"MMMM")&" de "&TEXT(A1,"AAAA") -> Tabela de Preços de Consultoria - mês de referência: abril de 2023
A4: Item | B4: Código | C4: Tipo | D4: Unidade | E4: Custo unitário (R$ / un)
E5: Produtivo | F5: Improdutivo
A6: Veículos | B6: E8889 | C6: Veículo leve - 53 kW (sem motorista) | D6: hora | E6: 31.83 | F6: 6.31
B7: E8891 | C7: Veículo leve picape 4x4 - 147 kW (sem motorista) | D7: hora | E7: 86.6 | F7: 28.02
B8: E8887 | C8: Van furgão - 93 kW (com motorista) | D8: hora | E8: 76.72 | F8: 41.55
A9: Fonte: FGV IBRE
A11: Tabela 2 - Custos de imóveis, mobiliário, cestas de instalações e custos diversos
A12: ="Tabela de Preços de Consultoria - mês de referência: "&TEXT(A1,"MMMM")&" de "&TEXT(A1,"AAAA") -> Tabela de Preços de Consultoria - mês de referência: abril de 2023
A13: Item | B13: Código | C13: Tipo | E13: Unidade | F13: Custo unitário (R$ / un)
A14: Imóveis | B14: B8951 | C14: Comercial (2,60% do CMCC - SINAPI) | E14: m² x mês | F14: 46.78
B15: B8952 | C15: Residencial (1,70% do CMCC - SINAPI) | E15: m² x mês | F15: 30.59
A16: Mobiliário | B16: B8953 | C16: Escritório | E16: ocupante x mês | F16: 510.96
B17: B8954 | C17: Residência | E17: ocupante x mês | F17: 44.3
A18: Cesta das Instalações | B18: B8955 | C18: Laboratório de asfalto | E18: mês | F18: 5400.53
B19: B8956 | C19: Laboratório de concreto | E19: mês | F19: 4270.25
B20: B8957 | C20: Laboratório de solos | E20: mês | F20: 4311.34
B21: B8958 | C21: Topografia | E21: mês | F21: 3134.16
A22: Custos Diversos | B22: B8959 | C22: Escritório | E22: ocupante x mês | F22: 131.32
B23: B8960 | C23: Residência | E23: ocupante x mês | F23: 208.36
A24: Fonte: FGV IBRE

Sheet INS. SEINFRA
B1: Tabela de Preço de Insumos / Serviços Tabela 028 - ENC. SOCIAIS 114,15% | D1: Data de Emissão: 09/10/2023 14:02
D2: Página: 1
A5: COTAÇÃO / ADMINISTRAÇÃO LOCAL DE OBRA (C/ ENCARGOS)
A6: Insumo | B6: Descrição | C6: Unidade | D6: Valor (R$)
A7: I8600 | B7: ALMOXARIFE | C7: HxMÊS | D7: 4965.16
A8: I8599 | B8: APONTADOR | C8: HxMÊS | D8: 5104.16
A9: I8598 | B9: AUXILIAR ADMINISTRATIVO | C9: HxMÊS | D9: 3702.42
A10: I8596 | B10: AUXILIAR DE LABORATÓRIO | C10: HxMÊS | D10: 3701.73
A11: I8595 | B11: AUXILIAR DE TOPOGRAFIA | C11: HxMÊS | D11: 3702.42
A12: I8601 | B12: CADISTA | C12: HxMÊS | D12: 5851.46
A13: I8650 | B13: CAMINHÃO LEVE DE CARROCERIA (92HP) C/ COMBUSTÍVEL E MOTORISTA P/ TRANSPORTES NO CANTEIRO DE OBRA | C13: UNxMÊS | D13: 11742.55
A14: I8610 | B14: COMPUTADOR | C14: UNxMÊS | D14: 170
A15: I8591 | B15: ENCARREGADO DE TURMA / FEITOR | C15: HxMÊS | D15: 5848.14
A16: I8590 | B16: ENCARREGADO GERAL/MESTRE DE OBRA | C16: HxMÊS | D16: 6963.71
A17: I8602 | B17: ENFERMEIRO | C17: HxMÊS | D17: 9302.54
A18: I8960 | B18: ENGENHEIRO COORDENADOR | C18: HXMÊS | D18: 36639.33
A19: I8585 | B19: ENGENHEIRO DE SEGURANÇA DO TRABALHO | C19: HxMÊS | D19: 25381.61
A20: I8584 | B20: ENGENHEIRO JÚNIOR | C20: HxMÊS | D20: 19999.74
A21: I8583 | B21: ENGENHEIRO PLENO | C21: HxMÊS | D21: 25381.61
A22: I8582 | B22: ENGENHEIRO SENIOR | C22: HxMÊS | D22: 32108.96
A23: I8609 | B23: EQUIPAMENTOS DE LABORATÓRIO | C23: UNxMÊS | D23: 2850
A24: I8608 | B24: EQUIPAMENTOS DE TOPOGRAFIA | C24: UNxMÊS | D24: 2800
A25: I8597 | B25: GERENTE ADMINISTRATIVO FINANCEIRO | C25: HxMÊS | D25: 7699.78
A26: I10257 | B26: IMPRESSORA MULTIFUNCIONAL MONOCROMÁTICA A4 C/FRANQUIA DE 4.000 PÁGINAS (EXCEDENTE = R$ 0,05 CENTAVOS POR PÁGINA) 1.200 X 1.200 DPI; MEMÓRIA RAM 512 MB; CICLO MENSAL DE 80.000 PÁGINAS; INCLUI MANUTENÇÃO, SUPRIMENTOS E PEÇAS, EXCETO PAPEL | C26: MÊS | D26: 200
A27: G0409 | B27: INSPETOR DE DUTOS N1-SNQC (CEGÁS) | C27: MÊS | D27: 6958.58
A28: G0406 | B28: INSPETOR DE LÍQUIDO PENETRANTE LP-N2-G-SNQC/END (CEGÁS) | C28: MÊS | D28: 6958.58
A29: I8594 | B29: LABORATORISTA | C29: HxMÊS | D29: 6233.01
A30: I8603 | B30: MOTORISTA | C30: HxMÊS | D30: 3750.73
A31: I8589 | B31: MÉDICO DO TRABALHO | C31: HxMÊS | D31: 12898.98
A32: I8593 | B32: NIVELADOR | C32: HxMÊS | D32: 5299.77
A33: I10255 | B33: PLANO DE TELEFONIA + INTERNET | C33: MÊS | D33: 100
A34: I8612 | B34: PLOTTER | C34: UNxMÊS | D34: 320
A35: I8604 | B35: SERVENTE | C35: HxMÊS | D35: 3657.84
A36: I8614 | B36: TELEFONE MÓVEL | C36: UNxMÊS | D36: 230
A37: I8592 | B37: TOPÓGRAFO | C37: HxMÊS | D37: 7590.57
A38: I8587 | B38: TÉCNICO DE NÍVEL MÉDIO | C38: HxMÊS | D38: 6562.59
A39: I8588 | B39: TÉCNICO DE SEGURANÇA DO TRABALHO | C39: HxMÊS | D39: 6090.1
A40: I8606 | B40: VEÍCULO LEVE C/ COMBUSTÍVEL E MOTORISTA | C40: UNxMÊS | D40: 6745.98
A41: I8617 | B41: VIGIA | C41: HxMÊS | D41: 3687.34
A42: COTAÇÃO / AGREGADOS E AGLOMERANTES
A43: Insumo | B43: Descrição | C43: Unidade | D43: Valor (R$)
A44: I0029 | B44: ADITIVO PLASTIMENT BV-40 | C44: L | D44: 8.73
A45: I0034 | B45: AGREGADO DE ALTA RESISTÊNCIA PARA PISOS | C45: KG | D45: 0.48
A46: I0107 | B46: AREIA FINA | C46: M3 | D46: 83.58
A47: I0108 | B47: AREIA GROSSA | C47: M3 | D47: 119.58
A48: I0109 | B48: AREIA MEDIA | C48: M3 | D48: 83.58
A49: I0110 | B49: AREIA QUARTZOSA FINA (FILLER P/COMP.5) O.BAUMGART | C49: KG | D49: 4.67
A50: I0111 | B50: AREIA VERMELHA | C50: M3 | D50: 70
A51: I0112 | B51: ARENOSO | C51: M3 | D51: 68.82
A52: I0190 | B52: BARITA (ARGAMASSA BARITADA) | C52: KG | D52: 2.25
A53: I0280 | B53: BRITA | C53: M3 | D53: 100.5
A54: I0441 | B54: CAL HIDRATADA | C54: KG | D54: 0.96
A55: I0442 | B55: CAL VIRGEM EM PO | C55: KG | D55: 0.88
A56: I0799 | B56: CIMENTO BRANCO | C56: KG | D56: 4.18
A57: I0805 | B57: CIMENTO PORTLAND | C57: KG | D57: 0.71
A58: I7954 | B58: CIMENTO PORTLAND À GRANEL | C58: KG | D58: 0.64
A59: I2570 | B59: FILLER (PO CALCÁREO) | C59: KG | D59: 0.16
A60: I1221 | B60: GESSO | C60: KG | D60: 0.56
A61: I1600 | B61: PEDRA DE MÃO (RACHÃO) | C61: M3 | D61: 113.25
A62: I1605 | B62: PEDRISCO | C62: M3 | D62: 100.5
A63: I1684 | B63: PO DE MARMORE | C63: KG | D63: 0.42
A64: I2403 | B64: PÓ DE PEDRA | C64: M3 | D64: 77.13
A65: I1854 | B65: SEIXO ROLADO | C65: M3 | D65: 105.04
A66: COTAÇÃO / ALUGUEL DIVERSOS
A67: Insumo | B67: Descrição | C67: Unidade | D67: Valor (R$)
A68: I0068 | B68: ANDAIME METALICO DE FACHADA, INCLUSIVE TODOS OS ITENS NECESSÁRIOS À MONTAGEM (NÃO INCLUI INSTALAÇÃO) - LOCAÇÃO MENSAL | C68: M2 | D68: 2.31
A69: I7947 | B69: ANDAIME METÁLICO DE ENCAIXE - LOCAÇÃO | C69: M3xMÊS | D69: 2.92
A70: I7488 | B70: BOMBA DE CONCRETO | C70: H | D70: 166.9
A71: I7487 | B71: CAMINHÃO BETONEIRA 5 M3 | C71: H | D71: 134.69
A72: I7485 | B72: CARRETA ESPECIAL P/TRANSP. DAS ESTACAS PRÉ-MOLDADAS | C72: H | D72: 60.03
A73: I6398 | B73: CAÇAMBA METÁLICA DE 5 M³ | C73: H | D73: 32.21
A74: I7955 | B74: CENTRAL DOSADORA DE CONCRETO 50 M³/H C/ 4 SILOS | C74: H | D74: 136.15
A75: I8682 | B75: COMPRESSOR DE AR COMPRIMIDO ATÉ 5 Kg/cm² | C75: H | D75: 1.47
A76: I8427 | B76: COMPRESSOR DE AR P/ PINTURA | C76: H | D76: 1.47
A77: I6040 | B77: COMPUTADOR C/ CAD (ALUGUEL) | C77: DIA | D77: 21.96
A78: I8562 | B78: COMPUTADOR DE MÃO (ALUGUEL) | C78: DIA | D78: 5.38
A79: I8680 | B79: CONJUNTO MISTURADOR 180 L DE ALTA ROTAÇÃO E BOMBA DE INJEÇÃO | C79: H | D79: 49.78
A80: I2324 | B80: EQUIPAMENTO DE REBAIXAMENTO DE LENÇOL FREATICO - LOCAÇÃO | C80: DIA | D80: 292.8
A81: I1095 | B81: ESCORA METALICA TELESCÓPICA, COM ALTURA REGULÁVEL DE 1,80 A 3,20 M, COM CAPACIDADE MÍNIMA DE 1000 KGF (10KN), INCLUSIVE TRIPÉ E FORCADO - LOCAÇÃO MENSAL | C81: UN | D81: 3.18
A82: I1014 | B82: ESCORAMENTO METÁLICO P/ CIMBRAMENTO C/ CONTRAVENTAMENTO - LOCAÇÃO | C82: M3xMÊS | D82: 10.24
A83: I2513 | B83: ESCORAMENTO TUBULAR - LOCAÇÃO MENSAL | C83: M3 | D83: 43.19
A84: I8567 | B84: EXTRUSORA DE PERFIS DE CONCRETO ACOPLADA C/ FORMA E MOTOR DIESL 10 HP | C84: H | D84: 60.03
A85: I2544 | B85: FORMA METÁLICA P/BANQUETAS (ALUGUEL) | C85: M | D85: 4.39
A86: I7960 | B86: GRUA | C86: H | D86: 474.33
A87: I7426 | B87: GUINDASTE SOBRE PNEUS CAP. 135 TON | C87: H | D87: 778.84
A88: I8426 | B88: LIXADEIRA | C88: H | D88: 0.2
A89: I9469 | B89: LOCAÇÃO DE CONTÊINER ALMOXARIFADO COM PISO NAVAL - 6,00M X 2,35M | C89: MÊS | D89: 800.6
A90: I9476 | B90: LOCAÇÃO DE CONTÊINER BANHEIRO COM 02 VASOS SANITÁRIOS, 01 LAVATÓRIO E 04 CHUVEIROS - 6,00 X 2,35M | C90: MÊS | D90: 1163.86
A91: I9477 | B91: LOCAÇÃO DE CONTÊINER BANHEIRO COM 04 VASOS SANITÁRIOS, 02 LAVATÓRIOS, 01 MICTÓRIO CALHA E 04 CHUVEIROS - 6,00 X 2,35M | C91: MÊS | D91: 1280.98
A92: I9478 | B92: LOCAÇÃO DE CONTÊINER ESCRITÓRIO COM BANHEIRO (01 VASO SANITÁRIO, 01 LAVATÓRIO E 01 CHUVEIRO), JANELA EM VIDRO, PORTAS, LUMINÁRIAS, TOMADAS, FORRO EM PVC, AR CONDICIONADO E ISOLAMENTO TERMO-ACÚSTICO EM ISOPOR - 6,00 X 2,35M | C92: MÊS | D92: 1097.99
A93: I9070 | B93: LOCAÇÃO DE CUBETAS (61X61)CM H=21CM, PARA LAJE NERVURADA - FORNECIMENTO | C93: M2XMÊS | D93: 10.03
A94: I13300 | B94: LOCAÇÃO DE CUBETAS (80X80)CM H=20CM, PARA LAJE NERVRURADA - FORNECIMENTO | C94: M2XMÊS | D94: 9.9
A95: I13301 | B95: LOCAÇÃO DE CUBETAS (80X80)CM H=25CM, PARA LAJE NERVRURADA - FORNECIMENTO | C95: M2XMÊS | D95: 10.8
A96: I13302 | B96: LOCAÇÃO DE CUBETAS (80X80)CM H=30CM, PARA LAJE NERVRURADA - FORNECIMENTO | C96: M2XMÊS | D96: 11.7
A97: I9081 | B97: LOCAÇÃO MENSAL DE CIMBRAMENTO P/ LAJES NERVURADAS | C97: M2XMÊS | D97: 11.71
A98: I7956 | B98: MACACO HIDRÁULICO - 200 T | C98: H | D98: 136.15
A99: I7959 | B99: MARTELO PNEUMÁTICO (VIBRATÓRIO) | C99: H | D99: 267.91
A100: I8683 | B100: MOTOBOMBA DE LAVAGEM | C100: H | D100: 3.8
A101: I8410 | B101: MÁQUINA ESPARGIDORA C/ CONTROLE COMPUTADORIZADO | C101: H | D101: 469.94
A102: I6169 | B102: MÁQUINA P/ CRAVAÇÃO (MÉTODO NÃO DESTRUTIVO) | C102: H | D102: 313.3
A103: I8208 | B103: PERFURATRIZ PNEUMÁTICA MONTADA EM CARRETA | C103: H | D103: 234.24
A104: I8681 | B104: PERFURATRIZ ROTATIVA HIDRÁULICA COM SACA TUBOS E MOTOR ELÉTRICO | C104: H | D104: 224.99
A105: I7439 | B105: PERFURATRIZ WIRTH C/ ACESSÓRIOS | C105: H | D105: 1327.83
A106: I8210 | B106: PLATAFORMA FLUTUANTE COMPLETA | C106: H | D106: 925.24
A107: I7486 | B107: PÓRTICO 27 TON | C107: H | D107: 92.23
A108: I7958 | B108: REBOCADOR - 300 HP | C108: H | D108: 500.69
A109: I1870 | B109: SISTEMA PRE-FABRICADO DE FORMA METALICA (ALUGUEL) | C109: M2 | D109: 38.07
A110: I8625 | B110: TESOURA PNEUMÁTICA | C110: H | D110: 0.79
A111: COTAÇÃO / APARELHOS E EQUIPAMENTOS
A112: Insumo | B112: Descrição | C112: Unidade | D112: Valor (R$)
A113: I7357 | B113: APARELHO DE JANELA - CAP 10.000 BTU (FORN. E MONTAGEM) | C113: UN | D113: 1738.99
A114: I7358 | B114: APARELHO DE JANELA - CAP 12.000 BTU (FORN. E MONTAGEM) | C114: UN | D114: 2040
A115: I7360 | B115: APARELHO DE JANELA - CAP 18.000 BTU (FORN. E MONTAGEM) | C115: UN | D115: 3161.57
A116: I7361 | B116: APARELHO DE JANELA - CAP 21.000 BTU (FORN. E MONTAGEM) | C116: UN | D116: 3643.29
A117: I7362 | B117: APARELHO DE JANELA - CAP 30.000 BTU (FORN. E MONTAGEM) | C117: UN | D117: 4639.77
A118: I7356 | B118: APARELHO DE JANELA - CAP 7.500 BTU (FORN. E MONTAGEM) | C118: UN | D118: 1368.9
A119: I6359 | B119: APARELHO TELEFÔNICO DIGITAL PARA LIGAÇÃO JNA CPCT EXISTENTE | C119: UN | D119: 203.08
A120: I0094 | B120: AQUECEDOR A GAS 150L | C120: UN | D120: 3633.48
A121: I0095 | B121: AQUECEDOR CENTRAL ELETROAUTOMATICO 220 V | C121: UN | D121: 1100.89
A122: I0096 | B122: AQUECEDOR ELETRICO AGUA CAPAC 200 L | C122: UN | D122: 4490.59
A123: I0212 | B123: BATERIA ALCALINA 9V | C123: UN | D123: 20.32
A124: I0213 | B124: BATERIA PARA CARRO A GASOLINA TIPO 45A | C124: UN | D124: 258.87
A125: I0215 | B125: BEBEDOURO EM AÇO INOX COM 1,60M | C125: UN | D125: 2320.68
A126: I0250 | B126: BOMBA CENTRIFUGA P=1.5CV | C126: UN | D126: 1156.87
A127: I0251 | B127: BOMBA CENTRIFUGA P=1/2CV | C127: UN | D127: 521.42
A128: I0252 | B128: BOMBA CENTRIFUGA P=1/3CV | C128: UN | D128: 504.96
A129: I0852 | B129: BOMBA CENTRIFUGA P=1/4CV | C129: UN | D129: 457.81
A130: I0253 | B130: BOMBA CENTRIFUGA P=1CV | C130: UN | D130: 877.15
A131: I0254 | B131: BOMBA CENTRIFUGA P=2CV | C131: UN | D131: 1436.6
A132: I0255 | B132: BOMBA CENTRIFUGA P=3CV | C132: UN | D132: 1516.29
A133: I0256 | B133: BOMBA CENTRIFUGA P=5CV | C133: UN | D133: 2280.82
A134: I0246 | B134: BOMBA CENTRIFUGA PRESSURISAÇÃO HIDRANTE P=10CV | C134: UN | D134: 3125.4
A135: I0247 | B135: BOMBA CENTRIFUGA PRESSURISAÇÃO HIDRANTE P=15CV | C135: UN | D135: 3516.42
A136: I0248 | B136: BOMBA CENTRIFUGA PRESSURISAÇÃO HIDRANTE P=20 CV | C136: UN | D136: 5495.19
A137: I0249 | B137: BOMBA CENTRIFUGA PRESSURISAÇÃO HIDRANTE P=25CV | C137: UN | D137: 6691.8
A138: I0258 | B138: BOMBA INJETORA, MONOFASICA DE 1/2 CV | C138: UN | D138: 871.93
A139: I0259 | B139: BOMBA INJETORA, MONOFASICA DE 1/3 CV | C139: UN | D139: 912.68
A140: I0260 | B140: BOMBA INJETORA, MONOFASICA DE 3/4 CV | C140: UN | D140: 951.4
A141: I0261 | B141: BOMBA INJETORA, TRIFASICA DE 1 1/2 CV | C141: UN | D141: 1141.68
A142: I0265 | B142: BOMBA INJETORA, TRIFASICA DE 1CV | C142: UN | D142: 984.64
A143: I0262 | B143: BOMBA INJETORA, TRIFASICA DE 2 1/2 CV | C143: UN | D143: 1380.48
A144: I0263 | B144: BOMBA INJETORA, TRIFASICA DE 2 CV | C144: UN | D144: 1309.14
A145: I0264 | B145: BOMBA INJETORA, TRIFASICA DE 3 CV | C145: UN | D145: 1494.34
A146: I0257 | B146: BOMBA INJETORA, TRIFASICA DE 7,5 CV | C146: UN | D146: 3026.94
A147: I0795 | B147: CHUVEIRO ELETRICO 220V/2500W | C147: UN | D147: 316.71
A148: I1098 | B148: ESGUICHO C/ENGATE RÁPIDO 2 1/2" X 5/8" | C148: UN | D148: 129.52
A149: I1143 | B149: EXAUSTOR ELETRICO DOMICILIAR | C149: UN | D149: 222.46
A150: I1144 | B150: EXAUSTOR ELETROMECANICO INDUST. D=400MM | C150: UN | D150: 1203.9
A151: I1145 | B151: EXTINTOR CO2 DE 6 KG | C151: UN | D151: 840
A152: I1146 | B152: EXTINTOR DE ÁGUA PRESSURIZADA, CAPACIDADE 10L | C152: UN | D152: 245
A153: I8571 | B153: EXTINTOR EM CARRETA, CAP. 50KG - PO QUIMICO | C153: UN | D153: 3079.08
A154: I8557 | B154: EXTINTOR PARA INCÊNDIO PÓ QUÍMICO DE 20 Kg | C154: UN | D154: 998.31
A155: I7363 | B155: GRELHAS DE INSUFLAMENTO/RETORNO EM ALUMÍNIO ATÉ 0,25 M2 (FORN. E MONTAGEM) | C155: UN | D155: 175.36
A156: I7364 | B156: GRELHAS DE INSUFLAMENTO/RETORNO EM ALUMÍNIO DE 0,26 M2 À 0,49 M2 (FORN. E MONTAGEM) | C156: UN | D156: 260.45
A157: I7365 | B157: GRELHAS DE INSUFLAMENTO/RETORNO EM ALUMÍNIO DE 0,50 M2 À 0,64 M2 (FORN. E MONTAGEM) | C157: UN | D157: 309.45
A158: I7366 | B158: GRELHAS DE INSUFLAMENTO/RETORNO EM ALUMÍNIO DE 0,65 M2 À 0,81 M2 (FORN. E MONTAGEM) | C158: UN | D158: 386.01
A159: I7367 | B159: GRELHAS DE INSUFLAMENTO/RETORNO EM ALUMÍNIO DE 0,82 M2 À 1,00 M2 (FORN. E MONTAGEM) | C159: UN | D159: 468.07
A160: I6377 | B160: IMPRESSORA DE CARTÕES DE PROXIMIDADE | C160: UN | D160: 1892.15
A161: I6395 | B161: NOTEBOOK, 40 GB, 516MB, 2,5MHz, DRIVERS | C161: UN | D161: 3296.21
A162: I2397 | B162: PISTOLA WALSYVA | C162: UN | D162: 1493.74
A163: I10267 | B163: RÁDIO DE COMUNICAÇÃO MARÍTIMA POTÊNCIA TX: 6 WATTS, SUBMERSÍVEL E FLUTUANTE, BATERIA COM AUTOMIA DE ATÉ 12H, SAÍDA DE ÁUDIO 700mW, ACESSO INSTATÂNEO AO CANAL 16 E CANAL DE CHAMADAS E FUNÇÕES DE: ALERTA DE BATERIA FRACA E METEOROLÓGICO, DRENAGEM DE ÁGUA, MONITORAMENTO DUPLO E TRIPLO | C163: UN | D163: 2515
A164: I7350 | B164: SPLIT SYSTEM COMPLETO C/ CONTROLE REMOTO CAP. 1,00 TR (FORN. E MONTAGEM) | C164: UN | D164: 2735.44
A165: I7351 | B165: SPLIT SYSTEM COMPLETO C/ CONTROLE REMOTO CAP. 1,50 TR (FORN. E MONTAGEM) | C165: UN | D165: 4135.99
A166: I7352 | B166: SPLIT SYSTEM COMPLETO C/ CONTROLE REMOTO CAP. 2,00 TR (FORN. E MONTAGEM) | C166: UN | D166: 5116.67
A167: I7353 | B167: SPLIT SYSTEM COMPLETO C/ CONTROLE REMOTO CAP. 2,50 TR (FORN. E MONTAGEM) | C167: UN | D167: 7481.6
A168: I7354 | B168: SPLIT SYSTEM COMPLETO C/ CONTROLE REMOTO CAP. 3,00 TR (FORN. E MONTAGEM) | C168: UN | D168: 7806.47
A169: I7355 | B169: SPLIT SYSTEM COMPLETO C/ CONTROLE REMOTO CAP. 4,00 TR (FORN. E MONTAGEM) | C169: UN | D169: 9353.69
A170: I2245 | B170: VENTILADOR DE TETO C/ ALETAS DE MADEIRA | C170: UN | D170: 258.45
A171: I2246 | B171: VENTILADOR DE TETO METÁLICO | C171: UN | D171: 246.15
A172: COTAÇÃO / ARTEFATOS PREMOLDADOS
A173: Insumo | B173: Descrição | C173: Unidade | D173: Valor (R$)
A174: I0004 | B174: ABRIGO PRÉ-MOLDADO CONCRETO (FORNECIMENTO/ASSENTAMENTO) | C174: UN | D174: 6589.77
A175: I0083 | B175: ANEL PRE-MOLDADO DE CONCRETO D=0.60M, h = 0.80M | C175: UN | D175: 116.99
A176: I7964 | B176: ANEL PRE-MOLDADO DE CONCRETO D=1,20M, h=0,50M | C176: UN | D176: 194.02
A177: I0084 | B177: ANEL PRE-MOLDADO DE CONCRETO, D=0.80M, h = 0.50M | C177: UN | D177: 153.52
A178: I0085 | B178: ANEL PRE-MOLDADO DE CONCRETO, D=0.80M, h = 1.00M | C178: UN | D178: 162.86
A179: I6224 | B179: ASSENTO P/BANCO EM "U" PREMOLDADO DE CONCRETO | C179: UN | D179: 166.91
A180: I9396 | B180: BLOQUETE/PISO INTERTRAVADO DE CONCRETO - MODELO RETANGULAR/TIJOLINHO/PAVER/HOLANDES/PARALELEPIPEDO, 20 CM X 10 CM, E = 10 CM, RESISTENCIA DE 35 MPA (NBR 9781), COR NATURAL | C180: M2 | D180: 60.66
A181: I9379 | B181: BLOQUETE/PISO INTERTRAVADO DE CONCRETO - MODELO RETANGULAR/TIJOLINHO/PAVER/HOLANDES/PARALELEPIPEDO, 20 CM X 10 CM, E = 6 CM, RESISTENCIA DE 35 MPA (NBR 9781), COLORIDO | C181: M2 | D181: 47.18
A182: I9099 | B182: BLOQUETE/PISO INTERTRAVADO DE CONCRETO - MODELO RETANGULAR/TIJOLINHO/PAVER/HOLANDES/PARALELEPIPEDO, 20 CM X 10 CM, E = 6 CM, RESISTENCIA DE 35 MPA (NBR 9781), COR NATURAL | C182: M2 | D182: 40.73
A183: I9104 | B183: BLOQUETE/PISO INTERTRAVADO DE CONCRETO - MODELO RETANGULAR/TIJOLINHO/PAVER/HOLANDES/PARALELEPIPEDO, 20 CM X 10 CM, E = 8 CM, RESISTENCIA DE 35 MPA (NBR 9781), COR NATURAL | C183: M2 | D183: 56.61
A184: I0433 | B184: CAIXA PRE MOLDADA CONC. P/ AR CONDICIONADO | C184: UN | D184: 148.4
A185: I0434 | B185: CAIXA PRE-MOLDADA PARA LIGAÇÃO ESGOTO C/ ALMOFADA | C185: UN | D185: 95.32
A186: I2455 | B186: CALHA DE CONCRETO ARMADO D=0,30M | C186: M | D186: 42.87
A187: I0448 | B187: CALHA DE CONCRETO ARMADO D=0,40M | C187: M | D187: 56.14
A188: I1093 | B188: ESCADA HELICOIDAL PM CONCRETO D=1,0M | C188: M | D188: 538.46
A189: I1096 | B189: ESFERA PM-CONCRETO, D=25CM | C189: UN | D189: 29.25
A190: I1097 | B190: ESFERA PM-CONCRETO, D=40CM | C190: UN | D190: 49.55
A191: I2327 | B191: ESTACA DE CONCRETO ARMADO PONTA VIRADA, L=2.80M | C191: UN | D191: 43.45
A192: I7966 | B192: LAJE DE FUNDO P/ FOSSA DE D=1,20M, E=0,10M | C192: UN | D192: 236.62
A193: I1339 | B193: LAJE PRE-FABRICADA DE 8CM | C193: M2 | D193: 42.78
A194: I8267 | B194: LAJE PRÉ-FABRICADA COMUM DE 8 cm P/ FÔRRO - VÃO ACIMA DE 4,01 m | C194: M2 | D194: 55.58
A195: I8276 | B195: LAJE PRÉ-FABRICADA COMUM DE 8 cm P/ FÔRRO - VÃO ATÉ 2 m | C195: M2 | D195: 42.78
A196: I8265 | B196: LAJE PRÉ-FABRICADA COMUM DE 8 cm P/ FÔRRO - VÃO ATÉ 2,01 A 3 m | C196: M2 | D196: 46.91
A197: I8266 | B197: LAJE PRÉ-FABRICADA COMUM DE 8 cm P/ FÔRRO - VÃO DE 3,01 A 4 m | C197: M2 | D197: 51.04
A198: I8264 | B198: LAJE PRÉ-FABRICADA COMUM DE 8 cm P/ PISO - VÃO ACIMA DE 4,01 m | C198: M2 | D198: 60.16
A199: I8275 | B199: LAJE PRÉ-FABRICADA COMUM DE 8 cm P/ PISO - VÃO ATÉ 2 m | C199: M2 | D199: 45.97
A200: I8262 | B200: LAJE PRÉ-FABRICADA COMUM DE 8 cm P/ PISO - VÃO DE 2,01 A 3 m | C200: M2 | D200: 53.29
A201: I8263 | B201: LAJE PRÉ-FABRICADA COMUM DE 8 cm P/ PISO - VÃO DE 3,01 A 4 m | C201: M2 | D201: 58.66
A202: I8285 | B202: LAJE PRÉ-FABRICADA TRELIÇADA P/ FÔRRO, DE 12 cm DE ALTURA E 4 cm DE CAPEADO - VÃO ACIMA DE 5,01 m | C202: M2 | D202: 77.36
... 11720 more rows

Sheet INS SINAPI
A1: PRECOS DE INSUMOS
A3: MES DE COLETA: 08/2023
A4: LOCALIDADE: 1250 - RECIFE
A5: ENCARGOS SOCIAIS (%) HORISTA 114,55 MENSALISTA 70,11
A7: CODIGO | B7: DESCRICAO DO INSUMO | C7: UNIDADE | D7: ORIGEM DO PRECO | E7: PRECO MEDIANO R$
A8: 38605 | B8: ABERTURA PARA ENCAIXE DE CUBA OU LAVATORIO EM BANCADA DE MARMORE/ GRANITO OU OUTRO TIPO DE PEDRA NATURAL | C8: UN | D8: CR | E8: 124,38
A9: 11270 | B9: ABRACADEIRA DE LATAO PARA FIXACAO DE CABO PARA-RAIO, DIMENSOES 32 X 24 X 24 MM | C9: UN | D9: CR | E9: 3,73
A10: 412 | B10: ABRACADEIRA DE NYLON PARA AMARRACAO DE CABOS, COMPRIMENTO DE *230* X *7,6* MM | C10: UN | D10: CR | E10: 1,13
A11: 414 | B11: ABRACADEIRA DE NYLON PARA AMARRACAO DE CABOS, COMPRIMENTO DE 100 X 2,5 MM | C11: UN | D11: CR | E11: 0,07
A12: 410 | B12: ABRACADEIRA DE NYLON PARA AMARRACAO DE CABOS, COMPRIMENTO DE 150 X *3,6* MM | C12: UN | D12: CR | E12: 0,17
A13: 411 | B13: ABRACADEIRA DE NYLON PARA AMARRACAO DE CABOS, COMPRIMENTO DE 200 X *4,6* MM | C13: UN | D13: C | E13: 0,22
A14: 408 | B14: ABRACADEIRA DE NYLON PARA AMARRACAO DE CABOS, COMPRIMENTO DE 390 X *4,6* MM | C14: UN | D14: CR | E14: 1,09
A15: 39131 | B15: ABRACADEIRA EM ACO PARA AMARRACAO DE ELETRODUTOS, TIPO D, COM 1 1/2" E CUNHA DE FIXACAO | C15: UN | D15: CR | E15: 4,93
A16: 394 | B16: ABRACADEIRA EM ACO PARA AMARRACAO DE ELETRODUTOS, TIPO D, COM 1 1/2" E PARAFUSO DE FIXACAO | C16: UN | D16: CR | E16: 4,99
A17: 39130 | B17: ABRACADEIRA EM ACO PARA AMARRACAO DE ELETRODUTOS, TIPO D, COM 1 1/4" E CUNHA DE FIXACAO | C17: UN | D17: CR | E17: 4,50
A18: 395 | B18: ABRACADEIRA EM ACO PARA AMARRACAO DE ELETRODUTOS, TIPO D, COM 1 1/4" E PARAFUSO DE FIXACAO | C18: UN | D18: CR | E18: 4,81
A19: 39127 | B19: ABRACADEIRA EM ACO PARA AMARRACAO DE ELETRODUTOS, TIPO D, COM 1/2" E CUNHA DE FIXACAO | C19: UN | D19: CR | E19: 2,37
A20: 392 | B20: ABRACADEIRA EM ACO PARA AMARRACAO DE ELETRODUTOS, TIPO D, COM 1/2" E PARAFUSO DE FIXACAO | C20: UN | D20: CR | E20: 2,43
A21: 39129 | B21: ABRACADEIRA EM ACO PARA AMARRACAO DE ELETRODUTOS, TIPO D, COM 1" E CUNHA DE FIXACAO | C21: UN | D21: CR | E21: 2,77
A22: 393 | B22: ABRACADEIRA EM ACO PARA AMARRACAO DE ELETRODUTOS, TIPO D, COM 1" E PARAFUSO DE FIXACAO | C22: UN | D22: C | E22: 2,90
A23: 39133 | B23: ABRACADEIRA EM ACO PARA AMARRACAO DE ELETRODUTOS, TIPO D, COM 2 1/2" E CUNHA DE FIXACAO | C23: UN | D23: CR | E23: 6,47
A24: 397 | B24: ABRACADEIRA EM ACO PARA AMARRACAO DE ELETRODUTOS, TIPO D, COM 2 1/2" E PARAFUSO DE FIXACAO | C24: UN | D24: CR | E24: 7,15
A25: 39132 | B25: ABRACADEIRA EM ACO PARA AMARRACAO DE ELETRODUTOS, TIPO D, COM 2" E CUNHA DE FIXACAO | C25: UN | D25: CR | E25: 5,18
A26: 396 | B26: ABRACADEIRA EM ACO PARA AMARRACAO DE ELETRODUTOS, TIPO D, COM 2" E PARAFUSO DE FIXACAO | C26: UN | D26: CR | E26: 5,55
A27: 39135 | B27: ABRACADEIRA EM ACO PARA AMARRACAO DE ELETRODUTOS, TIPO D, COM 3 1/2" E CUNHA DE FIXACAO | C27: UN | D27: CR | E27: 10,36
A28: 39128 | B28: ABRACADEIRA EM ACO PARA AMARRACAO DE ELETRODUTOS, TIPO D, COM 3/4" E CUNHA DE FIXACAO | C28: UN | D28: CR | E28: 2,59
A29: 400 | B29: ABRACADEIRA EM ACO PARA AMARRACAO DE ELETRODUTOS, TIPO D, COM 3/4" E PARAFUSO DE FIXACAO | C29: UN | D29: CR | E29: 2,52
A30: 39125 | B30: ABRACADEIRA EM ACO PARA AMARRACAO DE ELETRODUTOS, TIPO D, COM 3/8" E PARAFUSO DE FIXACAO | C30: UN | D30: CR | E30: 2,59
A31: 39134 | B31: ABRACADEIRA EM ACO PARA AMARRACAO DE ELETRODUTOS, TIPO D, COM 3" E CUNHA DE FIXACAO | C31: UN | D31: CR | E31: 8,63
A32: 398 | B32: ABRACADEIRA EM ACO PARA AMARRACAO DE ELETRODUTOS, TIPO D, COM 3" E PARAFUSO DE FIXACAO | C32: UN | D32: CR | E32: 7,95
A33: 39126 | B33: ABRACADEIRA EM ACO PARA AMARRACAO DE ELETRODUTOS, TIPO D, COM 4" E CUNHA DE FIXACAO | C33: UN | D33: CR | E33: 11,66
A34: 399 | B34: ABRACADEIRA EM ACO PARA AMARRACAO DE ELETRODUTOS, TIPO D, COM 4" E PARAFUSO DE FIXACAO | C34: UN | D34: CR | E34: 10,27
A35: 39158 | B35: ABRACADEIRA EM ACO PARA AMARRACAO DE ELETRODUTOS, TIPO ECONOMICA (GOTA), COM 8" | C35: UN | D35: CR | E35: 27,58
A36: 39141 | B36: ABRACADEIRA EM ACO PARA AMARRACAO DE ELETRODUTOS, TIPO U SIMPLES, COM 1 1/2" | C36: UN | D36: CR | E36: 2,00
A37: 39140 | B37: ABRACADEIRA EM ACO PARA AMARRACAO DE ELETRODUTOS, TIPO U SIMPLES, COM 1 1/4" | C37: UN | D37: CR | E37: 1,82
A38: 39137 | B38: ABRACADEIRA EM ACO PARA AMARRACAO DE ELETRODUTOS, TIPO U SIMPLES, COM 1/2" | C38: UN | D38: CR | E38: 1,04
A39: 39139 | B39: ABRACADEIRA EM ACO PARA AMARRACAO DE ELETRODUTOS, TIPO U SIMPLES, COM 1" | C39: UN | D39: CR | E39: 1,51
A40: 39143 | B40: ABRACADEIRA EM ACO PARA AMARRACAO DE ELETRODUTOS, TIPO U SIMPLES, COM 2 1/2" | C40: UN | D40: CR | E40: 4,13
A41: 39142 | B41: ABRACADEIRA EM ACO PARA AMARRACAO DE ELETRODUTOS, TIPO U SIMPLES, COM 2" | C41: UN | D41: CR | E41: 2,96
A42: 39138 | B42: ABRACADEIRA EM ACO PARA AMARRACAO DE ELETRODUTOS, TIPO U SIMPLES, COM 3/4" | C42: UN | D42: CR | E42: 1,11
A43: 39136 | B43: ABRACADEIRA EM ACO PARA AMARRACAO DE ELETRODUTOS, TIPO U SIMPLES, COM 3/8" | C43: UN | D43: CR | E43: 0,74
A44: 39144 | B44: ABRACADEIRA EM ACO PARA AMARRACAO DE ELETRODUTOS, TIPO U SIMPLES, COM 3" | C44: UN | D44: CR | E44: 4,81
A45: 39145 | B45: ABRACADEIRA EM ACO PARA AMARRACAO DE ELETRODUTOS, TIPO U SIMPLES, COM 4" | C45: UN | D45: CR | E45: 7,92
A46: 12615 | B46: ABRACADEIRA PVC, PARA CALHA PLUVIAL, DIAMETRO ENTRE *80 E 100* MM, PARA DRENAGEM PLUVIAL PREDIAL | C46: UN | D46: CR | E46: 13,85
A47: 11927 | B47: ABRACADEIRA, GALVANIZADA/ZINCADA, ROSCA SEM FIM, PARAFUSO INOX, LARGURA FITA *12,6 A *14 MM, D = 2" A 2 1/2" | C47: UN | D47: CR | E47: 11,14
A48: 11928 | B48: ABRACADEIRA, GALVANIZADA/ZINCADA, ROSCA SEM FIM, PARAFUSO INOX, LARGURA FITA *12,6 A *14 MM, D = 3" A 3 3/4" | C48: UN | D48: CR | E48: 12,76
A49: 11929 | B49: ABRACADEIRA, GALVANIZADA/ZINCADA, ROSCA SEM FIM, PARAFUSO INOX, LARGURA FITA *12,6 A *14 MM, D = 4" A 4 3/4" | C49: UN | D49: CR | E49: 19,74
A50: 36801 | B50: ACABAMENTO DE METAL CROMADO PARA REGISTRO PEQUENO, DE PAREDE, 1/2 " OU 3/4 " | C50: UN | D50: CR | E50: 31,58
A51: 36246 | B51: ACABAMENTO SIMPLES/CONVENCIONAL PARA FORRO PVC, TIPO "U" OU "C", COR BRANCA, COMPRIMENTO 6 M | C51: M | D51: CR | E51: 4,26
A52: 37600 | B52: ACESSORIO DE LIGACAO NAO ELETRICO PARA CARGAS EXPLOSIVAS, TUBO DE 6 M | C52: UN | D52: AS | E52: 115,69
A53: 37599 | B53: ACESSORIO INICIADOR NAO ELETRICO, TUBO DE 6 M, TEMPO DE RETARDO DE *160* MS | C53: UN | D53: AS | E53: 107,68
A54: 1 | B54: ACETILENO (RECARGA DE GAS ACETILENO PARA CILINDRO DE CONJUNTO OXICORTE GRANDE) NAO INCLUI TROCA/MANUTENCAO DO CILINDRO | C54: KG | D54: AS | E54: 78,50
A55: 3 | B55: ACIDO CLORIDRICO / ACIDO MURIATICO, DILUICAO 10% A 12% PARA USO EM LIMPEZA | C55: L | D55: CR | E55: 22,81
A56: 43054 | B56: ACO CA-25, 10,0 MM, OU 12,5 MM, OU 16,0 MM, OU 20,0 MM, OU 25,0 MM, VERGALHAO | C56: KG | D56: CR | E56: 10,57
A57: 42402 | B57: ACO CA-25, 16,0 MM, BARRA DE TRANSFERENCIA | C57: KG | D57: CR | E57: 10,10
A58: 42403 | B58: ACO CA-25, 20,0 MM, BARRA DE TRANSFERENCIA | C58: KG | D58: CR | E58: 12,96
A59: 42404 | B59: ACO CA-25, 25,0 MM, BARRA DE TRANSFERENCIA | C59: KG | D59: CR | E59: 12,88
A60: 42405 | B60: ACO CA-25, 32,0 MM, BARRA DE TRANSFERENCIA | C60: KG | D60: CR | E60: 13,72
A61: 34341 | B61: ACO CA-25, 32,0 MM, VERGALHAO | C61: KG | D61: CR | E61: 11,91
A62: 43053 | B62: ACO CA-25, 6,3 MM OU 8,0 MM, VERGALHAO | C62: KG | D62: CR | E62: 9,44
A63: 43058 | B63: ACO CA-50, 10,0 MM, OU 12,5 MM, OU 16,0 MM, OU 20,0 MM, DOBRADO E CORTADO | C63: KG | D63: CR | E63: 9,79
A64: 34 | B64: ACO CA-50, 10,0 MM, VERGALHAO | C64: KG | D64: CR | E64: 9,84
A65: 43055 | B65: ACO CA-50, 12,5 MM OU 16,0 MM, VERGALHAO | C65: KG | D65: C | E65: 8,52
A66: 43056 | B66: ACO CA-50, 20,0 MM OU 25,0 MM, VERGALHAO | C66: KG | D66: CR | E66: 9,82
A67: 43057 | B67: ACO CA-50, 32,0 MM, VERGALHAO | C67: KG | D67: CR | E67: 10,79
A68: 34449 | B68: ACO CA-50, 6,3 MM, DOBRADO E CORTADO | C68: KG | D68: CR | E68: 11,54
A69: 32 | B69: ACO CA-50, 6,3 MM, VERGALHAO | C69: KG | D69: CR | E69: 10,38
A70: 33 | B70: ACO CA-50, 8,0 MM, VERGALHAO | C70: KG | D70: CR | E70: 10,43
A71: 43061 | B71: ACO CA-60, 4,2 MM OU 5,0 MM, DOBRADO E CORTADO | C71: KG | D71: CR | E71: 9,75
A72: 43059 | B72: ACO CA-60, 4,2 MM, OU 5,0 MM, OU 6,0 MM, OU 7,0 MM, VERGALHAO | C72: KG | D72: CR | E72: 9,31
A73: 43062 | B73: ACO CA-60, 6,0 MM OU 7,0 MM, DOBRADO E CORTADO | C73: KG | D73: CR | E73: 10,31
A74: 43060 | B74: ACO CA-60, 8,0 MM OU 9,5 MM, VERGALHAO | C74: KG | D74: CR | E74: 8,11
A75: 40410 | B75: ACOPLAMENTO RIGIDO EM FERRO FUNDIDO PARA SISTEMA DE TUBULACAO RANHURADA, DN 50 MM (2") | C75: UN | D75: AS | E75: 23,71
A76: 40411 | B76: ACOPLAMENTO RIGIDO EM FERRO FUNDIDO PARA SISTEMA DE TUBULACAO RANHURADA, DN 65 MM (2 1/2") | C76: UN | D76: AS | E76: 25,73
A77: 40412 | B77: ACOPLAMENTO RIGIDO EM FERRO FUNDIDO PARA SISTEMA DE TUBULACAO RANHURADA, DN 80 MM (3") | C77: UN | D77: AS | E77: 28,88
A78: 44254 | B78: ADAPTADOR CPVC, ROSCAVEL, COM FLANGES E ANEL DE VEDACAO, 15 MM, CAIXA D'AGUA PARA AGUA QUENTE | C78: UN | D78: CR | E78: 26,51
A79: 44255 | B79: ADAPTADOR CPVC, ROSCAVEL, COM FLANGES E ANEL DE VEDACAO, 22 MM, CAIXA D'AGUA PARA AGUA QUENTE | C79: UN | D79: CR | E79: 29,38
A80: 44256 | B80: ADAPTADOR CPVC, ROSCAVEL, COM FLANGES E ANEL DE VEDACAO, 28 MM, CAIXA D'AGUA PARA AGUA QUENTE | C80: UN | D80: CR | E80: 33,19
A81: 44257 | B81: ADAPTADOR CPVC, ROSCAVEL, COM FLANGES E ANEL DE VEDACAO, 35 MM, CAIXA D'AGUA PARA AGUA QUENTE | C81: UN | D81: CR | E81: 52,50
A82: 44258 | B82: ADAPTADOR CPVC, ROSCAVEL, COM FLANGES E ANEL DE VEDACAO, 42 MM, CAIXA D'AGUA PARA AGUA QUENTE | C82: UN | D82: CR | E82: 60,00
A83: 44259 | B83: ADAPTADOR CPVC, ROSCAVEL, COM FLANGES E ANEL DE VEDACAO, 54 MM, CAIXA D'AGUA PARA AGUA QUENTE | C83: UN | D83: CR | E83: 82,36
A84: 37997 | B84: ADAPTADOR CPVC, SOLDAVEL, 15 MM, PARA AGUA QUENTE | C84: UN | D84: CR | E84: 15,80
A85: 37998 | B85: ADAPTADOR CPVC, SOLDAVEL, 22 MM, PARA AGUA QUENTE | C85: UN | D85: CR | E85: 21,14
A86: 55 | B86: ADAPTADOR DE COMPRESSAO EM POLIPROPILENO (PP), PARA TUBO EM PEAD, 20 MM X 1/2", PARA LIGACAO PREDIAL DE AGUA (NTS 179) | C86: UN | D86: AS | E86: 4,00
A87: 61 | B87: ADAPTADOR DE COMPRESSAO EM POLIPROPILENO (PP), PARA TUBO EM PEAD, 20 MM X 3/4", PARA LIGACAO PREDIAL DE AGUA (NTS 179) | C87: UN | D87: AS | E87: 3,78
A88: 62 | B88: ADAPTADOR DE COMPRESSAO EM POLIPROPILENO (PP), PARA TUBO EM PEAD, 32 MM X 1", PARA LIGACAO PREDIAL DE AGUA (NTS 179) | C88: UN | D88: AS | E88: 7,84
A89: 10899 | B89: ADAPTADOR EM LATAO, ENGATE RAPIDO 2 1/2" X ROSCA INTERNA 5 FIOS 2 1/2", PARA INSTALACAO PREDIAL DE COMBATE A INCENDIO | C89: UN | D89: CR | E89: 109,52
A90: 10900 | B90: ADAPTADOR EM LATAO, ENGATE RAPIDO1 1/2" X ROSCA INTERNA 5 FIOS 2 1/2", PARA INSTALACAO PREDIAL DE COMBATE A INCENDIO | C90: UN | D90: CR | E90: 85,71
A91: 103 | B91: ADAPTADOR PVC SOLDAVEL CURTO COM BOLSA E ROSCA, 110 MM X 4", PARA AGUA FRIA | C91: UN | D91: CR | E91: 45,93
A92: 107 | B92: ADAPTADOR PVC SOLDAVEL CURTO COM BOLSA E ROSCA, 20 MM X 1/2", PARA AGUA FRIA | C92: UN | D92: CR | E92: 0,86
A93: 65 | B93: ADAPTADOR PVC SOLDAVEL CURTO COM BOLSA E ROSCA, 25 MM X 3/4", PARA AGUA FRIA | C93: UN | D93: CR | E93: 0,94
A94: 108 | B94: ADAPTADOR PVC SOLDAVEL CURTO COM BOLSA E ROSCA, 32 MM X 1", PARA AGUA FRIA | C94: UN | D94: CR | E94: 1,90
A95: 110 | B95: ADAPTADOR PVC SOLDAVEL CURTO COM BOLSA E ROSCA, 40 MM X 1 1/2", PARA AGUA FRIA | C95: UN | D95: CR | E95: 6,61
A96: 109 | B96: ADAPTADOR PVC SOLDAVEL CURTO COM BOLSA E ROSCA, 40 MM X 1 1/4", PARA AGUA FRIA | C96: UN | D96: CR | E96: 3,93
A97: 111 | B97: ADAPTADOR PVC SOLDAVEL CURTO COM BOLSA E ROSCA, 50 MM X 1 1/4", PARA AGUA FRIA | C97: UN | D97: CR | E97: 8,94
A98: 112 | B98: ADAPTADOR PVC SOLDAVEL CURTO COM BOLSA E ROSCA, 50 MM X1 1/2", PARA AGUA FRIA | C98: UN | D98: CR | E98: 4,74
A99: 113 | B99: ADAPTADOR PVC SOLDAVEL CURTO COM BOLSA E ROSCA, 60 MM X 2", PARA AGUA FRIA | C99: UN | D99: CR | E99: 11,86
A100: 104 | B100: ADAPTADOR PVC SOLDAVEL CURTO COM BOLSA E ROSCA, 75 MM X 2 1/2", PARA AGUA FRIA | C100: UN | D100: CR | E100: 20,64
A101: 102 | B101: ADAPTADOR PVC SOLDAVEL CURTO COM BOLSA E ROSCA, 85 MM X 3", PARA AGUA FRIA | C101: UN | D101: CR | E101: 28,46
A102: 95 | B102: ADAPTADOR PVC SOLDAVEL, COM FLANGE E ANEL DE VEDACAO, 20 MM X 1/2", PARA CAIXA D'AGUA | C102: UN | D102: CR | E102: 12,03
A103: 96 | B103: ADAPTADOR PVC SOLDAVEL, COM FLANGE E ANEL DE VEDACAO, 25 MM X 3/4", PARA CAIXA D'AGUA | C103: UN | D103: CR | E103: 13,08
A104: 97 | B104: ADAPTADOR PVC SOLDAVEL, COM FLANGE E ANEL DE VEDACAO, 32 MM X 1", PARA CAIXA D'AGUA | C104: UN | D104: CR | E104: 19,68
A105: 98 | B105: ADAPTADOR PVC SOLDAVEL, COM FLANGE E ANEL DE VEDACAO, 40 MM X 1 1/4", PARA CAIXA D'AGUA | C105: UN | D105: CR | E105: 29,46
A106: 99 | B106: ADAPTADOR PVC SOLDAVEL, COM FLANGE E ANEL DE VEDACAO, 50 MM X 1 1/2", PARA CAIXA D'AGUA | C106: UN | D106: CR | E106: 27,85
A107: 100 | B107: ADAPTADOR PVC SOLDAVEL, COM FLANGES E ANEL DE VEDACAO, 60 MM X 2", PARA CAIXA D' AGUA | C107: UN | D107: CR | E107: 48,65
A108: 75 | B108: ADAPTADOR PVC SOLDAVEL, COM FLANGES LIVRES, 110 MM X 4", PARA CAIXA D' AGUA | C108: UN | D108: CR | E108: 283,65
A109: 83 | B109: ADAPTADOR PVC SOLDAVEL, COM FLANGES LIVRES, 75 MM X 2 1/2", PARA CAIXA D' AGUA | C109: UN | D109: CR | E109: 226,77
A110: 74 | B110: ADAPTADOR PVC SOLDAVEL, COM FLANGES LIVRES, 85 MM X 3", PARA CAIXA D' AGUA | C110: UN | D110: CR | E110: 324,22
A111: 106 | B111: ADAPTADOR PVC SOLDAVEL, LONGO, COM FLANGE LIVRE, 110 MM X 4", PARA CAIXA D' AGUA | C111: UN | D111: CR | E111: 409,99
A112: 88 | B112: ADAPTADOR PVC SOLDAVEL, LONGO, COM FLANGE LIVRE, 32 MM X 1", PARA CAIXA D' AGUA | C112: UN | D112: CR | E112: 11,52
A113: 82 | B113: ADAPTADOR PVC SOLDAVEL, LONGO, COM FLANGE LIVRE, 75 MM X 2 1/2", PARA CAIXA D' AGUA | C113: UN | D113: CR | E113: 215,75
A114: 105 | B114: ADAPTADOR PVC SOLDAVEL, LONGO, COM FLANGE LIVRE, 85 MM X 3", PARA CAIXA D' AGUA | C114: UN | D114: CR | E114: 305,72
A115: 60 | B115: ADAPTADOR PVC, COM REGISTRO, PARA PEAD, 20 MM X 3/4", PARA LIGACAO PREDIAL DE AGUA | C115: UN | D115: AS | E115: 5,19
A116: 72 | B116: ADAPTADOR PVC, ROSCAVEL, COM FLANGES E ANEL DE VEDACAO, 1 1/2", PARA CAIXA D'AGUA | C116: UN | D116: CR | E116: 53,40
A117: 67 | B117: ADAPTADOR PVC, ROSCAVEL, COM FLANGES E ANEL DE VEDACAO, 1/2", PARA CAIXA D' AGUA | C117: UN | D117: CR | E117: 17,27
A118: 71 | B118: ADAPTADOR PVC, ROSCAVEL, COM FLANGES E ANEL DE VEDACAO, 1", PARA CAIXA D' AGUA | C118: UN | D118: CR | E118: 32,98
A119: 73 | B119: ADAPTADOR PVC, ROSCAVEL, COM FLANGES E ANEL DE VEDACAO, 3/4", PARA CAIXA D' AGUA | C119: UN | D119: CR | E119: 16,52
A120: 46 | B120: ADAPTADOR, PVC PBA, BOLSA/ROSCA, JE, DN 75 / DE 85 MM | C120: UN | D120: AS | E120: 38,06
A121: 47 | B121: ADAPTADOR, PVC PBA, BOLSA/ROSCA, JE, DN 100 / DE 110 MM | C121: UN | D121: AS | E121: 65,07
A122: 48 | B122: ADAPTADOR, PVC PBA, BOLSA/ROSCA, JE, DN 50 / DE 60 MM | C122: UN | D122: AS | E122: 16,97
A123: 52 | B123: ADAPTADOR, PVC PBA, PONTA/ROSCA, JE, DN 50 / DE 60 MM | C123: UN | D123: AS | E123: 12,89
A124: 43 | B124: ADAPTADOR, PVC PBA, PONTA/ROSCA, JE, DN 75 / DE 85 MM | C124: UN | D124: AS | E124: 43,52
A125: 39719 | B125: ADESIVO / COLA DE CONTATO LIQUIDO, A BASE DE RESINAS, PARA COLAGEM DE ESPUMA PARA ISOLAMENTO TERMICO FLEXIVEL | C125: L | D125: CR | E125: 150,11
A126: 3410 | B126: ADESIVO / COLA PARA EPS (ISOPOR) E OUTROS MATERIAIS | C126: KG | D126: CR | E126: 33,76
A127: 4791 | B127: ADESIVO ACRILICO DE BASE AQUOSA / COLA DE CONTATO | C127: KG | D127: CR | E127: 42,86
A128: 157 | B128: ADESIVO ESTRUTURAL A BASE DE RESINA EPOXI PARA INJECAO EM TRINCAS, BICOMPONENTE, BAIXA VISCOSIDADE | C128: KG | D128: CR | E128: 162,57
A129: 156 | B129: ADESIVO ESTRUTURAL A BASE DE RESINA EPOXI, BICOMPONENTE, FLUIDO | C129: KG | D129: CR | E129: 57,88
A130: 131 | B130: ADESIVO ESTRUTURAL A BASE DE RESINA EPOXI, BICOMPONENTE, PASTOSO (TIXOTROPICO) | C130: KG | D130: CR | E130: 49,50
A131: 21114 | B131: ADESIVO PARA TUBOS CPVC, *75* G | C131: UN | D131: CR | E131: 29,59
A132: 119 | B132: ADESIVO PLASTICO PARA PVC, BISNAGA COM 75 GR | C132: UN | D132: C | E132: 7,50
A133: 122 | B133: ADESIVO PLASTICO PARA PVC, FRASCO COM *850* GR | C133: UN | D133: CR | E133: 57,70
A134: 20080 | B134: ADESIVO PLASTICO PARA PVC, FRASCO COM 175 GR | C134: UN | D134: CR | E134: 18,83
A135: 124 | B135: ADITIVO ACELERADOR DE PEGA E ENDURECIMENTO PARA ARGAMASSAS E CONCRETOS, LIQUIDO E ISENTO DE CLORETOS | C135: L | D135: CR | E135: 19,09
A136: 7334 | B136: ADITIVO ADESIVO LIQUIDO PARA ARGAMASSAS DE REVESTIMENTOS CIMENTICIOS | C136: L | D136: CR | E136: 16,08
A137: 123 | B137: ADITIVO IMPERMEABILIZANTE DE PEGA NORMAL PARA ARGAMASSAS E CONCRETOS SEM ARMACAO, LIQUIDO E ISENTO DE CLORETOS | C137: L | D137: C | E137: 7,81
A138: 127 | B138: ADITIVO IMPERMEABILIZANTE DE PEGA ULTRARRAPIDA, LIQUIDO E ISENTO DE CLORETOS | C138: L | D138: CR | E138: 18,64
A139: 41373 | B139: ADITIVO LIQUIDO IMPERMEABILIZANTE CRISTALIZANTE | C139: L | D139: CR | E139: 25,98
A140: 133 | B140: ADITIVO LIQUIDO INCORPORADOR DE AR PARA CONCRETO E ARGAMASSA, LIQUIDO E ISENTO DE CLORETOS | C140: L | D140: CR | E140: 7,74
A141: 43617 | B141: ADITIVO PLASTIFICANTE E ESTABILIZADOR PARA ARGAMASSAS DE ASSENTAMENTO E REBOCO, LIQUIDO E ISENTO DE CLORETOS | C141: L | D141: CR | E141: 8,65
A142: 132 | B142: ADITIVO PLASTIFICANTE RETARDADOR DE PEGA E REDUTOR DE AGUA PARA CONCRETO, LIQUIDO E ISENTO DE CLORETOS | C142: L | D142: CR | E142: 8,03
A143: 43618 | B143: ADITIVO SUPERPLASTIFICANTE DE PEGA NORMAL PARA CONCRETO, LIQUIDO E ISENTO DE CLORETOS | C143: KG | D143: CR | E143: 20,21
A144: 37476 | B144: ADUELA/ GALERIA PRE-MOLDADA DE CONCRETO ARMADO, SECAO QUADRADA INTERNA DE 1,50 X 1,50 M (L X A), MISULA DE 20 X 20 CM, C = 1,00 M, ESPESSURA MIN = 15 CM, TB-45 E FCK DO CONCRETO = 30 MPA | C144: UN | D144: CR | E144: 2.911,76
A145: 37478 | B145: ADUELA/ GALERIA PRE-MOLDADA DE CONCRETO ARMADO, SECAO RETANGULAR INTERNA DE 2,00 X 2,00 M (L X A), MISULA DE 20 X 20 CM, C = 1,00 M, ESPESSURA MIN = 15 CM, TB-45 E FCK DO CONCRETO = 30 MPA | C145: UN | D145: CR | E145: 3.647,05
A146: 37477 | B146: ADUELA/ GALERIA PRE-MOLDADA DE CONCRETO ARMADO, SECAO RETANGULAR INTERNA DE 2,50 X 2,50 M (L X A), MISULA DE 20 X 20 CM, C = 1,00 M, ESPESSURA MIN = 15 CM, TB-45 E FCK DO CONCRETO = 30 MPA | C146: UN | D146: CR | E146: 4.941,17
A147: 37479 | B147: ADUELA/ GALERIA PRE-MOLDADA DE CONCRETO ARMADO, SECAO RETANGULAR INTERNA DE 3,00 X 3,00 M (L X A), MISULA DE 20 X 20 CM, C = 1.00 M, ESPESSURA MIN = 20 CM, TB-45 E FCK DO CONCRETO = 30 MPA | C147: UN | D147: CR | E147: 5.860,29
A148: 4319 | B148: AFASTADOR PARA TELHA DE FIBROCIMENTO CANALETE 90 OU KALHETAO | C148: UN | D148: CR | E148: 1,27
A149: 42409 | B149: AGENTE DE CURA, PROTETOR DA EVAPORACAO DA AGUA DE HIDRATACAO DO CONCRETO | C149: KG | D149: CR | E149: 12,73
A150: 40553 | B150: AGREGADO RECICLADO, TIPO RACHAO RECICLADO CINZA, CLASSE A | C150: M3 | D150: AS | E150: 56,25
A151: 6114 | B151: AJUDANTE DE ARMADOR (HORISTA) | C151: H | D151: CR | E151: 15,06
A152: 40912 | B152: AJUDANTE DE ARMADOR (MENSALISTA) | C152: MES | D152: CR | E152: 2.627,68
A153: 247 | B153: AJUDANTE DE ELETRICISTA (HORISTA) | C153: H | D153: CR | E153: 14,24
A154: 40919 | B154: AJUDANTE DE ELETRICISTA (MENSALISTA) | C154: MES | D154: CR | E154: 2.487,85
A155: 40984 | B155: AJUDANTE DE ESTRUTURAS METALICAS (MENSALISTA) | C155: MES | D155: CR | E155: 3.125,55
A156: 44499 | B156: AJUDANTE DE ESTRUTURAS METALICAS HORISTA | C156: H | D156: CR | E156: 17,91
A157: 248 | B157: AJUDANTE DE OPERACAO EM GERAL (HORISTA) | C157: H | D157: CR | E157: 17,59
A158: 41086 | B158: AJUDANTE DE OPERACAO EM GERAL (MENSALISTA) | C158: MES | D158: CR | E158: 3.072,39
A159: 34466 | B159: AJUDANTE DE PINTOR (HORISTA) | C159: H | D159: CR | E159: 15,03
A160: 41083 | B160: AJUDANTE DE PINTOR (MENSALISTA) | C160: MES | D160: CR | E160: 2.627,12
A161: 252 | B161: AJUDANTE DE SERRALHEIRO (HORISTA) | C161: H | D161: CR | E161: 17,59
A162: 40909 | B162: AJUDANTE DE SERRALHEIRO (MENSALISTA) | C162: MES | D162: CR | E162: 3.072,39
A163: 242 | B163: AJUDANTE ESPECIALIZADO (HORISTA) | C163: H | D163: CR | E163: 17,57
A164: 41085 | B164: AJUDANTE ESPECIALIZADO (MENSALISTA) | C164: MES | D164: CR | E164: 3.065,68
A165: 427 | B165: ALCA PREFORMADA DE CONTRA POSTE, EM ACO GALVANIZADO, PARA CABO 3/16", COMPRIMENTO *860* MM | C165: UN | D165: AS | E165: 6,31
A166: 417 | B166: ALCA PREFORMADA DE DISTRIBUICAO, EM ACO GALVANIZADO, PARA CABO DE ALUMINIO DIAMETRO 16 A 25 MM | C166: UN | D166: AS | E166: 2,97
A167: 11273 | B167: ALCA PREFORMADA DE DISTRIBUICAO, EM ACO GALVANIZADO, PARA CONDUTORES DE ALUMINIO AWG 1/0 (CAA 6/1 OU CA 7 FIOS) | C167: UN | D167: AS | E167: 9,22
A168: 11272 | B168: ALCA PREFORMADA DE DISTRIBUICAO, EM ACO GALVANIZADO, PARA CONDUTORES DE ALUMINIO AWG 2 (CAA 6/1 OU CA 7 FIOS) | C168: UN | D168: AS | E168: 5,57
A169: 11275 | B169: ALCA PREFORMADA DE SERVICO, EM ACO GALVANIZADO, PARA CONDUTORES DE ALUMINIO AWG 4 (CAA 6/1) | C169: UN | D169: AS | E169: 2,23
A170: 11274 | B170: ALCA PREFORMADA DE SERVICO, EM ACO GALVANIZADO, PARA CONDUTORES DE ALUMINIO AWG 6 (CAA 6/1) | C170: UN | D170: AS | E170: 1,70
A171: 38470 | B171: ALICATE DE CORTE DIAGONAL 6 " COM ISOLAMENTO | C171: UN | D171: C | E171: 42,00
A172: 38547 | B172: ALICATE DE CRIMPAR RJ11, RJ12 E RJ45 | C172: UN | D172: CR | E172: 114,61
A173: 38469 | B173: ALICATE DE PRESSAO PARA SOLDA DE CHAPA 18 " | C173: UN | D173: CR | E173: 123,24
A174: 38467 | B174: ALICATE DE PRESSAO 11 " PARA SOLDA, TIPO C | C174: UN | D174: CR | E174: 69,34
A175: 38468 | B175: ALICATE DE PRESSAO 11 " PARA SOLDA, TIPO U | C175: UN | D175: CR | E175: 76,30
A176: 38471 | B176: ALICATE PARA ANEIS DE PISTAO, CAPACIDADE 50 A 100 MM | C176: UN | D176: CR | E176: 99,09
A177: 37370 | B177: ALIMENTACAO - HORISTA (COLETADO CAIXA - ENCARGOS COMPLEMENTARES) | C177: H | D177: C | E177: 2,28
A178: 40862 | B178: ALIMENTACAO - MENSALISTA (COLETADO CAIXA - ENCARGOS COMPLEMENTARES) | C178: MES | D178: C | E178: 429,36
A179: 10658 | B179: ALISADORA DE CONCRETO COM MOTOR A GASOLINA DE 5,5 HP, PESO COM MOTOR DE 78 KG, 4 PAS | C179: UN | D179: AS | E179: 7.199,00
A180: 253 | B180: ALMOXARIFE (HORISTA) | C180: H | D180: C | E180: 20,03
A181: 40809 | B181: ALMOXARIFE (MENSALISTA) | C181: MES | D181: CR | E181: 3.495,42
A182: 42428 | B182: ALONGADOR COM TRES ALTURAS, EM TUBO DE ACO CARBONO, PINTURA NO PROCESSO ELETROSTATICO - EQUIPAMENTO DE GINASTICA PARA ACADEMIA AO AR LIVRE / ACADEMIA DA TERCEIRA IDADE - ATI | C182: UN | D182: AS | E182: 2.271,00
A183: 301 | B183: ANEL BORRACHA PARA TUBO ESGOTO PREDIAL, DN 100 MM (NBR 5688) | C183: UN | D183: C | E183: 4,00
A184: 296 | B184: ANEL BORRACHA PARA TUBO ESGOTO PREDIAL, DN 50 MM (NBR 5688) | C184: UN | D184: CR | E184: 2,26
A185: 297 | B185: ANEL BORRACHA PARA TUBO ESGOTO PREDIAL, DN 75 MM (NBR 5688) | C185: UN | D185: CR | E185: 3,32
A186: 299 | B186: ANEL BORRACHA, DN 100 MM, PARA TUBO SERIE REFORCADA ESGOTO PREDIAL | C186: UN | D186: CR | E186: 4,69
A187: 300 | B187: ANEL BORRACHA, DN 150 MM, PARA TUBO SERIE REFORCADA ESGOTO PREDIAL | C187: UN | D187: CR | E187: 16,24
A188: 20085 | B188: ANEL BORRACHA, DN 50 MM, PARA TUBO SERIE REFORCADA ESGOTO PREDIAL | C188: UN | D188: CR | E188: 2,97
A189: 298 | B189: ANEL BORRACHA, DN 75 MM, PARA TUBO SERIE REFORCADA ESGOTO PREDIAL | C189: UN | D189: CR | E189: 3,61
A190: 311 | B190: ANEL BORRACHA, PARA TUBO PVC DEFOFO, DN 100 MM (NBR 7665) | C190: UN | D190: CR | E190: 13,39
A191: 318 | B191: ANEL BORRACHA, PARA TUBO PVC DEFOFO, DN 150 MM (NBR 7665) | C191: UN | D191: CR | E191: 26,97
A192: 319 | B192: ANEL BORRACHA, PARA TUBO PVC DEFOFO, DN 200 MM (NBR 7665) | C192: UN | D192: CR | E192: 42,28
A193: 303 | B193: ANEL BORRACHA, PARA TUBO PVC, REDE COLETOR ESGOTO, DN 100 MM (NBR 7362) | C193: UN | D193: CR | E193: 4,43
A194: 305 | B194: ANEL BORRACHA, PARA TUBO PVC, REDE COLETOR ESGOTO, DN 150 MM (NBR 7362) | C194: UN | D194: CR | E194: 13,94
A195: 306 | B195: ANEL BORRACHA, PARA TUBO PVC, REDE COLETOR ESGOTO, DN 200 MM (NBR 7362) | C195: UN | D195: CR | E195: 21,14
A196: 307 | B196: ANEL BORRACHA, PARA TUBO PVC, REDE COLETOR ESGOTO, DN 250 MM (NBR 7362) | C196: UN | D196: CR | E196: 53,41
A197: 309 | B197: ANEL BORRACHA, PARA TUBO PVC, REDE COLETOR ESGOTO, DN 350 MM (NBR 7362) | C197: UN | D197: CR | E197: 87,49
A198: 310 | B198: ANEL BORRACHA, PARA TUBO PVC, REDE COLETOR ESGOTO, DN 400 MM (NBR 7362) | C198: UN | D198: CR | E198: 121,26
A199: 328 | B199: ANEL BORRACHA, PARA TUBO/CONEXAO PVC PBA, DN 100 MM, PARA REDE AGUA | C199: UN | D199: CR | E199: 10,60
A200: 325 | B200: ANEL BORRACHA, PARA TUBO/CONEXAO PVC PBA, DN 50 MM, PARA REDE AGUA | C200: UN | D200: CR | E200: 3,13
A201: 20326 | B201: ANEL BORRACHA, PARA TUBO/CONEXAO PVC PBA, DN 60 MM, PARA REDE AGUA | C201: UN | D201: CR | E201: 5,72
A202: 329 | B202: ANEL BORRACHA, PARA TUBO/CONEXAO PVC PBA, DN 75 MM, PARA REDE AGUA | C202: UN | D202: CR | E202: 8,86
... 4743 more rows

Sheet COMP SINAPI
A1: PCI.817.01 - CUSTO DE COMPOSIÇÕES - SINTÉTICO DATA DE EMISSÃO: 14/09/2023 23:47:36 DATA DE RT: 14/09/2023
A2: ENCARGOS SOCIAIS SOBRE PREÇOS DA MÃO-DE-OBRA: 114,55%(HORA) 70,11%(MÊS)
A3: ABRANGÊNCIA : NACIONAL LOCALIDADE : RECIFE DATA DE PREÇO : 08/2023 REFERÊNCIA COLETA : MEDIANO
A5: DESCRICAO DA CLASSE | B5: SIGLA DA CLASSE | C5: DESCRICAO DO TIPO 1 | D5: SIGLA DO TIPO 1 | E5: CODIGO DO AGRUPADOR | F5: DESCRICAO DO AGRUPADOR | G5: CODIGO DA COMPOSICAO | H5: DESCRICAO DA COMPOSICAO | I5: UNIDADE | J5: ORIGEM DE PREÇO | K5: CUSTO TOTAL | L5: VINCULO
A7: ASSENTAMENTO DE TUBOS E PECAS | B7: ASTU | C7: FORNEC E/OU ASSENT DE TUBO DE FERRO FUNDIDO JUNTA ELASTICA | D7: 0045 | G7: 97141 | H7: ASSENTAMENTO DE TUBO DE FERRO FUNDIDO PARA REDE DE ÁGUA, DN 80 MM, JUNTA ELÁSTICA, INSTALADO EM LOCAL COM NÍVEL ALTO DE INTERFERÊNCIAS (NÃO INCLUI FORNECIMENTO). AF_11/2017 | I7: M | J7: COEFICIENTE DE REPRESENTATIVIDADE | K7: 9,80 | L7: CAIXA REFERENCIAL
A8: ASSENTAMENTO DE TUBOS E PECAS | B8: ASTU | C8: FORNEC E/OU ASSENT DE TUBO DE FERRO FUNDIDO JUNTA ELASTICA | D8: 0045 | G8: 97142 | H8: ASSENTAMENTO DE TUBO DE FERRO FUNDIDO PARA REDE DE ÁGUA, DN 100 MM, JUNTA ELÁSTICA, INSTALADO EM LOCAL COM NÍVEL ALTO DE INTERFERÊNCIAS (NÃO INCLUI FORNECIMENTO). AF_11/2017 | I8: M | J8: COEFICIENTE DE REPRESENTATIVIDADE | K8: 10,89 | L8: CAIXA REFERENCIAL
A9: ASSENTAMENTO DE TUBOS E PECAS | B9: ASTU | C9: FORNEC E/OU ASSENT DE TUBO DE FERRO FUNDIDO JUNTA ELASTICA | D9: 0045 | G9: 97143 | H9: ASSENTAMENTO DE TUBO DE FERRO FUNDIDO PARA REDE DE ÁGUA, DN 150 MM, JUNTA ELÁSTICA, INSTALADO EM LOCAL COM NÍVEL ALTO DE INTERFERÊNCIAS (NÃO INCLUI FORNECIMENTO). AF_11/2017 | I9: M | J9: COEFICIENTE DE REPRESENTATIVIDADE | K9: 13,63 | L9: CAIXA REFERENCIAL
A10: ASSENTAMENTO DE TUBOS E PECAS | B10: ASTU | C10: FORNEC E/OU ASSENT DE TUBO DE FERRO FUNDIDO JUNTA ELASTICA | D10: 0045 | G10: 97144 | H10: ASSENTAMENTO DE TUBO DE FERRO FUNDIDO PARA REDE DE ÁGUA, DN 200 MM, JUNTA ELÁSTICA, INSTALADO EM LOCAL COM NÍVEL ALTO DE INTERFERÊNCIAS (NÃO INCLUI FORNECIMENTO). AF_11/2017 | I10: M | J10: COEFICIENTE DE REPRESENTATIVIDADE | K10: 16,35 | L10: CAIXA REFERENCIAL
A11: ASSENTAMENTO DE TUBOS E PECAS | B11: ASTU | C11: FORNEC E/OU ASSENT DE TUBO DE FERRO FUNDIDO JUNTA ELASTICA | D11: 0045 | G11: 97145 | H11: ASSENTAMENTO DE TUBO DE FERRO FUNDIDO PARA REDE DE ÁGUA, DN 250 MM, JUNTA ELÁSTICA, INSTALADO EM LOCAL COM NÍVEL ALTO DE INTERFERÊNCIAS (NÃO INCLUI FORNECIMENTO). AF_11/2017 | I11: M | J11: COEFICIENTE DE REPRESENTATIVIDADE | K11: 19,10 | L11: CAIXA REFERENCIAL
A12: ASSENTAMENTO DE TUBOS E PECAS | B12: ASTU | C12: FORNEC E/OU ASSENT DE TUBO DE FERRO FUNDIDO JUNTA ELASTICA | D12: 0045 | G12: 97146 | H12: ASSENTAMENTO DE TUBO DE FERRO FUNDIDO PARA REDE DE ÁGUA, DN 300 MM, JUNTA ELÁSTICA, INSTALADO EM LOCAL COM NÍVEL ALTO DE INTERFERÊNCIAS (NÃO INCLUI FORNECIMENTO). AF_11/2017 | I12: M | J12: COEFICIENTE DE REPRESENTATIVIDADE | K12: 21,83 | L12: CAIXA REFERENCIAL
A13: ASSENTAMENTO DE TUBOS E PECAS | B13: ASTU | C13: FORNEC E/OU ASSENT DE TUBO DE FERRO FUNDIDO JUNTA ELASTICA | D13: 0045 | G13: 97147 | H13: ASSENTAMENTO DE TUBO DE FERRO FUNDIDO PARA REDE DE ÁGUA, DN 350 MM, JUNTA ELÁSTICA, INSTALADO EM LOCAL COM NÍVEL ALTO DE INTERFERÊNCIAS (NÃO INCLUI FORNECIMENTO). AF_11/2017 | I13: M | J13: COEFICIENTE DE REPRESENTATIVIDADE | K13: 24,59 | L13: CAIXA REFERENCIAL
A14: ASSENTAMENTO DE TUBOS E PECAS | B14: ASTU | C14: FORNEC E/OU ASSENT DE TUBO DE FERRO FUNDIDO JUNTA ELASTICA | D14: 0045 | G14: 97148 | H14: ASSENTAMENTO DE TUBO DE FERRO FUNDIDO PARA REDE DE ÁGUA, DN 400 MM, JUNTA ELÁSTICA, INSTALADO EM LOCAL COM NÍVEL ALTO DE INTERFERÊNCIAS (NÃO INCLUI FORNECIMENTO). AF_11/2017 | I14: M | J14: COEFICIENTE DE REPRESENTATIVIDADE | K14: 27,33 | L14: CAIXA REFERENCIAL
A15: ASSENTAMENTO DE TUBOS E PECAS | B15: ASTU | C15: FORNEC E/OU ASSENT DE TUBO DE FERRO FUNDIDO JUNTA ELASTICA | D15: 0045 | G15: 97149 | H15: ASSENTAMENTO DE TUBO DE FERRO FUNDIDO PARA REDE DE ÁGUA, DN 450 MM, JUNTA ELÁSTICA, INSTALADO EM LOCAL COM NÍVEL ALTO DE INTERFERÊNCIAS (NÃO INCLUI FORNECIMENTO). AF_11/2017 | I15: M | J15: COEFICIENTE DE REPRESENTATIVIDADE | K15: 30,12 | L15: CAIXA REFERENCIAL
A16: ASSENTAMENTO DE TUBOS E PECAS | B16: ASTU | C16: FORNEC E/OU ASSENT DE TUBO DE FERRO FUNDIDO JUNTA ELASTICA | D16: 0045 | G16: 97150 | H16: ASSENTAMENTO DE TUBO DE FERRO FUNDIDO PARA REDE DE ÁGUA, DN 500 MM, JUNTA ELÁSTICA, INSTALADO EM LOCAL COM NÍVEL ALTO DE INTERFERÊNCIAS (NÃO INCLUI FORNECIMENTO). AF_11/2017 | I16: M | J16: COEFICIENTE DE REPRESENTATIVIDADE | K16: 37,10 | L16: CAIXA REFERENCIAL
A17: ASSENTAMENTO DE TUBOS E PECAS | B17: ASTU | C17: FORNEC E/OU ASSENT DE TUBO DE FERRO FUNDIDO JUNTA ELASTICA | D17: 0045 | G17: 97151 | H17: ASSENTAMENTO DE TUBO DE FERRO FUNDIDO PARA REDE DE ÁGUA, DN 600 MM, JUNTA ELÁSTICA, INSTALADO EM LOCAL COM NÍVEL ALTO DE INTERFERÊNCIAS (NÃO INCLUI FORNECIMENTO). AF_11/2017 | I17: M | J17: COEFICIENTE DE REPRESENTATIVIDADE | K17: 43,22 | L17: CAIXA REFERENCIAL
A18: ASSENTAMENTO DE TUBOS E PECAS | B18: ASTU | C18: FORNEC E/OU ASSENT DE TUBO DE FERRO FUNDIDO JUNTA ELASTICA | D18: 0045 | G18: 97152 | H18: ASSENTAMENTO DE TUBO DE FERRO FUNDIDO PARA REDE DE ÁGUA, DN 700 MM, JUNTA ELÁSTICA, INSTALADO EM LOCAL COM NÍVEL ALTO DE INTERFERÊNCIAS (NÃO INCLUI FORNECIMENTO). AF_11/2017 | I18: M | J18: COEFICIENTE DE REPRESENTATIVIDADE | K18: 49,14 | L18: CAIXA REFERENCIAL
A19: ASSENTAMENTO DE TUBOS E PECAS | B19: ASTU | C19: FORNEC E/OU ASSENT DE TUBO DE FERRO FUNDIDO JUNTA ELASTICA | D19: 0045 | G19: 97153 | H19: ASSENTAMENTO DE TUBO DE FERRO FUNDIDO PARA REDE DE ÁGUA, DN 800 MM, JUNTA ELÁSTICA, INSTALADO EM LOCAL COM NÍVEL ALTO DE INTERFERÊNCIAS (NÃO INCLUI FORNECIMENTO). AF_11/2017 | I19: M | J19: COEFICIENTE DE REPRESENTATIVIDADE | K19: 55,19 | L19: CAIXA REFERENCIAL
A20: ASSENTAMENTO DE TUBOS E PECAS | B20: ASTU | C20: FORNEC E/OU ASSENT DE TUBO DE FERRO FUNDIDO JUNTA ELASTICA | D20: 0045 | G20: 97154 | H20: ASSENTAMENTO DE TUBO DE FERRO FUNDIDO PARA REDE DE ÁGUA, DN 900 MM, JUNTA ELÁSTICA, INSTALADO EM LOCAL COM NÍVEL ALTO DE INTERFERÊNCIAS (NÃO INCLUI FORNECIMENTO). AF_11/2017 | I20: M | J20: COEFICIENTE DE REPRESENTATIVIDADE | K20: 61,26 | L20: CAIXA REFERENCIAL
A21: ASSENTAMENTO DE TUBOS E PECAS | B21: ASTU | C21: FORNEC E/OU ASSENT DE TUBO DE FERRO FUNDIDO JUNTA ELASTICA | D21: 0045 | G21: 97155 | H21: ASSENTAMENTO DE TUBO DE FERRO FUNDIDO PARA REDE DE ÁGUA, DN 1000 MM, JUNTA ELÁSTICA, INSTALADO EM LOCAL COM NÍVEL ALTO DE INTERFERÊNCIAS (NÃO INCLUI FORNECIMENTO). AF_11/2017 | I21: M | J21: COEFICIENTE DE REPRESENTATIVIDADE | K21: 67,34 | L21: CAIXA REFERENCIAL
A22: ASSENTAMENTO DE TUBOS E PECAS | B22: ASTU | C22: FORNEC E/OU ASSENT DE TUBO DE FERRO FUNDIDO JUNTA ELASTICA | D22: 0045 | G22: 97156 | H22: ASSENTAMENTO DE TUBO DE FERRO FUNDIDO PARA REDE DE ÁGUA, DN 1200 MM, JUNTA ELÁSTICA, INSTALADO EM LOCAL COM NÍVEL ALTO DE INTERFERÊNCIAS (NÃO INCLUI FORNECIMENTO). AF_11/2017 | I22: M | J22: COEFICIENTE DE REPRESENTATIVIDADE | K22: 79,87 | L22: CAIXA REFERENCIAL
A23: ASSENTAMENTO DE TUBOS E PECAS | B23: ASTU | C23: FORNEC E/OU ASSENT DE TUBO DE FERRO FUNDIDO JUNTA ELASTICA | D23: 0045 | G23: 97157 | H23: ASSENTAMENTO DE TUBO DE FERRO FUNDIDO PARA REDE DE ÁGUA, DN 80 MM, JUNTA ELÁSTICA, INSTALADO EM LOCAL COM NÍVEL BAIXO DE INTERFERÊNCIAS (NÃO INCLUI FORNECIMENTO). AF_11/2017 | I23: M | J23: COEFICIENTE DE REPRESENTATIVIDADE | K23: 5,87 | L23: CAIXA REFERENCIAL
A24: ASSENTAMENTO DE TUBOS E PECAS | B24: ASTU | C24: FORNEC E/OU ASSENT DE TUBO DE FERRO FUNDIDO JUNTA ELASTICA | D24: 0045 | G24: 97158 | H24: ASSENTAMENTO DE TUBO DE FERRO FUNDIDO PARA REDE DE ÁGUA, DN 100 MM, JUNTA ELÁSTICA, INSTALADO EM LOCAL COM NÍVEL BAIXO DE INTERFERÊNCIAS (NÃO INCLUI FORNECIMENTO). AF_11/2017 | I24: M | J24: COEFICIENTE DE REPRESENTATIVIDADE | K24: 6,53 | L24: CAIXA REFERENCIAL
A25: ASSENTAMENTO DE TUBOS E PECAS | B25: ASTU | C25: FORNEC E/OU ASSENT DE TUBO DE FERRO FUNDIDO JUNTA ELASTICA | D25: 0045 | G25: 97159 | H25: ASSENTAMENTO DE TUBO DE FERRO FUNDIDO PARA REDE DE ÁGUA, DN 150 MM, JUNTA ELÁSTICA, INSTALADO EM LOCAL COM NÍVEL BAIXO DE INTERFERÊNCIAS (NÃO INCLUI FORNECIMENTO). AF_11/2017 | I25: M | J25: COEFICIENTE DE REPRESENTATIVIDADE | K25: 8,19 | L25: CAIXA REFERENCIAL
A26: ASSENTAMENTO DE TUBOS E PECAS | B26: ASTU | C26: FORNEC E/OU ASSENT DE TUBO DE FERRO FUNDIDO JUNTA ELASTICA | D26: 0045 | G26: 97160 | H26: ASSENTAMENTO DE TUBO DE FERRO FUNDIDO PARA REDE DE ÁGUA, DN 200 MM, JUNTA ELÁSTICA, INSTALADO EM LOCAL COM NÍVEL BAIXO DE INTERFERÊNCIAS (NÃO INCLUI FORNECIMENTO). AF_11/2017 | I26: M | J26: COEFICIENTE DE REPRESENTATIVIDADE | K26: 9,83 | L26: CAIXA REFERENCIAL
A27: ASSENTAMENTO DE TUBOS E PECAS | B27: ASTU | C27: FORNEC E/OU ASSENT DE TUBO DE FERRO FUNDIDO JUNTA ELASTICA | D27: 0045 | G27: 97161 | H27: ASSENTAMENTO DE TUBO DE FERRO FUNDIDO PARA REDE DE ÁGUA, DN 250 MM, JUNTA ELÁSTICA, INSTALADO EM LOCAL COM NÍVEL BAIXO DE INTERFERÊNCIAS (NÃO INCLUI FORNECIMENTO). AF_11/2017 | I27: M | J27: COEFICIENTE DE REPRESENTATIVIDADE | K27: 11,52 | L27: CAIXA REFERENCIAL
A28: ASSENTAMENTO DE TUBOS E PECAS | B28: ASTU | C28: FORNEC E/OU ASSENT DE TUBO DE FERRO FUNDIDO JUNTA ELASTICA | D28: 0045 | G28: 97162 | H28: ASSENTAMENTO DE TUBO DE FERRO FUNDIDO PARA REDE DE ÁGUA, DN 300 MM, JUNTA ELÁSTICA, INSTALADO EM LOCAL COM NÍVEL BAIXO DE INTERFERÊNCIAS (NÃO INCLUI FORNECIMENTO). AF_11/2017 | I28: M | J28: COEFICIENTE DE REPRESENTATIVIDADE | K28: 13,17 | L28: CAIXA REFERENCIAL
A29: ASSENTAMENTO DE TUBOS E PECAS | B29: ASTU | C29: FORNEC E/OU ASSENT DE TUBO DE FERRO FUNDIDO JUNTA ELASTICA | D29: 0045 | G29: 97163 | H29: ASSENTAMENTO DE TUBO DE FERRO FUNDIDO PARA REDE DE ÁGUA, DN 350 MM, JUNTA ELÁSTICA, INSTALADO EM LOCAL COM NÍVEL BAIXO DE INTERFERÊNCIAS (NÃO INCLUI FORNECIMENTO). AF_11/2017 | I29: M | J29: COEFICIENTE DE REPRESENTATIVIDADE | K29: 14,85 | L29: CAIXA REFERENCIAL
A30: ASSENTAMENTO DE TUBOS E PECAS | B30: ASTU | C30: FORNEC E/OU ASSENT DE TUBO DE FERRO FUNDIDO JUNTA ELASTICA | D30: 0045 | G30: 97164 | H30: ASSENTAMENTO DE TUBO DE FERRO FUNDIDO PARA REDE DE ÁGUA, DN 400 MM, JUNTA ELÁSTICA, INSTALADO EM LOCAL COM NÍVEL BAIXO DE INTERFERÊNCIAS (NÃO INCLUI FORNECIMENTO). AF_11/2017 | I30: M | J30: COEFICIENTE DE REPRESENTATIVIDADE | K30: 16,51 | L30: CAIXA REFERENCIAL
A31: ASSENTAMENTO DE TUBOS E PECAS | B31: ASTU | C31: FORNEC E/OU ASSENT DE TUBO DE FERRO FUNDIDO JUNTA ELASTICA | D31: 0045 | G31: 97165 | H31: ASSENTAMENTO DE TUBO DE FERRO FUNDIDO PARA REDE DE ÁGUA, DN 450 MM, JUNTA ELÁSTICA, INSTALADO EM LOCAL COM NÍVEL BAIXO DE INTERFERÊNCIAS (NÃO INCLUI FORNECIMENTO). AF_11/2017 | I31: M | J31: COEFICIENTE DE REPRESENTATIVIDADE | K31: 18,21 | L31: CAIXA REFERENCIAL
A32: ASSENTAMENTO DE TUBOS E PECAS | B32: ASTU | C32: FORNEC E/OU ASSENT DE TUBO DE FERRO FUNDIDO JUNTA ELASTICA | D32: 0045 | G32: 97166 | H32: ASSENTAMENTO DE TUBO DE FERRO FUNDIDO PARA REDE DE ÁGUA, DN 500 MM, JUNTA ELÁSTICA, INSTALADO EM LOCAL COM NÍVEL BAIXO DE INTERFERÊNCIAS (NÃO INCLUI FORNECIMENTO). AF_11/2017 | I32: M | J32: COEFICIENTE DE REPRESENTATIVIDADE | K32: 22,47 | L32: CAIXA REFERENCIAL
A33: ASSENTAMENTO DE TUBOS E PECAS | B33: ASTU | C33: FORNEC E/OU ASSENT DE TUBO DE FERRO FUNDIDO JUNTA ELASTICA | D33: 0045 | G33: 97167 | H33: ASSENTAMENTO DE TUBO DE FERRO FUNDIDO PARA REDE DE ÁGUA, DN 600 MM, JUNTA ELÁSTICA, INSTALADO EM LOCAL COM NÍVEL BAIXO DE INTERFERÊNCIAS (NÃO INCLUI FORNECIMENTO). AF_11/2017 | I33: M | J33: COEFICIENTE DE REPRESENTATIVIDADE | K33: 26,20 | L33: CAIXA REFERENCIAL
A34: ASSENTAMENTO DE TUBOS E PECAS | B34: ASTU | C34: FORNEC E/OU ASSENT DE TUBO DE FERRO FUNDIDO JUNTA ELASTICA | D34: 0045 | G34: 97168 | H34: ASSENTAMENTO DE TUBO DE FERRO FUNDIDO PARA REDE DE ÁGUA, DN 700 MM, JUNTA ELÁSTICA, INSTALADO EM LOCAL COM NÍVEL BAIXO DE INTERFERÊNCIAS (NÃO INCLUI FORNECIMENTO). AF_11/2017 | I34: M | J34: COEFICIENTE DE REPRESENTATIVIDADE | K34: 29,73 | L34: CAIXA REFERENCIAL
A35: ASSENTAMENTO DE TUBOS E PECAS | B35: ASTU | C35: FORNEC E/OU ASSENT DE TUBO DE FERRO FUNDIDO JUNTA ELASTICA | D35: 0045 | G35: 97169 | H35: ASSENTAMENTO DE TUBO DE FERRO FUNDIDO PARA REDE DE ÁGUA, DN 800 MM, JUNTA ELÁSTICA, INSTALADO EM LOCAL COM NÍVEL BAIXO DE INTERFERÊNCIAS (NÃO INCLUI FORNECIMENTO). AF_11/2017 | I35: M | J35: COEFICIENTE DE REPRESENTATIVIDADE | K35: 33,39 | L35: CAIXA REFERENCIAL
A36: ASSENTAMENTO DE TUBOS E PECAS | B36: ASTU | C36: FORNEC E/OU ASSENT DE TUBO DE FERRO FUNDIDO JUNTA ELASTICA | D36: 0045 | G36: 97170 | H36: ASSENTAMENTO DE TUBO DE FERRO FUNDIDO PARA REDE DE ÁGUA, DN 900 MM, JUNTA ELÁSTICA, INSTALADO EM LOCAL COM NÍVEL BAIXO DE INTERFERÊNCIAS (NÃO INCLUI FORNECIMENTO). AF_11/2017 | I36: M | J36: COEFICIENTE DE REPRESENTATIVIDADE | K36: 37,08 | L36: CAIXA REFERENCIAL
A37: ASSENTAMENTO DE TUBOS E PECAS | B37: ASTU | C37: FORNEC E/OU ASSENT DE TUBO DE FERRO FUNDIDO JUNTA ELASTICA | D37: 0045 | G37: 97171 | H37: ASSENTAMENTO DE TUBO DE FERRO FUNDIDO PARA REDE DE ÁGUA, DN 1000 MM, JUNTA ELÁSTICA, INSTALADO EM LOCAL COM NÍVEL BAIXO DE INTERFERÊNCIAS (NÃO INCLUI FORNECIMENTO). AF_11/2017 | I37: M | J37: COEFICIENTE DE REPRESENTATIVIDADE | K37: 40,79 | L37: CAIXA REFERENCIAL
A38: ASSENTAMENTO DE TUBOS E PECAS | B38: ASTU | C38: FORNEC E/OU ASSENT DE TUBO DE FERRO FUNDIDO JUNTA ELASTICA | D38: 0045 | G38: 97172 | H38: ASSENTAMENTO DE TUBO DE FERRO FUNDIDO PARA REDE DE ÁGUA, DN 1200 MM, JUNTA ELÁSTICA, INSTALADO EM LOCAL COM NÍVEL BAIXO DE INTERFERÊNCIAS (NÃO INCLUI FORNECIMENTO). AF_11/2017 | I38: M | J38: COEFICIENTE DE REPRESENTATIVIDADE | K38: 48,53 | L38: CAIXA REFERENCIAL
A39: ASSENTAMENTO DE TUBOS E PECAS | B39: ASTU | C39: FORNEC E/OU ASSENT DE TUBO DE ACO COM JUNTA SOLDADA | D39: 0046 | G39: 97173 | H39: ASSENTAMENTO DE TUBO DE AÇO CARBONO PARA REDE DE ÁGUA, DN 600 MM (24), JUNTA SOLDADA, INSTALADO EM LOCAL COM NÍVEL ALTO DE INTERFERÊNCIAS (NÃO INCLUI FORNECIMENTO). AF_11/2017 | I39: M | J39: COEFICIENTE DE REPRESENTATIVIDADE | K39: 37,84 | L39: CAIXA REFERENCIAL
A40: ASSENTAMENTO DE TUBOS E PECAS | B40: ASTU | C40: FORNEC E/OU ASSENT DE TUBO DE ACO COM JUNTA SOLDADA | D40: 0046 | G40: 97174 | H40: ASSENTAMENTO DE TUBO DE AÇO CARBONO PARA REDE DE ÁGUA, DN 700 MM (28), JUNTA SOLDADA, INSTALADO EM LOCAL COM NÍVEL ALTO DE INTERFERÊNCIAS (NÃO INCLUI FORNECIMENTO). AF_11/2017 | I40: M | J40: COEFICIENTE DE REPRESENTATIVIDADE | K40: 43,76 | L40: CAIXA REFERENCIAL
A41: ASSENTAMENTO DE TUBOS E PECAS | B41: ASTU | C41: FORNEC E/OU ASSENT DE TUBO DE ACO COM JUNTA SOLDADA | D41: 0046 | G41: 97175 | H41: ASSENTAMENTO DE TUBO DE AÇO CARBONO PARA REDE DE ÁGUA, DN 800 MM (32), JUNTA SOLDADA, INSTALADO EM LOCAL COM NÍVEL ALTO DE INTERFERÊNCIAS (NÃO INCLUI FORNECIMENTO). AF_11/2017 | I41: M | J41: COEFICIENTE DE REPRESENTATIVIDADE | K41: 49,67 | L41: CAIXA REFERENCIAL
A42: ASSENTAMENTO DE TUBOS E PECAS | B42: ASTU | C42: FORNEC E/OU ASSENT DE TUBO DE ACO COM JUNTA SOLDADA | D42: 0046 | G42: 97176 | H42: ASSENTAMENTO DE TUBO DE AÇO CARBONO PARA REDE DE ÁGUA, DN 900 MM (36), JUNTA SOLDADA, INSTALADO EM LOCAL COM NÍVEL ALTO DE INTERFERÊNCIAS (NÃO INCLUI FORNECIMENTO). AF_11/2017 | I42: M | J42: COEFICIENTE DE REPRESENTATIVIDADE | K42: 55,59 | L42: CAIXA REFERENCIAL
A43: ASSENTAMENTO DE TUBOS E PECAS | B43: ASTU | C43: FORNEC E/OU ASSENT DE TUBO DE ACO COM JUNTA SOLDADA | D43: 0046 | G43: 97177 | H43: ASSENTAMENTO DE TUBO DE AÇO CARBONO PARA REDE DE ÁGUA, DN 1000 MM (40) OU DN 1100 MM (44), JUNTA SOLDADA, INSTALADO EM LOCAL COM NÍVEL ALTO DE INTERFERÊNCIAS (NÃO INCLUI FORNECIMENTO). AF_11/2017 | I43: M | J43: COEFICIENTE DE REPRESENTATIVIDADE | K43: 67,43 | L43: CAIXA REFERENCIAL
A44: ASSENTAMENTO DE TUBOS E PECAS | B44: ASTU | C44: FORNEC E/OU ASSENT DE TUBO DE ACO COM JUNTA SOLDADA | D44: 0046 | G44: 97178 | H44: ASSENTAMENTO DE TUBO DE AÇO CARBONO PARA REDE DE ÁGUA, DN 1200 MM (48) OU DN 1300 MM (52), JUNTA SOLDADA, INSTALADO EM LOCAL COM NÍVEL ALTO DE INTERFERÊNCIAS (NÃO INCLUI FORNECIMENTO). AF_11/2017 | I44: M | J44: COEFICIENTE DE REPRESENTATIVIDADE | K44: 79,29 | L44: CAIXA REFERENCIAL
A45: ASSENTAMENTO DE TUBOS E PECAS | B45: ASTU | C45: FORNEC E/OU ASSENT DE TUBO DE ACO COM JUNTA SOLDADA | D45: 0046 | G45: 97179 | H45: ASSENTAMENTO DE TUBO DE AÇO CARBONO PARA REDE DE ÁGUA, DN 1400 MM (56'') OU DN 1500 MM (60), JUNTA SOLDADA, INSTALADO EM LOCAL COM NÍVEL ALTO DE INTERFERÊNCIAS (NÃO INCLUI FORNECIMENTO). AF_11/2017 | I45: M | J45: COEFICIENTE DE REPRESENTATIVIDADE | K45: 91,13 | L45: CAIXA REFERENCIAL
A46: ASSENTAMENTO DE TUBOS E PECAS | B46: ASTU | C46: FORNEC E/OU ASSENT DE TUBO DE ACO COM JUNTA SOLDADA | D46: 0046 | G46: 97180 | H46: ASSENTAMENTO DE TUBO DE AÇO CARBONO PARA REDE DE ÁGUA, DN 1600 MM (64) OU DN 1700 MM (68), JUNTA SOLDADA, INSTALADO EM LOCAL COM NÍVEL ALTO DE INTERFERÊNCIAS (NÃO INCLUI FORNECIMENTO). AF_11/2017 | I46: M | J46: COEFICIENTE DE REPRESENTATIVIDADE | K46: 102,97 | L46: CAIXA REFERENCIAL
A47: ASSENTAMENTO DE TUBOS E PECAS | B47: ASTU | C47: FORNEC E/OU ASSENT DE TUBO DE ACO COM JUNTA SOLDADA | D47: 0046 | G47: 97181 | H47: ASSENTAMENTO DE TUBO DE AÇO CARBONO PARA REDE DE ÁGUA, DN 1800 MM (72) OU DN 1900 MM (76), JUNTA SOLDADA, INSTALADO EM LOCAL COM NÍVEL ALTO DE INTERFERÊNCIAS (NÃO INCLUI FORNECIMENTO). AF_11/2017 | I47: M | J47: COEFICIENTE DE REPRESENTATIVIDADE | K47: 119,56 | L47: CAIXA REFERENCIAL
A48: ASSENTAMENTO DE TUBOS E PECAS | B48: ASTU | C48: FORNEC E/OU ASSENT DE TUBO DE ACO COM JUNTA SOLDADA | D48: 0046 | G48: 97182 | H48: ASSENTAMENTO DE TUBO DE AÇO CARBONO PARA REDE DE ÁGUA, DN 2000 MM (80) OU DN 2100 MM (84), JUNTA SOLDADA, INSTALADO EM LOCAL COM NÍVEL ALTO DE INTERFERÊNCIAS (NÃO INCLUI FORNECIMENTO). AF_11/2017 | I48: M | J48: COEFICIENTE DE REPRESENTATIVIDADE | K48: 131,92 | L48: CAIXA REFERENCIAL
A49: ASSENTAMENTO DE TUBOS E PECAS | B49: ASTU | C49: FORNEC E/OU ASSENT DE TUBO DE ACO COM JUNTA SOLDADA | D49: 0046 | G49: 97183 | H49: ASSENTAMENTO DE TUBO DE AÇO CARBONO PARA REDE DE ÁGUA, DN 600 MM (24), JUNTA SOLDADA, INSTALADO EM LOCAL COM NÍVEL BAIXO DE INTERFERÊNCIAS (NÃO INCLUI FORNECIMENTO). AF_11/2017 | I49: M | J49: COEFICIENTE DE REPRESENTATIVIDADE | K49: 29,78 | L49: CAIXA REFERENCIAL
A50: ASSENTAMENTO DE TUBOS E PECAS | B50: ASTU | C50: FORNEC E/OU ASSENT DE TUBO DE ACO COM JUNTA SOLDADA | D50: 0046 | G50: 97184 | H50: ASSENTAMENTO DE TUBO DE AÇO CARBONO PARA REDE DE ÁGUA, DN 700 MM (28), JUNTA SOLDADA, INSTALADO EM LOCAL COM NÍVEL BAIXO DE INTERFERÊNCIAS (NÃO INCLUI FORNECIMENTO). AF_11/2017 | I50: M | J50: COEFICIENTE DE REPRESENTATIVIDADE | K50: 34,50 | L50: CAIXA REFERENCIAL
A51: ASSENTAMENTO DE TUBOS E PECAS | B51: ASTU | C51: FORNEC E/OU ASSENT DE TUBO DE ACO COM JUNTA SOLDADA | D51: 0046 | G51: 97185 | H51: ASSENTAMENTO DE TUBO DE AÇO CARBONO PARA REDE DE ÁGUA, DN 800 MM (32), JUNTA SOLDADA, INSTALADO EM LOCAL COM NÍVEL BAIXO DE INTERFERÊNCIAS (NÃO INCLUI FORNECIMENTO). AF_11/2017 | I51: M | J51: COEFICIENTE DE REPRESENTATIVIDADE | K51: 39,22 | L51: CAIXA REFERENCIAL
A52: ASSENTAMENTO DE TUBOS E PECAS | B52: ASTU | C52: FORNEC E/OU ASSENT DE TUBO DE ACO COM JUNTA SOLDADA | D52: 0046 | G52: 97186 | H52: ASSENTAMENTO DE TUBO DE AÇO CARBONO PARA REDE DE ÁGUA, DN 900 MM (36), JUNTA SOLDADA, INSTALADO EM LOCAL COM NÍVEL BAIXO DE INTERFERÊNCIAS (NÃO INCLUI FORNECIMENTO). AF_11/2017 | I52: M | J52: COEFICIENTE DE REPRESENTATIVIDADE | K52: 43,96 | L52: CAIXA REFERENCIAL
A53: ASSENTAMENTO DE TUBOS E PECAS | B53: ASTU | C53: FORNEC E/OU ASSENT DE TUBO DE ACO COM JUNTA SOLDADA | D53: 0046 | G53: 97187 | H53: ASSENTAMENTO DE TUBO DE AÇO CARBONO PARA REDE DE ÁGUA, DN 1000 MM (40 ) OU DN 1100 MM (44 ), JUNTA SOLDADA, INSTALADO EM LOCAL COM NÍVEL BAIXO DE INTERFERÊNCIAS (NÃO INCLUI FORNECIMENTO). AF_11/2017 | I53: M | J53: COEFICIENTE DE REPRESENTATIVIDADE | K53: 53,42 | L53: CAIXA REFERENCIAL
A54: ASSENTAMENTO DE TUBOS E PECAS | B54: ASTU | C54: FORNEC E/OU ASSENT DE TUBO DE ACO COM JUNTA SOLDADA | D54: 0046 | G54: 97188 | H54: ASSENTAMENTO DE TUBO DE AÇO CARBONO PARA REDE DE ÁGUA, DN 1200 MM (48) OU DN 1300 MM (52), JUNTA SOLDADA, INSTALADO EM LOCAL COM NÍVEL BAIXO DE INTERFERÊNCIAS (NÃO INCLUI FORNECIMENTO). AF_11/2017 | I54: M | J54: COEFICIENTE DE REPRESENTATIVIDADE | K54: 62,89 | L54: CAIXA REFERENCIAL
A55: ASSENTAMENTO DE TUBOS E PECAS | B55: ASTU | C55: FORNEC E/OU ASSENT DE TUBO DE ACO COM JUNTA SOLDADA | D55: 0046 | G55: 97189 | H55: ASSENTAMENTO DE TUBO DE AÇO CARBONO PARA REDE DE ÁGUA, DN 1400 MM (56'') OU DN 1500 MM (60), JUNTA SOLDADA, INSTALADO EM LOCAL COM NÍVEL BAIXO DE INTERFERÊNCIAS (NÃO INCLUI FORNECIMENTO). AF_11/2017 | I55: M | J55: COEFICIENTE DE REPRESENTATIVIDADE | K55: 72,34 | L55: CAIXA REFERENCIAL
A56: ASSENTAMENTO DE TUBOS E PECAS | B56: ASTU | C56: FORNEC E/OU ASSENT DE TUBO DE ACO COM JUNTA SOLDADA | D56: 0046 | G56: 97190 | H56: ASSENTAMENTO DE TUBO DE AÇO CARBONO PARA REDE DE ÁGUA, DN 1600 MM (64) OU DN 1700 MM (68), JUNTA SOLDADA, INSTALADO EM LOCAL COM NÍVEL BAIXO DE INTERFERÊNCIAS (NÃO INCLUI FORNECIMENTO). AF_11/2017 | I56: M | J56: COEFICIENTE DE REPRESENTATIVIDADE | K56: 81,80 | L56: CAIXA REFERENCIAL
A57: ASSENTAMENTO DE TUBOS E PECAS | B57: ASTU | C57: FORNEC E/OU ASSENT DE TUBO DE ACO COM JUNTA SOLDADA | D57: 0046 | G57: 97191 | H57: ASSENTAMENTO DE TUBO DE AÇO CARBONO PARA REDE DE ÁGUA, DN 1800 MM (72) OU DN 1900 MM (76), JUNTA SOLDADA, INSTALADO EM LOCAL COM NÍVEL BAIXO DE INTERFERÊNCIAS (NÃO INCLUI FORNECIMENTO). AF_11/2017 | I57: M | J57: COEFICIENTE DE REPRESENTATIVIDADE | K57: 94,74 | L57: CAIXA REFERENCIAL
A58: ASSENTAMENTO DE TUBOS E PECAS | B58: ASTU | C58: FORNEC E/OU ASSENT DE TUBO DE ACO COM JUNTA SOLDADA | D58: 0046 | G58: 97192 | H58: ASSENTAMENTO DE TUBO DE AÇO CARBONO PARA REDE DE ÁGUA, DN 2000 MM (80) OU DN 2100 MM (84), JUNTA SOLDADA, INSTALADO EM LOCAL COM NÍVEL BAIXO DE INTERFERÊNCIAS (NÃO INCLUI FORNECIMENTO). AF_11/2017 | I58: M | J58: COEFICIENTE DE REPRESENTATIVIDADE | K58: 104,58 | L58: CAIXA REFERENCIAL
A59: ASSENTAMENTO DE TUBOS E PECAS | B59: ASTU | C59: FORNEC E/OU ASSENT DE TUBO DE PVC COM JUNTA ELASTICA | D59: 0048 | G59: 90694 | H59: TUBO DE PVC PARA REDE COLETORA DE ESGOTO DE PAREDE MACIÇA, DN 100 MM, JUNTA ELÁSTICA - FORNECIMENTO E ASSENTAMENTO. AF_01/2021 | I59: M | J59: COEFICIENTE DE REPRESENTATIVIDADE | K59: 50,73 | L59: CAIXA REFERENCIAL
A60: ASSENTAMENTO DE TUBOS E PECAS | B60: ASTU | C60: FORNEC E/OU ASSENT DE TUBO DE PVC COM JUNTA ELASTICA | D60: 0048 | G60: 90695 | H60: TUBO DE PVC PARA REDE COLETORA DE ESGOTO DE PAREDE MACIÇA, DN 150 MM, JUNTA ELÁSTICA - FORNECIMENTO E ASSENTAMENTO. AF_01/2021 | I60: M | J60: COEFICIENTE DE REPRESENTATIVIDADE | K60: 96,37 | L60: CAIXA REFERENCIAL
A61: ASSENTAMENTO DE TUBOS E PECAS | B61: ASTU | C61: FORNEC E/OU ASSENT DE TUBO DE PVC COM JUNTA ELASTICA | D61: 0048 | G61: 90696 | H61: TUBO DE PVC PARA REDE COLETORA DE ESGOTO DE PAREDE MACIÇA, DN 200 MM, JUNTA ELÁSTICA - FORNECIMENTO E ASSENTAMENTO. AF_01/2021 | I61: M | J61: COEFICIENTE DE REPRESENTATIVIDADE | K61: 161,04 | L61: CAIXA REFERENCIAL
A62: ASSENTAMENTO DE TUBOS E PECAS | B62: ASTU | C62: FORNEC E/OU ASSENT DE TUBO DE PVC COM JUNTA ELASTICA | D62: 0048 | G62: 90697 | H62: TUBO DE PVC PARA REDE COLETORA DE ESGOTO DE PAREDE MACIÇA, DN 250 MM, JUNTA ELÁSTICA - FORNECIMENTO E ASSENTAMENTO. AF_01/2021 | I62: M | J62: COEFICIENTE DE REPRESENTATIVIDADE | K62: 249,83 | L62: CAIXA REFERENCIAL
A63: ASSENTAMENTO DE TUBOS E PECAS | B63: ASTU | C63: FORNEC E/OU ASSENT DE TUBO DE PVC COM JUNTA ELASTICA | D63: 0048 | G63: 90698 | H63: TUBO DE PVC PARA REDE COLETORA DE ESGOTO DE PAREDE MACIÇA, DN 300 MM, JUNTA ELÁSTICA, FORNECIMENTO E ASSENTAMENTO. AF_01/2021 | I63: M | J63: COEFICIENTE DE REPRESENTATIVIDADE | K63: 381,89 | L63: CAIXA REFERENCIAL
A64: ASSENTAMENTO DE TUBOS E PECAS | B64: ASTU | C64: FORNEC E/OU ASSENT DE TUBO DE PVC COM JUNTA ELASTICA | D64: 0048 | G64: 90699 | H64: TUBO DE PVC PARA REDE COLETORA DE ESGOTO DE PAREDE MACIÇA, DN 350 MM, JUNTA ELÁSTICA - FORNECIMENTO E ASSENTAMENTO. AF_01/2021 | I64: M | J64: COEFICIENTE DE REPRESENTATIVIDADE | K64: 537,51 | L64: CAIXA REFERENCIAL
A65: ASSENTAMENTO DE TUBOS E PECAS | B65: ASTU | C65: FORNEC E/OU ASSENT DE TUBO DE PVC COM JUNTA ELASTICA | D65: 0048 | G65: 90700 | H65: TUBO DE PVC PARA REDE COLETORA DE ESGOTO DE PAREDE MACIÇA, DN 400 MM, JUNTA ELÁSTICA FORNECIMENTO E ASSENTAMENTO. AF_01/2021 | I65: M | J65: COEFICIENTE DE REPRESENTATIVIDADE | K65: 627,71 | L65: CAIXA REFERENCIAL
A66: ASSENTAMENTO DE TUBOS E PECAS | B66: ASTU | C66: FORNEC E/OU ASSENT DE TUBO DE PVC COM JUNTA ELASTICA | D66: 0048 | G66: 90701 | H66: TUBO DE PVC CORRUGADO DE DUPLA PAREDE PARA REDE COLETORA DE ESGOTO, DN 150 MM, JUNTA ELÁSTICA - FORNECIMENTO E ASSENTAMENTO. AF_01/2021 | I66: M | J66: COEFICIENTE DE REPRESENTATIVIDADE | K66: 76,17 | L66: CAIXA REFERENCIAL
A67: ASSENTAMENTO DE TUBOS E PECAS | B67: ASTU | C67: FORNEC E/OU ASSENT DE TUBO DE PVC COM JUNTA ELASTICA | D67: 0048 | G67: 90702 | H67: TUBO DE PVC CORRUGADO DE DUPLA PAREDE PARA REDE COLETORA DE ESGOTO, DN 200 MM, JUNTA ELÁSTICA - FORNECIMENTO E ASSENTAMENTO. AF_01/2021 | I67: M | J67: COEFICIENTE DE REPRESENTATIVIDADE | K67: 126,03 | L67: CAIXA REFERENCIAL
A68: ASSENTAMENTO DE TUBOS E PECAS | B68: ASTU | C68: FORNEC E/OU ASSENT DE TUBO DE PVC COM JUNTA ELASTICA | D68: 0048 | G68: 90703 | H68: TUBO DE PVC CORRUGADO DE DUPLA PAREDE PARA REDE COLETORA DE ESGOTO, DN 250 MM, JUNTA ELÁSTICA - FORNECIMENTO E ASSENTAMENTO. AF_01/2021 | I68: M | J68: COEFICIENTE DE REPRESENTATIVIDADE | K68: 198,10 | L68: CAIXA REFERENCIAL
A69: ASSENTAMENTO DE TUBOS E PECAS | B69: ASTU | C69: FORNEC E/OU ASSENT DE TUBO DE PVC COM JUNTA ELASTICA | D69: 0048 | G69: 90704 | H69: TUBO DE PVC CORRUGADO DE DUPLA PAREDE PARA REDE COLETORA DE ESGOTO, DN 300 MM, JUNTA ELÁSTICA - FORNECIMENTO E ASSENTAMENTO. AF_01/2021 | I69: M | J69: COEFICIENTE DE REPRESENTATIVIDADE | K69: 295,72 | L69: CAIXA REFERENCIAL
A70: ASSENTAMENTO DE TUBOS E PECAS | B70: ASTU | C70: FORNEC E/OU ASSENT DE TUBO DE PVC COM JUNTA ELASTICA | D70: 0048 | G70: 90705 | H70: TUBO DE PVC CORRUGADO DE DUPLA PAREDE PARA REDE COLETORA DE ESGOTO, DN 350 MM, JUNTA ELÁSTICA - FORNECIMENTO E ASSENTAMENTO. AF_01/2021 | I70: M | J70: COEFICIENTE DE REPRESENTATIVIDADE | K70: 384,27 | L70: CAIXA REFERENCIAL
A71: ASSENTAMENTO DE TUBOS E PECAS | B71: ASTU | C71: FORNEC E/OU ASSENT DE TUBO DE PVC COM JUNTA ELASTICA | D71: 0048 | G71: 90706 | H71: TUBO DE PVC CORRUGADO DE DUPLA PAREDE PARA REDE COLETORA DE ESGOTO, DN 400 MM, JUNTA ELÁSTICA - FORNECIMENTO E ASSENTAMENTO. AF_01/2021 | I71: M | J71: COEFICIENTE DE REPRESENTATIVIDADE | K71: 509,49 | L71: CAIXA REFERENCIAL
A72: ASSENTAMENTO DE TUBOS E PECAS | B72: ASTU | C72: FORNEC E/OU ASSENT DE TUBO DE PVC COM JUNTA ELASTICA | D72: 0048 | G72: 90708 | H72: TUBO DE PEAD CORRUGADO DE DUPLA PAREDE PARA REDE COLETORA DE ESGOTO, DN 600 MM, JUNTA ELÁSTICA INTEGRADA - FORNECIMENTO E ASSENTAMENTO. AF_01/2021 | I72: M | J72: COEFICIENTE DE REPRESENTATIVIDADE | K72: 1.644,34 | L72: CAIXA REFERENCIAL
A73: ASSENTAMENTO DE TUBOS E PECAS | B73: ASTU | C73: FORNEC E/OU ASSENT DE TUBO DE PVC COM JUNTA ELASTICA | D73: 0048 | G73: 90724 | H73: JUNTA ARGAMASSADA ENTRE TUBO DN 100 MM E O POÇO DE VISITA/ CAIXA DE CONCRETO OU ALVENARIA EM REDES DE ESGOTO. AF_01/2021 | I73: UN | J73: COEFICIENTE DE REPRESENTATIVIDADE | K73: 27,09 | L73: CAIXA REFERENCIAL
A74: ASSENTAMENTO DE TUBOS E PECAS | B74: ASTU | C74: FORNEC E/OU ASSENT DE TUBO DE PVC COM JUNTA ELASTICA | D74: 0048 | G74: 90725 | H74: JUNTA ARGAMASSADA ENTRE TUBO DN 150 MM E O POÇO DE VISITA/ CAIXA DE CONCRETO OU ALVENARIA EM REDES DE ESGOTO. AF_01/2021 | I74: UN | J74: COEFICIENTE DE REPRESENTATIVIDADE | K74: 33,31 | L74: CAIXA REFERENCIAL
A75: ASSENTAMENTO DE TUBOS E PECAS | B75: ASTU | C75: FORNEC E/OU ASSENT DE TUBO DE PVC COM JUNTA ELASTICA | D75: 0048 | G75: 90726 | H75: JUNTA ARGAMASSADA ENTRE TUBO DN 200 MM E O POÇO/ CAIXA DE CONCRETO OU ALVENARIA EM REDES DE ESGOTO. AF_01/2021 | I75: UN | J75: COEFICIENTE DE REPRESENTATIVIDADE | K75: 39,60 | L75: CAIXA REFERENCIAL
A76: ASSENTAMENTO DE TUBOS E PECAS | B76: ASTU | C76: FORNEC E/OU ASSENT DE TUBO DE PVC COM JUNTA ELASTICA | D76: 0048 | G76: 90727 | H76: JUNTA ARGAMASSADA ENTRE TUBO DN 250 MM E O POÇO DE VISITA/ CAIXA DE CONCRETO OU ALVENARIA EM REDES DE ESGOTO. AF_01/2021 | I76: UN | J76: COEFICIENTE DE REPRESENTATIVIDADE | K76: 45,83 | L76: CAIXA REFERENCIAL
A77: ASSENTAMENTO DE TUBOS E PECAS | B77: ASTU | C77: FORNEC E/OU ASSENT DE TUBO DE PVC COM JUNTA ELASTICA | D77: 0048 | G77: 90728 | H77: JUNTA ARGAMASSADA ENTRE TUBO DN 300 MM E O POÇO DE VISITA/ CAIXA DE CONCRETO OU ALVENARIA EM REDES DE ESGOTO. AF_01/2021 | I77: UN | J77: COEFICIENTE DE REPRESENTATIVIDADE | K77: 52,06 | L77: CAIXA REFERENCIAL
A78: ASSENTAMENTO DE TUBOS E PECAS | B78: ASTU | C78: FORNEC E/OU ASSENT DE TUBO DE PVC COM JUNTA ELASTICA | D78: 0048 | G78: 90729 | H78: JUNTA ARGAMASSADA ENTRE TUBO DN 350 MM E O POÇO DE VISITA/ CAIXA DE CONCRETO OU ALVENARIA EM REDES DE ESGOTO. AF_01/2021 | I78: UN | J78: COEFICIENTE DE REPRESENTATIVIDADE | K78: 58,28 | L78: CAIXA REFERENCIAL
A79: ASSENTAMENTO DE TUBOS E PECAS | B79: ASTU | C79: FORNEC E/OU ASSENT DE TUBO DE PVC COM JUNTA ELASTICA | D79: 0048 | G79: 90730 | H79: JUNTA ARGAMASSADA ENTRE TUBO DN 400 MM E O POÇO DE VISITA/ CAIXA DE CONCRETO OU ALVENARIA EM REDES DE ESGOTO. AF_01/2021 | I79: UN | J79: COEFICIENTE DE REPRESENTATIVIDADE | K79: 64,51 | L79: CAIXA REFERENCIAL
A80: ASSENTAMENTO DE TUBOS E PECAS | B80: ASTU | C80: FORNEC E/OU ASSENT DE TUBO DE PVC COM JUNTA ELASTICA | D80: 0048 | G80: 90731 | H80: JUNTA ARGAMASSADA ENTRE TUBO DN 450 MM E O POÇO DE VISITA/ CAIXA DE CONCRETO OU ALVENARIA EM REDES DE ESGOTO. AF_01/2021 | I80: UN | J80: COEFICIENTE DE REPRESENTATIVIDADE | K80: 70,74 | L80: CAIXA REFERENCIAL
A81: ASSENTAMENTO DE TUBOS E PECAS | B81: ASTU | C81: FORNEC E/OU ASSENT DE TUBO DE PVC COM JUNTA ELASTICA | D81: 0048 | G81: 90732 | H81: JUNTA ARGAMASSADA ENTRE TUBO DN 600 MM E O POÇO DE VISITA/ CAIXA DE CONCRETO OU ALVENARIA EM REDES DE ESGOTO. AF_01/2021 | I81: UN | J81: COEFICIENTE DE REPRESENTATIVIDADE | K81: 89,41 | L81: CAIXA REFERENCIAL
A82: ASSENTAMENTO DE TUBOS E PECAS | B82: ASTU | C82: FORNEC E/OU ASSENT DE TUBO DE PVC COM JUNTA ELASTICA | D82: 0048 | G82: 90733 | H82: ASSENTAMENTO DE TUBO DE PVC PARA REDE COLETORA DE ESGOTO DE PAREDE MACIÇA, DN 100 MM, JUNTA ELÁSTICA (NÃO INCLUI FORNECIMENTO). AF_01/2021 | I82: M | J82: COEFICIENTE DE REPRESENTATIVIDADE | K82: 3,83 | L82: CAIXA REFERENCIAL
A83: ASSENTAMENTO DE TUBOS E PECAS | B83: ASTU | C83: FORNEC E/OU ASSENT DE TUBO DE PVC COM JUNTA ELASTICA | D83: 0048 | G83: 90734 | H83: ASSENTAMENTO DE TUBO DE PVC PARA REDE COLETORA DE ESGOTO DE PAREDE MACIÇA, DN 150 MM, JUNTA ELÁSTICA, (NÃO INCLUI FORNECIMENTO). AF_01/2021 | I83: M | J83: COEFICIENTE DE REPRESENTATIVIDADE | K83: 4,53 | L83: CAIXA REFERENCIAL
A84: ASSENTAMENTO DE TUBOS E PECAS | B84: ASTU | C84: FORNEC E/OU ASSENT DE TUBO DE PVC COM JUNTA ELASTICA | D84: 0048 | G84: 90735 | H84: ASSENTAMENTO DE TUBO DE PVC PARA REDE COLETORA DE ESGOTO DE PAREDE MACIÇA, DN 200 MM, JUNTA ELÁSTICA (NÃO INCLUI FORNECIMENTO). AF_01/2021 | I84: M | J84: COEFICIENTE DE REPRESENTATIVIDADE | K84: 5,24 | L84: CAIXA REFERENCIAL
A85: ASSENTAMENTO DE TUBOS E PECAS | B85: ASTU | C85: FORNEC E/OU ASSENT DE TUBO DE PVC COM JUNTA ELASTICA | D85: 0048 | G85: 90736 | H85: ASSENTAMENTO DE TUBO DE PVC PARA REDE COLETORA DE ESGOTO DE PAREDE MACIÇA, DN 250 MM, JUNTA ELÁSTICA (NÃO INCLUI FORNECIMENTO). AF_01/2021 | I85: M | J85: COEFICIENTE DE REPRESENTATIVIDADE | K85: 5,94 | L85: CAIXA REFERENCIAL
A86: ASSENTAMENTO DE TUBOS E PECAS | B86: ASTU | C86: FORNEC E/OU ASSENT DE TUBO DE PVC COM JUNTA ELASTICA | D86: 0048 | G86: 90737 | H86: ASSENTAMENTO DE TUBO DE PVC PARA REDE COLETORA DE ESGOTO DE PAREDE MACIÇA, DN 300 MM, JUNTA ELÁSTICA (NÃO INCLUI FORNECIMENTO). AF_01/2021 | I86: M | J86: COEFICIENTE DE REPRESENTATIVIDADE | K86: 6,66 | L86: CAIXA REFERENCIAL
A87: ASSENTAMENTO DE TUBOS E PECAS | B87: ASTU | C87: FORNEC E/OU ASSENT DE TUBO DE PVC COM JUNTA ELASTICA | D87: 0048 | G87: 90738 | H87: ASSENTAMENTO DE TUBO DE PVC PARA REDE COLETORA DE ESGOTO DE PAREDE MACIÇA, DN 350 MM, JUNTA ELÁSTICA (NÃO INCLUI FORNECIMENTO). AF_01/2021 | I87: M | J87: COEFICIENTE DE REPRESENTATIVIDADE | K87: 7,36 | L87: CAIXA REFERENCIAL
A88: ASSENTAMENTO DE TUBOS E PECAS | B88: ASTU | C88: FORNEC E/OU ASSENT DE TUBO DE PVC COM JUNTA ELASTICA | D88: 0048 | G88: 90739 | H88: ASSENTAMENTO DE TUBO DE PVC PARA REDE COLETORA DE ESGOTO DE PAREDE MACIÇA, DN 400 MM, JUNTA ELÁSTICA (NÃO INCLUI FORNECIMENTO). AF_01/2021 | I88: M | J88: COEFICIENTE DE REPRESENTATIVIDADE | K88: 10,30 | L88: CAIXA REFERENCIAL
A89: ASSENTAMENTO DE TUBOS E PECAS | B89: ASTU | C89: FORNEC E/OU ASSENT DE TUBO DE PVC COM JUNTA ELASTICA | D89: 0048 | G89: 90740 | H89: ASSENTAMENTO DE TUBO DE PVC CORRUGADO DE DUPLA PAREDE PARA REDE COLETORA DE ESGOTO, DN 150 MM, JUNTA ELÁSTICA (NÃO INCLUI FORNECIMENTO). AF_01/2021 | I89: M | J89: COEFICIENTE DE REPRESENTATIVIDADE | K89: 5,05 | L89: CAIXA REFERENCIAL
A90: ASSENTAMENTO DE TUBOS E PECAS | B90: ASTU | C90: FORNEC E/OU ASSENT DE TUBO DE PVC COM JUNTA ELASTICA | D90: 0048 | G90: 90741 | H90: ASSENTAMENTO DE TUBO DE PVC CORRUGADO DE DUPLA PAREDE PARA REDE COLETORA DE ESGOTO, DN 200 MM, JUNTA ELÁSTICA (NÃO INCLUI FORNECIMENTO). AF_01/2021 | I90: M | J90: COEFICIENTE DE REPRESENTATIVIDADE | K90: 5,75 | L90: CAIXA REFERENCIAL
A91: ASSENTAMENTO DE TUBOS E PECAS | B91: ASTU | C91: FORNEC E/OU ASSENT DE TUBO DE PVC COM JUNTA ELASTICA | D91: 0048 | G91: 90742 | H91: ASSENTAMENTO DE TUBO DE PVC CORRUGADO DE DUPLA PAREDE PARA REDE COLETORA DE ESGOTO, DN 250 MM, JUNTA ELÁSTICA (NÃO INCLUI FORNECIMENTO). AF_01/2021 | I91: M | J91: COEFICIENTE DE REPRESENTATIVIDADE | K91: 6,47 | L91: CAIXA REFERENCIAL
A92: ASSENTAMENTO DE TUBOS E PECAS | B92: ASTU | C92: FORNEC E/OU ASSENT DE TUBO DE PVC COM JUNTA ELASTICA | D92: 0048 | G92: 90743 | H92: ASSENTAMENTO DE TUBO DE PVC CORRUGADO DE DUPLA PAREDE PARA REDE COLETORA DE ESGOTO, DN 300 MM, JUNTA ELÁSTICA (NÃO INCLUI FORNECIMENTO). AF_01/2021 | I92: M | J92: COEFICIENTE DE REPRESENTATIVIDADE | K92: 7,18 | L92: CAIXA REFERENCIAL
A93: ASSENTAMENTO DE TUBOS E PECAS | B93: ASTU | C93: FORNEC E/OU ASSENT DE TUBO DE PVC COM JUNTA ELASTICA | D93: 0048 | G93: 90744 | H93: ASSENTAMENTO DE TUBO DE PVC CORRUGADO DE DUPLA PAREDE PARA REDE COLETORA DE ESGOTO, DN 350 MM, JUNTA ELÁSTICA (NÃO INCLUI FORNECIMENTO). AF_01/2021 | I93: M | J93: COEFICIENTE DE REPRESENTATIVIDADE | K93: 7,88 | L93: CAIXA REFERENCIAL
A94: ASSENTAMENTO DE TUBOS E PECAS | B94: ASTU | C94: FORNEC E/OU ASSENT DE TUBO DE PVC COM JUNTA ELASTICA | D94: 0048 | G94: 90745 | H94: ASSENTAMENTO DE TUBO DE PVC CORRUGADO DE DUPLA PAREDE PARA REDE COLETORA DE ESGOTO, DN 400 MM, JUNTA ELÁSTICA (NÃO INCLUI FORNECIMENTO). AF_01/2021 | I94: M | J94: COEFICIENTE DE REPRESENTATIVIDADE | K94: 11,50 | L94: CAIXA REFERENCIAL
A95: ASSENTAMENTO DE TUBOS E PECAS | B95: ASTU | C95: FORNEC E/OU ASSENT DE TUBO DE PVC COM JUNTA ELASTICA | D95: 0048 | G95: 90746 | H95: ASSENTAMENTO DE TUBO DE PEAD CORRUGADO DE DUPLA PAREDE PARA REDE COLETORA DE ESGOTO, DN 450 MM, JUNTA ELÁSTICA INTEGRADA (NÃO INCLUI FORNECIMENTO). AF_01/2021 | I95: M | J95: COEFICIENTE DE REPRESENTATIVIDADE | K95: 4,14 | L95: CAIXA REFERENCIAL
A96: ASSENTAMENTO DE TUBOS E PECAS | B96: ASTU | C96: FORNEC E/OU ASSENT DE TUBO DE PVC COM JUNTA ELASTICA | D96: 0048 | G96: 90747 | H96: ASSENTAMENTO DE TUBO DE PEAD CORRUGADO DE DUPLA PAREDE PARA REDE COLETORA DE ESGOTO, DN 600 MM, JUNTA ELÁSTICA INTEGRADA (NÃO INCLUI FORNECIMENTO). AF_01/2021 | I96: M | J96: COEFICIENTE DE REPRESENTATIVIDADE | K96: 18,51 | L96: CAIXA REFERENCIAL
A97: ASSENTAMENTO DE TUBOS E PECAS | B97: ASTU | C97: FORNEC E/OU ASSENT DE TUBO DE PVC COM JUNTA ELASTICA | D97: 0048 | G97: 94869 | H97: TUBO DE PEAD CORRUGADO DE DUPLA PAREDE PARA REDE COLETORA DE ESGOTO, DN 250 MM, JUNTA ELÁSTICA INTEGRADA - FORNECIMENTO E ASSENTAMENTO. AF_01/2021 | I97: M | J97: COEFICIENTE DE REPRESENTATIVIDADE | K97: 291,31 | L97: CAIXA REFERENCIAL
A98: ASSENTAMENTO DE TUBOS E PECAS | B98: ASTU | C98: FORNEC E/OU ASSENT DE TUBO DE PVC COM JUNTA ELASTICA | D98: 0048 | G98: 94870 | H98: ASSENTAMENTO DE TUBO DE PEAD CORRUGADO DE DUPLA PAREDE PARA REDE COLETORA DE ESGOTO, DN 250 MM, JUNTA ELÁSTICA INTEGRADA (NÃO INCLUI FORNECIMENTO). AF_01/2021 | I98: M | J98: COEFICIENTE DE REPRESENTATIVIDADE | K98: 1,91 | L98: CAIXA REFERENCIAL
A99: ASSENTAMENTO DE TUBOS E PECAS | B99: ASTU | C99: FORNEC E/OU ASSENT DE TUBO DE PVC COM JUNTA ELASTICA | D99: 0048 | G99: 94871 | H99: TUBO DE PEAD CORRUGADO DE DUPLA PAREDE PARA REDE COLETORA DE ESGOTO, DN 300 MM, JUNTA ELÁSTICA INTEGRADA - FORNECIMENTO E ASSENTAMENTO. AF_01/2021 | I99: M | J99: COEFICIENTE DE REPRESENTATIVIDADE | K99: 456,17 | L99: CAIXA REFERENCIAL
A100: ASSENTAMENTO DE TUBOS E PECAS | B100: ASTU | C100: FORNEC E/OU ASSENT DE TUBO DE PVC COM JUNTA ELASTICA | D100: 0048 | G100: 94872 | H100: ASSENTAMENTO DE TUBO DE PEAD CORRUGADO DE DUPLA PAREDE PARA REDE COLETORA DE ESGOTO, DN 300 MM, JUNTA ELÁSTICA INTEGRADA (NÃO INCLUI FORNECIMENTO). AF_01/2021 | I100: M | J100: COEFICIENTE DE REPRESENTATIVIDADE | K100: 2,76 | L100: CAIXA REFERENCIAL
A101: ASSENTAMENTO DE TUBOS E PECAS | B101: ASTU | C101: FORNEC E/OU ASSENT DE TUBO DE PVC COM JUNTA ELASTICA | D101: 0048 | G101: 94875 | H101: TUBO DE PEAD CORRUGADO DE DUPLA PAREDE PARA REDE COLETORA DE ESGOTO, DN 800 MM, JUNTA ELÁSTICA INTEGRADA - FORNECIMENTO E ASSENTAMENTO. AF_01/2021 | I101: M | J101: COEFICIENTE DE REPRESENTATIVIDADE | K101: 2.672,29 | L101: CAIXA REFERENCIAL
A102: ASSENTAMENTO DE TUBOS E PECAS | B102: ASTU | C102: FORNEC E/OU ASSENT DE TUBO DE PVC COM JUNTA ELASTICA | D102: 0048 | G102: 94876 | H102: ASSENTAMENTO DE TUBO DE PEAD CORRUGADO DE DUPLA PAREDE PARA REDE COLETORA DE ESGOTO, DN 800 MM, JUNTA ELÁSTICA INTEGRADA (NÃO INCLUI FORNECIMENTO). AF_01/2021 | I102: M | J102: COEFICIENTE DE REPRESENTATIVIDADE | K102: 30,51 | L102: CAIXA REFERENCIAL
A103: ASSENTAMENTO DE TUBOS E PECAS | B103: ASTU | C103: FORNEC E/OU ASSENT DE TUBO DE PVC COM JUNTA ELASTICA | D103: 0048 | G103: 94878 | H103: ASSENTAMENTO DE TUBO DE PEAD CORRUGADO DE DUPLA PAREDE PARA REDE COLETORA DE ESGOTO, DN 900 MM, JUNTA ELÁSTICA INTEGRADA (NÃO INCLUI FORNECIMENTO). AF_01/2021 | I103: M | J103: COEFICIENTE DE REPRESENTATIVIDADE | K103: 35,37 | L103: CAIXA REFERENCIAL
A104: ASSENTAMENTO DE TUBOS E PECAS | B104: ASTU | C104: FORNEC E/OU ASSENT DE TUBO DE PVC COM JUNTA ELASTICA | D104: 0048 | G104: 94879 | H104: TUBO DE PEAD CORRUGADO DE DUPLA PAREDE PARA REDE COLETORA DE ESGOTO, DN 1000 MM, JUNTA ELÁSTICA INTEGRADA - FORNECIMENTO E ASSENTAMENTO. AF_01/2021 | I104: M | J104: COEFICIENTE DE REPRESENTATIVIDADE | K104: 4.114,83 | L104: CAIXA REFERENCIAL
A105: ASSENTAMENTO DE TUBOS E PECAS | B105: ASTU | C105: FORNEC E/OU ASSENT DE TUBO DE PVC COM JUNTA ELASTICA | D105: 0048 | G105: 94880 | H105: ASSENTAMENTO DE TUBO DE PEAD CORRUGADO DE DUPLA PAREDE PARA REDE COLETORA DE ESGOTO, DN 1000 MM, JUNTA ELÁSTICA INTEGRADA (NÃO INCLUI FORNECIMENTO). AF_01/2021 | I105: M | J105: COEFICIENTE DE REPRESENTATIVIDADE | K105: 45,22 | L105: CAIXA REFERENCIAL
A106: ASSENTAMENTO DE TUBOS E PECAS | B106: ASTU | C106: FORNEC E/OU ASSENT DE TUBO DE PVC COM JUNTA ELASTICA | D106: 0048 | G106: 94881 | H106: TUBO DE PEAD CORRUGADO DE DUPLA PAREDE PARA REDE COLETORA DE ESGOTO, DN 1200 MM, JUNTA ELÁSTICA INTEGRADA - FORNECIMENTO E ASSENTAMENTO. AF_01/2021 | I106: M | J106: COEFICIENTE DE REPRESENTATIVIDADE | K106: 5.677,18 | L106: CAIXA REFERENCIAL
A107: ASSENTAMENTO DE TUBOS E PECAS | B107: ASTU | C107: FORNEC E/OU ASSENT DE TUBO DE PVC COM JUNTA ELASTICA | D107: 0048 | G107: 94882 | H107: ASSENTAMENTO DE TUBO DE PEAD CORRUGADO DE DUPLA PAREDE PARA REDE COLETORA DE ESGOTO, DN 1200 MM, JUNTA ELÁSTICA INTEGRADA (NÃO INCLUI FORNECIMENTO). AF_01/2021 | I107: M | J107: COEFICIENTE DE REPRESENTATIVIDADE | K107: 52,72 | L107: CAIXA REFERENCIAL
A108: ASSENTAMENTO DE TUBOS E PECAS | B108: ASTU | C108: FORNEC E/OU ASSENT DE TUBO DE PVC COM JUNTA ELASTICA | D108: 0048 | G108: 94884 | H108: ASSENTAMENTO DE TUBO DE PEAD CORRUGADO DE DUPLA PAREDE PARA REDE COLETORA DE ESGOTO, DN 1500 MM, JUNTA ELÁSTICA INTEGRADA (NÃO INCLUI FORNECIMENTO). AF_01/2021 | I108: M | J108: COEFICIENTE DE REPRESENTATIVIDADE | K108: 67,94 | L108: CAIXA REFERENCIAL
A109: ASSENTAMENTO DE TUBOS E PECAS | B109: ASTU | C109: FORNEC E/OU ASSENT DE TUBO DE PVC COM JUNTA ELASTICA | D109: 0048 | G109: 97121 | H109: ASSENTAMENTO DE TUBO DE PVC PBA PARA REDE DE ÁGUA, DN 50 MM, JUNTA ELÁSTICA INTEGRADA, INSTALADO EM LOCAL COM NÍVEL ALTO DE INTERFERÊNCIAS (NÃO INCLUI FORNECIMENTO). AF_11/2017 | I109: M | J109: COEFICIENTE DE REPRESENTATIVIDADE | K109: 2,26 | L109: CAIXA REFERENCIAL
A110: ASSENTAMENTO DE TUBOS E PECAS | B110: ASTU | C110: FORNEC E/OU ASSENT DE TUBO DE PVC COM JUNTA ELASTICA | D110: 0048 | G110: 97122 | H110: ASSENTAMENTO DE TUBO DE PVC PBA PARA REDE DE ÁGUA, DN 75 MM, JUNTA ELÁSTICA INTEGRADA, INSTALADO EM LOCAL COM NÍVEL ALTO DE INTERFERÊNCIAS (NÃO INCLUI FORNECIMENTO). AF_11/2017 | I110: M | J110: COEFICIENTE DE REPRESENTATIVIDADE | K110: 3,12 | L110: CAIXA REFERENCIAL
A111: ASSENTAMENTO DE TUBOS E PECAS | B111: ASTU | C111: FORNEC E/OU ASSENT DE TUBO DE PVC COM JUNTA ELASTICA | D111: 0048 | G111: 97123 | H111: ASSENTAMENTO DE TUBO DE PVC PBA PARA REDE DE ÁGUA, DN 100 MM, JUNTA ELÁSTICA INTEGRADA, INSTALADO EM LOCAL COM NÍVEL ALTO DE INTERFERÊNCIAS (NÃO INCLUI FORNECIMENTO). AF_11/2017 | I111: M | J111: COEFICIENTE DE REPRESENTATIVIDADE | K111: 3,96 | L111: CAIXA REFERENCIAL
A112: ASSENTAMENTO DE TUBOS E PECAS | B112: ASTU | C112: FORNEC E/OU ASSENT DE TUBO DE PVC COM JUNTA ELASTICA | D112: 0048 | G112: 97124 | H112: ASSENTAMENTO DE TUBO DE PVC PBA PARA REDE DE ÁGUA, DN 50 MM, JUNTA ELÁSTICA INTEGRADA, INSTALADO EM LOCAL COM NÍVEL BAIXO DE INTERFERÊNCIAS (NÃO INCLUI FORNECIMENTO). AF_11/2017 | I112: M | J112: COEFICIENTE DE REPRESENTATIVIDADE | K112: 0,99 | L112: CAIXA REFERENCIAL
A113: ASSENTAMENTO DE TUBOS E PECAS | B113: ASTU | C113: FORNEC E/OU ASSENT DE TUBO DE PVC COM JUNTA ELASTICA | D113: 0048 | G113: 97125 | H113: ASSENTAMENTO DE TUBO DE PVC PBA PARA REDE DE ÁGUA, DN 75 MM, JUNTA ELÁSTICA INTEGRADA, INSTALADO EM LOCAL COM NÍVEL BAIXO DE INTERFERÊNCIAS (NÃO INCLUI FORNECIMENTO). AF_11/2017 | I113: M | J113: COEFICIENTE DE REPRESENTATIVIDADE | K113: 1,39 | L113: CAIXA REFERENCIAL
A114: ASSENTAMENTO DE TUBOS E PECAS | B114: ASTU | C114: FORNEC E/OU ASSENT DE TUBO DE PVC COM JUNTA ELASTICA | D114: 0048 | G114: 97126 | H114: ASSENTAMENTO DE TUBO DE PVC PBA PARA REDE DE ÁGUA, DN 100 MM, JUNTA ELÁSTICA INTEGRADA, INSTALADO EM LOCAL COM NÍVEL BAIXO DE INTERFERÊNCIAS (NÃO INCLUI FORNECIMENTO). AF_11/2017 | I114: M | J114: COEFICIENTE DE REPRESENTATIVIDADE | K114: 1,76 | L114: CAIXA REFERENCIAL
A115: ASSENTAMENTO DE TUBOS E PECAS | B115: ASTU | C115: FORNEC E/OU ASSENT DE TUBO DE PVC COM JUNTA ELASTICA | D115: 0048 | G115: 102264 | H115: TUBO DE PVC BRANCO PARA REDE COLETORA DE ESGOTO CONDOMINIAL DE PAREDE MACIÇA, DN 100 MM, JUNTA ELÁSTICA - FORNECIMENTO E ASSENTAMENTO. AF_01/2021 | I115: M | J115: COEFICIENTE DE REPRESENTATIVIDADE | K115: 22,12 | L115: CAIXA REFERENCIAL
A116: ASSENTAMENTO DE TUBOS E PECAS | B116: ASTU | C116: FORNEC E/OU ASSENT DE TUBO DE PVC COM JUNTA ELASTICA | D116: 0048 | G116: 102265 | H116: JUNTA ARGAMASSADA ENTRE TUBO DN 800 MM E O POÇO DE VISITA/ CAIXA DE CONCRETO OU ALVENARIA EM REDES DE ESGOTO. AF_01/2021 | I116: UN | J116: COEFICIENTE DE REPRESENTATIVIDADE | K116: 114,31 | L116: CAIXA REFERENCIAL
A117: ASSENTAMENTO DE TUBOS E PECAS | B117: ASTU | C117: FORNEC E/OU ASSENT DE TUBO DE PVC COM JUNTA ELASTICA | D117: 0048 | G117: 102266 | H117: JUNTA ARGAMASSADA ENTRE TUBO DN 900 MM E O POÇO DE VISITA/ CAIXA DE CONCRETO OU ALVENARIA EM REDES DE ESGOTO. AF_01/2021 | I117: UN | J117: COEFICIENTE DE REPRESENTATIVIDADE | K117: 126,76 | L117: CAIXA REFERENCIAL
A118: ASSENTAMENTO DE TUBOS E PECAS | B118: ASTU | C118: FORNEC E/OU ASSENT DE TUBO DE PVC COM JUNTA ELASTICA | D118: 0048 | G118: 102267 | H118: JUNTA ARGAMASSADA ENTRE TUBO DN 1000 MM E O POÇO DE VISITA/ CAIXA DE CONCRETO OU ALVENARIA EM REDES DE ESGOTO. AF_01/2021 | I118: UN | J118: COEFICIENTE DE REPRESENTATIVIDADE | K118: 145,51 | L118: CAIXA REFERENCIAL
A119: ASSENTAMENTO DE TUBOS E PECAS | B119: ASTU | C119: FORNEC E/OU ASSENT DE TUBO DE PVC COM JUNTA ELASTICA | D119: 0048 | G119: 102268 | H119: JUNTA ARGAMASSADA ENTRE TUBO DN 1200 MM E O POÇO DE VISITA/ CAIXA DE CONCRETO OU ALVENARIA EM REDES DE ESGOTO. AF_01/2021 | I119: UN | J119: COEFICIENTE DE REPRESENTATIVIDADE | K119: 164,18 | L119: CAIXA REFERENCIAL
A120: ASSENTAMENTO DE TUBOS E PECAS | B120: ASTU | C120: FORNEC E/OU ASSENT DE TUBO DE PVC COM JUNTA ELASTICA | D120: 0048 | G120: 102269 | H120: JUNTA ARGAMASSADA ENTRE TUBO DN 1500 MM E O POÇO DE VISITA/ CAIXA DE CONCRETO OU ALVENARIA EM REDES DE ESGOTO. AF_01/2021 | I120: UN | J120: COEFICIENTE DE REPRESENTATIVIDADE | K120: 201,53 | L120: CAIXA REFERENCIAL
A121: ASSENTAMENTO DE TUBOS E PECAS | B121: ASTU | C121: FORNEC E/OU ASSENT DE TUBO DE CONCRETO COM JUNTA ELASTICA | D121: 0051 | G121: 92833 | H121: TUBO DE CONCRETO PARA REDES COLETORAS DE ESGOTO SANITÁRIO, DIÂMETRO DE 300 MM, JUNTA ELÁSTICA, INSTALADO EM LOCAL COM BAIXO NÍVEL DE INTERFERÊNCIAS - FORNECIMENTO E ASSENTAMENTO. AF_12/2015 | I121: M | J121: COEFICIENTE DE REPRESENTATIVIDADE | K121: 172,40 | L121: CAIXA REFERENCIAL
A122: ASSENTAMENTO DE TUBOS E PECAS | B122: ASTU | C122: FORNEC E/OU ASSENT DE TUBO DE CONCRETO COM JUNTA ELASTICA | D122: 0051 | G122: 92834 | H122: ASSENTAMENTO DE TUBO DE CONCRETO PARA REDES COLETORAS DE ESGOTO SANITÁRIO, DIÂMETRO DE 300 MM, JUNTA ELÁSTICA, INSTALADO EM LOCAL COM BAIXO NÍVEL DE INTERFERÊNCIAS (NÃO INCLUI FORNECIMENTO). AF_12/2015 | I122: M | J122: COEFICIENTE DE REPRESENTATIVIDADE | K122: 10,01 | L122: CAIXA REFERENCIAL
A123: ASSENTAMENTO DE TUBOS E PECAS | B123: ASTU | C123: FORNEC E/OU ASSENT DE TUBO DE CONCRETO COM JUNTA ELASTICA | D123: 0051 | G123: 92835 | H123: TUBO DE CONCRETO PARA REDES COLETORAS DE ESGOTO SANITÁRIO, DIÂMETRO DE 400 MM, JUNTA ELÁSTICA, INSTALADO EM LOCAL COM BAIXO NÍVEL DE INTERFERÊNCIAS - FORNECIMENTO E ASSENTAMENTO. AF_12/2015 | I123: M | J123: COEFICIENTE DE REPRESENTATIVIDADE | K123: 181,79 | L123: CAIXA REFERENCIAL
A124: ASSENTAMENTO DE TUBOS E PECAS | B124: ASTU | C124: FORNEC E/OU ASSENT DE TUBO DE CONCRETO COM JUNTA ELASTICA | D124: 0051 | G124: 92836 | H124: ASSENTAMENTO DE TUBO DE CONCRETO PARA REDES COLETORAS DE ESGOTO SANITÁRIO, DIÂMETRO DE 400 MM, JUNTA ELÁSTICA, INSTALADO EM LOCAL COM BAIXO NÍVEL DE INTERFERÊNCIAS (NÃO INCLUI FORNECIMENTO). AF_12/2015 | I124: M | J124: COEFICIENTE DE REPRESENTATIVIDADE | K124: 12,77 | L124: CAIXA REFERENCIAL
A125: ASSENTAMENTO DE TUBOS E PECAS | B125: ASTU | C125: FORNEC E/OU ASSENT DE TUBO DE CONCRETO COM JUNTA ELASTICA | D125: 0051 | G125: 92837 | H125: TUBO DE CONCRETO PARA REDES COLETORAS DE ESGOTO SANITÁRIO, DIÂMETRO DE 500 MM, JUNTA ELÁSTICA, INSTALADO EM LOCAL COM BAIXO NÍVEL DE INTERFERÊNCIAS - FORNECIMENTO E ASSENTAMENTO. AF_12/2015 | I125: M | J125: COEFICIENTE DE REPRESENTATIVIDADE | K125: 316,47 | L125: CAIXA REFERENCIAL
A126: ASSENTAMENTO DE TUBOS E PECAS | B126: ASTU | C126: FORNEC E/OU ASSENT DE TUBO DE CONCRETO COM JUNTA ELASTICA | D126: 0051 | G126: 92838 | H126: ASSENTAMENTO DE TUBO DE CONCRETO PARA REDES COLETORAS DE ESGOTO SANITÁRIO, DIÂMETRO DE 500 MM, JUNTA ELÁSTICA, INSTALADO EM LOCAL COM BAIXO NÍVEL DE INTERFERÊNCIAS (NÃO INCLUI FORNECIMENTO). AF_12/2015 | I126: M | J126: COEFICIENTE DE REPRESENTATIVIDADE | K126: 15,32 | L126: CAIXA REFERENCIAL
A127: ASSENTAMENTO DE TUBOS E PECAS | B127: ASTU | C127: FORNEC E/OU ASSENT DE TUBO DE CONCRETO COM JUNTA ELASTICA | D127: 0051 | G127: 92839 | H127: TUBO DE CONCRETO PARA REDES COLETORAS DE ESGOTO SANITÁRIO, DIÂMETRO DE 600 MM, JUNTA ELÁSTICA, INSTALADO EM LOCAL COM BAIXO NÍVEL DE INTERFERÊNCIAS - FORNECIMENTO E ASSENTAMENTO. AF_12/2015 | I127: M | J127: COEFICIENTE DE REPRESENTATIVIDADE | K127: 386,84 | L127: CAIXA REFERENCIAL
A128: ASSENTAMENTO DE TUBOS E PECAS | B128: ASTU | C128: FORNEC E/OU ASSENT DE TUBO DE CONCRETO COM JUNTA ELASTICA | D128: 0051 | G128: 92840 | H128: ASSENTAMENTO DE TUBO DE CONCRETO PARA REDES COLETORAS DE ESGOTO SANITÁRIO, DIÂMETRO DE 600 MM, JUNTA ELÁSTICA, INSTALADO EM LOCAL COM BAIXO NÍVEL DE INTERFERÊNCIAS (NÃO INCLUI FORNECIMENTO). AF_12/2015 | I128: M | J128: COEFICIENTE DE REPRESENTATIVIDADE | K128: 18,17 | L128: CAIXA REFERENCIAL
A129: ASSENTAMENTO DE TUBOS E PECAS | B129: ASTU | C129: FORNEC E/OU ASSENT DE TUBO DE CONCRETO COM JUNTA ELASTICA | D129: 0051 | G129: 92841 | H129: TUBO DE CONCRETO PARA REDES COLETORAS DE ESGOTO SANITÁRIO, DIÂMETRO DE 700 MM, JUNTA ELÁSTICA, INSTALADO EM LOCAL COM BAIXO NÍVEL DE INTERFERÊNCIAS - FORNECIMENTO E ASSENTAMENTO. AF_12/2015 | I129: M | J129: COEFICIENTE DE REPRESENTATIVIDADE | K129: 503,69 | L129: CAIXA REFERENCIAL
A130: ASSENTAMENTO DE TUBOS E PECAS | B130: ASTU | C130: FORNEC E/OU ASSENT DE TUBO DE CONCRETO COM JUNTA ELASTICA | D130: 0051 | G130: 92842 | H130: ASSENTAMENTO DE TUBO DE CONCRETO PARA REDES COLETORAS DE ESGOTO SANITÁRIO, DIÂMETRO DE 700 MM, JUNTA ELÁSTICA, INSTALADO EM LOCAL COM BAIXO NÍVEL DE INTERFERÊNCIAS (NÃO INCLUI FORNECIMENTO). AF_12/2015 | I130: M | J130: COEFICIENTE DE REPRESENTATIVIDADE | K130: 20,73 | L130: CAIXA REFERENCIAL
A131: ASSENTAMENTO DE TUBOS E PECAS | B131: ASTU | C131: FORNEC E/OU ASSENT DE TUBO DE CONCRETO COM JUNTA ELASTICA | D131: 0051 | G131: 92843 | H131: TUBO DE CONCRETO PARA REDES COLETORAS DE ESGOTO SANITÁRIO, DIÂMETRO DE 800 MM, JUNTA ELÁSTICA, INSTALADO EM LOCAL COM BAIXO NÍVEL DE INTERFERÊNCIAS - FORNECIMENTO E ASSENTAMENTO. AF_12/2015 | I131: M | J131: COEFICIENTE DE REPRESENTATIVIDADE | K131: 524,32 | L131: CAIXA REFERENCIAL
A132: ASSENTAMENTO DE TUBOS E PECAS | B132: ASTU | C132: FORNEC E/OU ASSENT DE TUBO DE CONCRETO COM JUNTA ELASTICA | D132: 0051 | G132: 92844 | H132: ASSENTAMENTO DE TUBO DE CONCRETO PARA REDES COLETORAS DE ESGOTO SANITÁRIO, DIÂMETRO DE 800 MM, JUNTA ELÁSTICA, INSTALADO EM LOCAL COM BAIXO NÍVEL DE INTERFERÊNCIAS (NÃO INCLUI FORNECIMENTO). AF_12/2015 | I132: M | J132: COEFICIENTE DE REPRESENTATIVIDADE | K132: 23,58 | L132: CAIXA REFERENCIAL
A133: ASSENTAMENTO DE TUBOS E PECAS | B133: ASTU | C133: FORNEC E/OU ASSENT DE TUBO DE CONCRETO COM JUNTA ELASTICA | D133: 0051 | G133: 92845 | H133: TUBO DE CONCRETO PARA REDES COLETORAS DE ESGOTO SANITÁRIO, DIÂMETRO DE 900 MM, JUNTA ELÁSTICA, INSTALADO EM LOCAL COM BAIXO NÍVEL DE INTERFERÊNCIAS - FORNECIMENTO E ASSENTAMENTO. AF_12/2015 | I133: M | J133: COEFICIENTE DE REPRESENTATIVIDADE | K133: 770,52 | L133: CAIXA REFERENCIAL
A134: ASSENTAMENTO DE TUBOS E PECAS | B134: ASTU | C134: FORNEC E/OU ASSENT DE TUBO DE CONCRETO COM JUNTA ELASTICA | D134: 0051 | G134: 92846 | H134: ASSENTAMENTO DE TUBO DE CONCRETO PARA REDES COLETORAS DE ESGOTO SANITÁRIO, DIÂMETRO DE 900 MM, JUNTA ELÁSTICA, INSTALADO EM LOCAL COM BAIXO NÍVEL DE INTERFERÊNCIAS (NÃO INCLUI FORNECIMENTO). AF_12/2015 | I134: M | J134: COEFICIENTE DE REPRESENTATIVIDADE | K134: 26,12 | L134: CAIXA REFERENCIAL
A135: ASSENTAMENTO DE TUBOS E PECAS | B135: ASTU | C135: FORNEC E/OU ASSENT DE TUBO DE CONCRETO COM JUNTA ELASTICA | D135: 0051 | G135: 92847 | H135: TUBO DE CONCRETO PARA REDES COLETORAS DE ESGOTO SANITÁRIO, DIÂMETRO DE 1000 MM, JUNTA ELÁSTICA, INSTALADO EM LOCAL COM BAIXO NÍVEL DE INTERFERÊNCIAS - FORNECIMENTO E ASSENTAMENTO. AF_12/2015 | I135: M | J135: COEFICIENTE DE REPRESENTATIVIDADE | K135: 795,65 | L135: CAIXA REFERENCIAL
A136: ASSENTAMENTO DE TUBOS E PECAS | B136: ASTU | C136: FORNEC E/OU ASSENT DE TUBO DE CONCRETO COM JUNTA ELASTICA | D136: 0051 | G136: 92848 | H136: ASSENTAMENTO DE TUBO DE CONCRETO PARA REDES COLETORAS DE ESGOTO SANITÁRIO, DIÂMETRO DE 1000 MM, JUNTA ELÁSTICA, INSTALADO EM LOCAL COM BAIXO NÍVEL DE INTERFERÊNCIAS (NÃO INCLUI FORNECIMENTO). AF_12/2015 | I136: M | J136: COEFICIENTE DE REPRESENTATIVIDADE | K136: 29,00 | L136: CAIXA REFERENCIAL
A137: ASSENTAMENTO DE TUBOS E PECAS | B137: ASTU | C137: FORNEC E/OU ASSENT DE TUBO DE CONCRETO COM JUNTA ELASTICA | D137: 0051 | G137: 92849 | H137: TUBO DE CONCRETO PARA REDES COLETORAS DE ESGOTO SANITÁRIO, DIÂMETRO DE 300 MM, JUNTA ELÁSTICA, INSTALADO EM LOCAL COM ALTO NÍVEL DE INTERFERÊNCIAS - FORNECIMENTO E ASSENTAMENTO. AF_12/2015 | I137: M | J137: COEFICIENTE DE REPRESENTATIVIDADE | K137: 181,31 | L137: CAIXA REFERENCIAL
A138: ASSENTAMENTO DE TUBOS E PECAS | B138: ASTU | C138: FORNEC E/OU ASSENT DE TUBO DE CONCRETO COM JUNTA ELASTICA | D138: 0051 | G138: 92850 | H138: ASSENTAMENTO DE TUBO DE CONCRETO PARA REDES COLETORAS DE ESGOTO SANITÁRIO, DIÂMETRO DE 300 MM, JUNTA ELÁSTICA, INSTALADO EM LOCAL COM ALTO NÍVEL DE INTERFERÊNCIAS (NÃO INCLUI FORNECIMENTO). AF_12/2015 | I138: M | J138: COEFICIENTE DE REPRESENTATIVIDADE | K138: 18,92 | L138: CAIXA REFERENCIAL
A139: ASSENTAMENTO DE TUBOS E PECAS | B139: ASTU | C139: FORNEC E/OU ASSENT DE TUBO DE CONCRETO COM JUNTA ELASTICA | D139: 0051 | G139: 92851 | H139: TUBO DE CONCRETO PARA REDES COLETORAS DE ESGOTO SANITÁRIO, DIÂMETRO DE 400 MM, JUNTA ELÁSTICA, INSTALADO EM LOCAL COM ALTO NÍVEL DE INTERFERÊNCIAS - FORNECIMENTO E ASSENTAMENTO. AF_12/2015 | I139: M | J139: COEFICIENTE DE REPRESENTATIVIDADE | K139: 192,91 | L139: CAIXA REFERENCIAL
A140: ASSENTAMENTO DE TUBOS E PECAS | B140: ASTU | C140: FORNEC E/OU ASSENT DE TUBO DE CONCRETO COM JUNTA ELASTICA | D140: 0051 | G140: 92852 | H140: ASSENTAMENTO DE TUBO DE CONCRETO PARA REDES COLETORAS DE ESGOTO SANITÁRIO, DIÂMETRO DE 400 MM, JUNTA ELÁSTICA, INSTALADO EM LOCAL COM ALTO NÍVEL DE INTERFERÊNCIAS (NÃO INCLUI FORNECIMENTO). AF_12/2015 | I140: M | J140: COEFICIENTE DE REPRESENTATIVIDADE | K140: 23,89 | L140: CAIXA REFERENCIAL
A141: ASSENTAMENTO DE TUBOS E PECAS | B141: ASTU | C141: FORNEC E/OU ASSENT DE TUBO DE CONCRETO COM JUNTA ELASTICA | D141: 0051 | G141: 92853 | H141: TUBO DE CONCRETO PARA REDES COLETORAS DE ESGOTO SANITÁRIO, DIÂMETRO DE 500 MM, JUNTA ELÁSTICA, INSTALADO EM LOCAL COM ALTO NÍVEL DE INTERFERÊNCIAS - FORNECIMENTO E ASSENTAMENTO. AF_12/2015 | I141: M | J141: COEFICIENTE DE REPRESENTATIVIDADE | K141: 330,24 | L141: CAIXA REFERENCIAL
A142: ASSENTAMENTO DE TUBOS E PECAS | B142: ASTU | C142: FORNEC E/OU ASSENT DE TUBO DE CONCRETO COM JUNTA ELASTICA | D142: 0051 | G142: 92854 | H142: ASSENTAMENTO DE TUBO DE CONCRETO PARA REDES COLETORAS DE ESGOTO SANITÁRIO, DIÂMETRO DE 500 MM, JUNTA ELÁSTICA, INSTALADO EM LOCAL COM ALTO NÍVEL DE INTERFERÊNCIAS (NÃO INCLUI FORNECIMENTO). AF_12/2015 | I142: M | J142: COEFICIENTE DE REPRESENTATIVIDADE | K142: 29,09 | L142: CAIXA REFERENCIAL
A143: ASSENTAMENTO DE TUBOS E PECAS | B143: ASTU | C143: FORNEC E/OU ASSENT DE TUBO DE CONCRETO COM JUNTA ELASTICA | D143: 0051 | G143: 92855 | H143: TUBO DE CONCRETO PARA REDES COLETORAS DE ESGOTO SANITÁRIO, DIÂMETRO DE 600 MM, JUNTA ELÁSTICA, INSTALADO EM LOCAL COM ALTO NÍVEL DE INTERFERÊNCIAS - FORNECIMENTO E ASSENTAMENTO. AF_12/2015 | I143: M | J143: COEFICIENTE DE REPRESENTATIVIDADE | K143: 402,95 | L143: CAIXA REFERENCIAL
A144: ASSENTAMENTO DE TUBOS E PECAS | B144: ASTU | C144: FORNEC E/OU ASSENT DE TUBO DE CONCRETO COM JUNTA ELASTICA | D144: 0051 | G144: 92856 | H144: ASSENTAMENTO DE TUBO DE CONCRETO PARA REDES COLETORAS DE ESGOTO SANITÁRIO, DIÂMETRO DE 600 MM, JUNTA ELÁSTICA, INSTALADO EM LOCAL COM ALTO NÍVEL DE INTERFERÊNCIAS (NÃO INCLUI FORNECIMENTO). AF_12/2015 | I144: M | J144: COEFICIENTE DE REPRESENTATIVIDADE | K144: 34,28 | L144: CAIXA REFERENCIAL
A145: ASSENTAMENTO DE TUBOS E PECAS | B145: ASTU | C145: FORNEC E/OU ASSENT DE TUBO DE CONCRETO COM JUNTA ELASTICA | D145: 0051 | G145: 92857 | H145: TUBO DE CONCRETO PARA REDES COLETORAS DE ESGOTO SANITÁRIO, DIÂMETRO DE 700 MM, JUNTA ELÁSTICA, INSTALADO EM LOCAL COM ALTO NÍVEL DE INTERFERÊNCIAS - FORNECIMENTO E ASSENTAMENTO. AF_12/2015 | I145: M | J145: COEFICIENTE DE REPRESENTATIVIDADE | K145: 522,20 | L145: CAIXA REFERENCIAL
A146: ASSENTAMENTO DE TUBOS E PECAS | B146: ASTU | C146: FORNEC E/OU ASSENT DE TUBO DE CONCRETO COM JUNTA ELASTICA | D146: 0051 | G146: 92858 | H146: ASSENTAMENTO DE TUBO DE CONCRETO PARA REDES COLETORAS DE ESGOTO SANITÁRIO, DIÂMETRO DE 700 MM, JUNTA ELÁSTICA, INSTALADO EM LOCAL COM ALTO NÍVEL DE INTERFERÊNCIAS (NÃO INCLUI FORNECIMENTO). AF_12/2015 | I146: M | J146: COEFICIENTE DE REPRESENTATIVIDADE | K146: 39,24 | L146: CAIXA REFERENCIAL
A147: ASSENTAMENTO DE TUBOS E PECAS | B147: ASTU | C147: FORNEC E/OU ASSENT DE TUBO DE CONCRETO COM JUNTA ELASTICA | D147: 0051 | G147: 92859 | H147: TUBO DE CONCRETO PARA REDES COLETORAS DE ESGOTO SANITÁRIO, DIÂMETRO DE 800 MM, JUNTA ELÁSTICA, INSTALADO EM LOCAL COM ALTO NÍVEL DE INTERFERÊNCIAS - FORNECIMENTO E ASSENTAMENTO. AF_12/2015 | I147: M | J147: COEFICIENTE DE REPRESENTATIVIDADE | K147: 545,30 | L147: CAIXA REFERENCIAL
A148: ASSENTAMENTO DE TUBOS E PECAS | B148: ASTU | C148: FORNEC E/OU ASSENT DE TUBO DE CONCRETO COM JUNTA ELASTICA | D148: 0051 | G148: 92860 | H148: ASSENTAMENTO DE TUBO DE CONCRETO PARA REDES COLETORAS DE ESGOTO SANITÁRIO, DIÂMETRO DE 800 MM, JUNTA ELÁSTICA, INSTALADO EM LOCAL COM ALTO NÍVEL DE INTERFERÊNCIAS (NÃO INCLUI FORNECIMENTO). AF_12/2015 | I148: M | J148: COEFICIENTE DE REPRESENTATIVIDADE | K148: 44,56 | L148: CAIXA REFERENCIAL
A149: ASSENTAMENTO DE TUBOS E PECAS | B149: ASTU | C149: FORNEC E/OU ASSENT DE TUBO DE CONCRETO COM JUNTA ELASTICA | D149: 0051 | G149: 92861 | H149: TUBO DE CONCRETO PARA REDES COLETORAS DE ESGOTO SANITÁRIO, DIÂMETRO DE 900 MM, JUNTA ELÁSTICA, INSTALADO EM LOCAL COM ALTO NÍVEL DE INTERFERÊNCIAS - FORNECIMENTO E ASSENTAMENTO. AF_12/2015 | I149: M | J149: COEFICIENTE DE REPRESENTATIVIDADE | K149: 794,13 | L149: CAIXA REFERENCIAL
A150: ASSENTAMENTO DE TUBOS E PECAS | B150: ASTU | C150: FORNEC E/OU ASSENT DE TUBO DE CONCRETO COM JUNTA ELASTICA | D150: 0051 | G150: 92862 | H150: ASSENTAMENTO DE TUBO DE CONCRETO PARA REDES COLETORAS DE ESGOTO SANITÁRIO, DIÂMETRO DE 900 MM, JUNTA ELÁSTICA, INSTALADO EM LOCAL COM ALTO NÍVEL DE INTERFERÊNCIAS (NÃO INCLUI FORNECIMENTO). AF_12/2015 | I150: M | J150: COEFICIENTE DE REPRESENTATIVIDADE | K150: 49,73 | L150: CAIXA REFERENCIAL
A151: ASSENTAMENTO DE TUBOS E PECAS | B151: ASTU | C151: FORNEC E/OU ASSENT DE TUBO DE CONCRETO COM JUNTA ELASTICA | D151: 0051 | G151: 92863 | H151: TUBO DE CONCRETO PARA REDES COLETORAS DE ESGOTO SANITÁRIO, DIÂMETRO DE 1000 MM, JUNTA ELÁSTICA, INSTALADO EM LOCAL COM ALTO NÍVEL DE INTERFERÊNCIAS - FORNECIMENTO E ASSENTAMENTO. AF_12/2015 | I151: M | J151: COEFICIENTE DE REPRESENTATIVIDADE | K151: 821,58 | L151: CAIXA REFERENCIAL
A152: ASSENTAMENTO DE TUBOS E PECAS | B152: ASTU | C152: FORNEC E/OU ASSENT DE TUBO DE CONCRETO COM JUNTA ELASTICA | D152: 0051 | G152: 92864 | H152: ASSENTAMENTO DE TUBO DE CONCRETO PARA REDES COLETORAS DE ESGOTO SANITÁRIO, DIÂMETRO DE 1000 MM, JUNTA ELÁSTICA, INSTALADO EM LOCAL COM ALTO NÍVEL DE INTERFERÊNCIAS (NÃO INCLUI FORNECIMENTO). AF_12/2015 | I152: M | J152: COEFICIENTE DE REPRESENTATIVIDADE | K152: 54,93 | L152: CAIXA REFERENCIAL
A153: ASSENTAMENTO DE TUBOS E PECAS | B153: ASTU | C153: FORNEC E/OU ASSENT DE TUBO DE CONCRETO COM JUNTA ARGAMASSADA | D153: 0052 | G153: 92210 | H153: TUBO DE CONCRETO PARA REDES COLETORAS DE ÁGUAS PLUVIAIS, DIÂMETRO DE 400 MM, JUNTA RÍGIDA, INSTALADO EM LOCAL COM BAIXO NÍVEL DE INTERFERÊNCIAS - FORNECIMENTO E ASSENTAMENTO. AF_12/2015 | I153: M | J153: COEFICIENTE DE REPRESENTATIVIDADE | K153: 150,86 | L153: CAIXA REFERENCIAL
A154: ASSENTAMENTO DE TUBOS E PECAS | B154: ASTU | C154: FORNEC E/OU ASSENT DE TUBO DE CONCRETO COM JUNTA ARGAMASSADA | D154: 0052 | G154: 92211 | H154: TUBO DE CONCRETO PARA REDES COLETORAS DE ÁGUAS PLUVIAIS, DIÂMETRO DE 500 MM, JUNTA RÍGIDA, INSTALADO EM LOCAL COM BAIXO NÍVEL DE INTERFERÊNCIAS - FORNECIMENTO E ASSENTAMENTO. AF_12/2015 | I154: M | J154: COEFICIENTE DE REPRESENTATIVIDADE | K154: 181,54 | L154: CAIXA REFERENCIAL
A155: ASSENTAMENTO DE TUBOS E PECAS | B155: ASTU | C155: FORNEC E/OU ASSENT DE TUBO DE CONCRETO COM JUNTA ARGAMASSADA | D155: 0052 | G155: 92212 | H155: TUBO DE CONCRETO PARA REDES COLETORAS DE ÁGUAS PLUVIAIS, DIÂMETRO DE 600 MM, JUNTA RÍGIDA, INSTALADO EM LOCAL COM BAIXO NÍVEL DE INTERFERÊNCIAS - FORNECIMENTO E ASSENTAMENTO. AF_12/2015 | I155: M | J155: COEFICIENTE DE REPRESENTATIVIDADE | K155: 263,84 | L155: CAIXA REFERENCIAL
A156: ASSENTAMENTO DE TUBOS E PECAS | B156: ASTU | C156: FORNEC E/OU ASSENT DE TUBO DE CONCRETO COM JUNTA ARGAMASSADA | D156: 0052 | G156: 92213 | H156: TUBO DE CONCRETO PARA REDES COLETORAS DE ÁGUAS PLUVIAIS, DIÂMETRO DE 700 MM, JUNTA RÍGIDA, INSTALADO EM LOCAL COM BAIXO NÍVEL DE INTERFERÊNCIAS - FORNECIMENTO E ASSENTAMENTO. AF_12/2015 | I156: M | J156: COEFICIENTE DE REPRESENTATIVIDADE | K156: 342,42 | L156: CAIXA REFERENCIAL
A157: ASSENTAMENTO DE TUBOS E PECAS | B157: ASTU | C157: FORNEC E/OU ASSENT DE TUBO DE CONCRETO COM JUNTA ARGAMASSADA | D157: 0052 | G157: 92214 | H157: TUBO DE CONCRETO PARA REDES COLETORAS DE ÁGUAS PLUVIAIS, DIÂMETRO DE 800 MM, JUNTA RÍGIDA, INSTALADO EM LOCAL COM BAIXO NÍVEL DE INTERFERÊNCIAS - FORNECIMENTO E ASSENTAMENTO. AF_12/2015 | I157: M | J157: COEFICIENTE DE REPRESENTATIVIDADE | K157: 411,99 | L157: CAIXA REFERENCIAL
A158: ASSENTAMENTO DE TUBOS E PECAS | B158: ASTU | C158: FORNEC E/OU ASSENT DE TUBO DE CONCRETO COM JUNTA ARGAMASSADA | D158: 0052 | G158: 92215 | H158: TUBO DE CONCRETO PARA REDES COLETORAS DE ÁGUAS PLUVIAIS, DIÂMETRO DE 900 MM, JUNTA RÍGIDA, INSTALADO EM LOCAL COM BAIXO NÍVEL DE INTERFERÊNCIAS - FORNECIMENTO E ASSENTAMENTO. AF_12/2015 | I158: M | J158: COEFICIENTE DE REPRESENTATIVIDADE | K158: 472,70 | L158: CAIXA REFERENCIAL
A159: ASSENTAMENTO DE TUBOS E PECAS | B159: ASTU | C159: FORNEC E/OU ASSENT DE TUBO DE CONCRETO COM JUNTA ARGAMASSADA | D159: 0052 | G159: 92216 | H159: TUBO DE CONCRETO PARA REDES COLETORAS DE ÁGUAS PLUVIAIS, DIÂMETRO DE 1000 MM, JUNTA RÍGIDA, INSTALADO EM LOCAL COM BAIXO NÍVEL DE INTERFERÊNCIAS - FORNECIMENTO E ASSENTAMENTO. AF_12/2015 | I159: M | J159: COEFICIENTE DE REPRESENTATIVIDADE | K159: 497,83 | L159: CAIXA REFERENCIAL
A160: ASSENTAMENTO DE TUBOS E PECAS | B160: ASTU | C160: FORNEC E/OU ASSENT DE TUBO DE CONCRETO COM JUNTA ARGAMASSADA | D160: 0052 | G160: 92219 | H160: TUBO DE CONCRETO PARA REDES COLETORAS DE ÁGUAS PLUVIAIS, DIÂMETRO DE 400 MM, JUNTA RÍGIDA, INSTALADO EM LOCAL COM ALTO NÍVEL DE INTERFERÊNCIAS - FORNECIMENTO E ASSENTAMENTO. AF_12/2015 | I160: M | J160: COEFICIENTE DE REPRESENTATIVIDADE | K160: 161,98 | L160: CAIXA REFERENCIAL
A161: ASSENTAMENTO DE TUBOS E PECAS | B161: ASTU | C161: FORNEC E/OU ASSENT DE TUBO DE CONCRETO COM JUNTA ARGAMASSADA | D161: 0052 | G161: 92220 | H161: TUBO DE CONCRETO PARA REDES COLETORAS DE ÁGUAS PLUVIAIS, DIÂMETRO DE 500 MM, JUNTA RÍGIDA, INSTALADO EM LOCAL COM ALTO NÍVEL DE INTERFERÊNCIAS - FORNECIMENTO E ASSENTAMENTO. AF_12/2015 | I161: M | J161: COEFICIENTE DE REPRESENTATIVIDADE | K161: 195,31 | L161: CAIXA REFERENCIAL
A162: ASSENTAMENTO DE TUBOS E PECAS | B162: ASTU | C162: FORNEC E/OU ASSENT DE TUBO DE CONCRETO COM JUNTA ARGAMASSADA | D162: 0052 | G162: 92221 | H162: TUBO DE CONCRETO PARA REDES COLETORAS DE ÁGUAS PLUVIAIS, DIÂMETRO DE 600 MM, JUNTA RÍGIDA, INSTALADO EM LOCAL COM ALTO NÍVEL DE INTERFERÊNCIAS - FORNECIMENTO E ASSENTAMENTO. AF_12/2015 | I162: M | J162: COEFICIENTE DE REPRESENTATIVIDADE | K162: 279,96 | L162: CAIXA REFERENCIAL
A163: ASSENTAMENTO DE TUBOS E PECAS | B163: ASTU | C163: FORNEC E/OU ASSENT DE TUBO DE CONCRETO COM JUNTA ARGAMASSADA | D163: 0052 | G163: 92222 | H163: TUBO DE CONCRETO PARA REDES COLETORAS DE ÁGUAS PLUVIAIS, DIÂMETRO DE 700 MM, JUNTA RÍGIDA, INSTALADO EM LOCAL COM ALTO NÍVEL DE INTERFERÊNCIAS - FORNECIMENTO E ASSENTAMENTO. AF_12/2015 | I163: M | J163: COEFICIENTE DE REPRESENTATIVIDADE | K163: 361,17 | L163: CAIXA REFERENCIAL
A164: ASSENTAMENTO DE TUBOS E PECAS | B164: ASTU | C164: FORNEC E/OU ASSENT DE TUBO DE CONCRETO COM JUNTA ARGAMASSADA | D164: 0052 | G164: 92223 | H164: TUBO DE CONCRETO PARA REDES COLETORAS DE ÁGUAS PLUVIAIS, DIÂMETRO DE 800 MM, JUNTA RÍGIDA, INSTALADO EM LOCAL COM ALTO NÍVEL DE INTERFERÊNCIAS - FORNECIMENTO E ASSENTAMENTO. AF_12/2015 | I164: M | J164: COEFICIENTE DE REPRESENTATIVIDADE | K164: 432,97 | L164: CAIXA REFERENCIAL
A165: ASSENTAMENTO DE TUBOS E PECAS | B165: ASTU | C165: FORNEC E/OU ASSENT DE TUBO DE CONCRETO COM JUNTA ARGAMASSADA | D165: 0052 | G165: 92224 | H165: TUBO DE CONCRETO PARA REDES COLETORAS DE ÁGUAS PLUVIAIS, DIÂMETRO DE 900 MM, JUNTA RÍGIDA, INSTALADO EM LOCAL COM ALTO NÍVEL DE INTERFERÊNCIAS - FORNECIMENTO E ASSENTAMENTO. AF_12/2015 | I165: M | J165: COEFICIENTE DE REPRESENTATIVIDADE | K165: 495,98 | L165: CAIXA REFERENCIAL
A166: ASSENTAMENTO DE TUBOS E PECAS | B166: ASTU | C166: FORNEC E/OU ASSENT DE TUBO DE CONCRETO COM JUNTA ARGAMASSADA | D166: 0052 | G166: 92226 | H166: TUBO DE CONCRETO PARA REDES COLETORAS DE ÁGUAS PLUVIAIS, DIÂMETRO DE 1000 MM, JUNTA RÍGIDA, INSTALADO EM LOCAL COM ALTO NÍVEL DE INTERFERÊNCIAS - FORNECIMENTO E ASSENTAMENTO. AF_12/2015 | I166: M | J166: COEFICIENTE DE REPRESENTATIVIDADE | K166: 523,89 | L166: CAIXA REFERENCIAL
A167: ASSENTAMENTO DE TUBOS E PECAS | B167: ASTU | C167: FORNEC E/OU ASSENT DE TUBO DE CONCRETO COM JUNTA ARGAMASSADA | D167: 0052 | G167: 92808 | H167: ASSENTAMENTO DE TUBO DE CONCRETO PARA REDES COLETORAS DE ÁGUAS PLUVIAIS, DIÂMETRO DE 300 MM, JUNTA RÍGIDA, INSTALADO EM LOCAL COM BAIXO NÍVEL DE INTERFERÊNCIAS (NÃO INCLUI FORNECIMENTO). AF_12/2015 | I167: M | J167: COEFICIENTE DE REPRESENTATIVIDADE | K167: 45,01 | L167: CAIXA REFERENCIAL
A168: ASSENTAMENTO DE TUBOS E PECAS | B168: ASTU | C168: FORNEC E/OU ASSENT DE TUBO DE CONCRETO COM JUNTA ARGAMASSADA | D168: 0052 | G168: 92809 | H168: ASSENTAMENTO DE TUBO DE CONCRETO PARA REDES COLETORAS DE ÁGUAS PLUVIAIS, DIÂMETRO DE 400 MM, JUNTA RÍGIDA, INSTALADO EM LOCAL COM BAIXO NÍVEL DE INTERFERÊNCIAS (NÃO INCLUI FORNECIMENTO). AF_12/2015 | I168: M | J168: COEFICIENTE DE REPRESENTATIVIDADE | K168: 57,71 | L168: CAIXA REFERENCIAL
A169: ASSENTAMENTO DE TUBOS E PECAS | B169: ASTU | C169: FORNEC E/OU ASSENT DE TUBO DE CONCRETO COM JUNTA ARGAMASSADA | D169: 0052 | G169: 92810 | H169: ASSENTAMENTO DE TUBO DE CONCRETO PARA REDES COLETORAS DE ÁGUAS PLUVIAIS, DIÂMETRO DE 500 MM, JUNTA RÍGIDA, INSTALADO EM LOCAL COM BAIXO NÍVEL DE INTERFERÊNCIAS (NÃO INCLUI FORNECIMENTO). AF_12/2015 | I169: M | J169: COEFICIENTE DE REPRESENTATIVIDADE | K169: 70,22 | L169: CAIXA REFERENCIAL
A170: ASSENTAMENTO DE TUBOS E PECAS | B170: ASTU | C170: FORNEC E/OU ASSENT DE TUBO DE CONCRETO COM JUNTA ARGAMASSADA | D170: 0052 | G170: 92811 | H170: ASSENTAMENTO DE TUBO DE CONCRETO PARA REDES COLETORAS DE ÁGUAS PLUVIAIS, DIÂMETRO DE 600 MM, JUNTA RÍGIDA, INSTALADO EM LOCAL COM BAIXO NÍVEL DE INTERFERÊNCIAS (NÃO INCLUI FORNECIMENTO). AF_12/2015 | I170: M | J170: COEFICIENTE DE REPRESENTATIVIDADE | K170: 83,59 | L170: CAIXA REFERENCIAL
A171: ASSENTAMENTO DE TUBOS E PECAS | B171: ASTU | C171: FORNEC E/OU ASSENT DE TUBO DE CONCRETO COM JUNTA ARGAMASSADA | D171: 0052 | G171: 92812 | H171: ASSENTAMENTO DE TUBO DE CONCRETO PARA REDES COLETORAS DE ÁGUAS PLUVIAIS, DIÂMETRO DE 700 MM, JUNTA RÍGIDA, INSTALADO EM LOCAL COM BAIXO NÍVEL DE INTERFERÊNCIAS (NÃO INCLUI FORNECIMENTO). AF_12/2015 | I171: M | J171: COEFICIENTE DE REPRESENTATIVIDADE | K171: 96,75 | L171: CAIXA REFERENCIAL
A172: ASSENTAMENTO DE TUBOS E PECAS | B172: ASTU | C172: FORNEC E/OU ASSENT DE TUBO DE CONCRETO COM JUNTA ARGAMASSADA | D172: 0052 | G172: 92813 | H172: ASSENTAMENTO DE TUBO DE CONCRETO PARA REDES COLETORAS DE ÁGUAS PLUVIAIS, DIÂMETRO DE 800 MM, JUNTA RÍGIDA, INSTALADO EM LOCAL COM BAIXO NÍVEL DE INTERFERÊNCIAS (NÃO INCLUI FORNECIMENTO). AF_12/2015 | I172: M | J172: COEFICIENTE DE REPRESENTATIVIDADE | K172: 112,09 | L172: CAIXA REFERENCIAL
A173: ASSENTAMENTO DE TUBOS E PECAS | B173: ASTU | C173: FORNEC E/OU ASSENT DE TUBO DE CONCRETO COM JUNTA ARGAMASSADA | D173: 0052 | G173: 92814 | H173: ASSENTAMENTO DE TUBO DE CONCRETO PARA REDES COLETORAS DE ÁGUAS PLUVIAIS, DIÂMETRO DE 900 MM, JUNTA RÍGIDA, INSTALADO EM LOCAL COM BAIXO NÍVEL DE INTERFERÊNCIAS (NÃO INCLUI FORNECIMENTO). AF_12/2015 | I173: M | J173: COEFICIENTE DE REPRESENTATIVIDADE | K173: 128,12 | L173: CAIXA REFERENCIAL
A174: ASSENTAMENTO DE TUBOS E PECAS | B174: ASTU | C174: FORNEC E/OU ASSENT DE TUBO DE CONCRETO COM JUNTA ARGAMASSADA | D174: 0052 | G174: 92815 | H174: ASSENTAMENTO DE TUBO DE CONCRETO PARA REDES COLETORAS DE ÁGUAS PLUVIAIS, DIÂMETRO DE 1000 MM, JUNTA RÍGIDA, INSTALADO EM LOCAL COM BAIXO NÍVEL DE INTERFERÊNCIAS (NÃO INCLUI FORNECIMENTO). AF_12/2015 | I174: M | J174: COEFICIENTE DE REPRESENTATIVIDADE | K174: 146,43 | L174: CAIXA REFERENCIAL
A175: ASSENTAMENTO DE TUBOS E PECAS | B175: ASTU | C175: FORNEC E/OU ASSENT DE TUBO DE CONCRETO COM JUNTA ARGAMASSADA | D175: 0052 | G175: 92816 | H175: TUBO DE CONCRETO PARA REDES COLETORAS DE ÁGUAS PLUVIAIS, DIÂMETRO DE 1200 MM, JUNTA RÍGIDA, INSTALADO EM LOCAL COM BAIXO NÍVEL DE INTERFERÊNCIAS - FORNECIMENTO E ASSENTAMENTO. AF_12/2015 | I175: M | J175: COEFICIENTE DE REPRESENTATIVIDADE | K175: 708,08 | L175: CAIXA REFERENCIAL
A176: ASSENTAMENTO DE TUBOS E PECAS | B176: ASTU | C176: FORNEC E/OU ASSENT DE TUBO DE CONCRETO COM JUNTA ARGAMASSADA | D176: 0052 | G176: 92817 | H176: ASSENTAMENTO DE TUBO DE CONCRETO PARA REDES COLETORAS DE ÁGUAS PLUVIAIS, DIÂMETRO DE 1200 MM, JUNTA RÍGIDA, INSTALADO EM LOCAL COM BAIXO NÍVEL DE INTERFERÊNCIAS (NÃO INCLUI FORNECIMENTO). AF_12/2015 | I176: M | J176: COEFICIENTE DE REPRESENTATIVIDADE | K176: 183,25 | L176: CAIXA REFERENCIAL
A177: ASSENTAMENTO DE TUBOS E PECAS | B177: ASTU | C177: FORNEC E/OU ASSENT DE TUBO DE CONCRETO COM JUNTA ARGAMASSADA | D177: 0052 | G177: 92818 | H177: TUBO DE CONCRETO PARA REDES COLETORAS DE ÁGUAS PLUVIAIS, DIÂMETRO DE 1500 MM, JUNTA RÍGIDA, INSTALADO EM LOCAL COM BAIXO NÍVEL DE INTERFERÊNCIAS - FORNECIMENTO E ASSENTAMENTO. AF_12/2015 | I177: M | J177: COEFICIENTE DE REPRESENTATIVIDADE | K177: 1.007,01 | L177: CAIXA REFERENCIAL
A178: ASSENTAMENTO DE TUBOS E PECAS | B178: ASTU | C178: FORNEC E/OU ASSENT DE TUBO DE CONCRETO COM JUNTA ARGAMASSADA | D178: 0052 | G178: 92819 | H178: ASSENTAMENTO DE TUBO DE CONCRETO PARA REDES COLETORAS DE ÁGUAS PLUVIAIS, DIÂMETRO DE 1500 MM, JUNTA RÍGIDA, INSTALADO EM LOCAL COM BAIXO NÍVEL DE INTERFERÊNCIAS (NÃO INCLUI FORNECIMENTO). AF_12/2015 | I178: M | J178: COEFICIENTE DE REPRESENTATIVIDADE | K178: 246,64 | L178: CAIXA REFERENCIAL
A179: ASSENTAMENTO DE TUBOS E PECAS | B179: ASTU | C179: FORNEC E/OU ASSENT DE TUBO DE CONCRETO COM JUNTA ARGAMASSADA | D179: 0052 | G179: 92820 | H179: ASSENTAMENTO DE TUBO DE CONCRETO PARA REDES COLETORAS DE ÁGUAS PLUVIAIS, DIÂMETRO DE 300 MM, JUNTA RÍGIDA, INSTALADO EM LOCAL COM ALTO NÍVEL DE INTERFERÊNCIAS (NÃO INCLUI FORNECIMENTO). AF_12/2015 | I179: M | J179: COEFICIENTE DE REPRESENTATIVIDADE | K179: 53,70 | L179: CAIXA REFERENCIAL
A180: ASSENTAMENTO DE TUBOS E PECAS | B180: ASTU | C180: FORNEC E/OU ASSENT DE TUBO DE CONCRETO COM JUNTA ARGAMASSADA | D180: 0052 | G180: 92821 | H180: ASSENTAMENTO DE TUBO DE CONCRETO PARA REDES COLETORAS DE ÁGUAS PLUVIAIS, DIÂMETRO DE 400 MM, JUNTA RÍGIDA, INSTALADO EM LOCAL COM ALTO NÍVEL DE INTERFERÊNCIAS (NÃO INCLUI FORNECIMENTO). AF_12/2015 | I180: M | J180: COEFICIENTE DE REPRESENTATIVIDADE | K180: 68,83 | L180: CAIXA REFERENCIAL
A181: ASSENTAMENTO DE TUBOS E PECAS | B181: ASTU | C181: FORNEC E/OU ASSENT DE TUBO DE CONCRETO COM JUNTA ARGAMASSADA | D181: 0052 | G181: 92822 | H181: ASSENTAMENTO DE TUBO DE CONCRETO PARA REDES COLETORAS DE ÁGUAS PLUVIAIS, DIÂMETRO DE 500 MM, JUNTA RÍGIDA, INSTALADO EM LOCAL COM ALTO NÍVEL DE INTERFERÊNCIAS (NÃO INCLUI FORNECIMENTO). AF_12/2015 | I181: M | J181: COEFICIENTE DE REPRESENTATIVIDADE | K181: 83,99 | L181: CAIXA REFERENCIAL
A182: ASSENTAMENTO DE TUBOS E PECAS | B182: ASTU | C182: FORNEC E/OU ASSENT DE TUBO DE CONCRETO COM JUNTA ARGAMASSADA | D182: 0052 | G182: 92824 | H182: ASSENTAMENTO DE TUBO DE CONCRETO PARA REDES COLETORAS DE ÁGUAS PLUVIAIS, DIÂMETRO DE 600 MM, JUNTA RÍGIDA, INSTALADO EM LOCAL COM ALTO NÍVEL DE INTERFERÊNCIAS (NÃO INCLUI FORNECIMENTO). AF_12/2015 | I182: M | J182: COEFICIENTE DE REPRESENTATIVIDADE | K182: 99,71 | L182: CAIXA REFERENCIAL
A183: ASSENTAMENTO DE TUBOS E PECAS | B183: ASTU | C183: FORNEC E/OU ASSENT DE TUBO DE CONCRETO COM JUNTA ARGAMASSADA | D183: 0052 | G183: 92825 | H183: ASSENTAMENTO DE TUBO DE CONCRETO PARA REDES COLETORAS DE ÁGUAS PLUVIAIS, DIÂMETRO DE 700 MM, JUNTA RÍGIDA, INSTALADO EM LOCAL COM ALTO NÍVEL DE INTERFERÊNCIAS (NÃO INCLUI FORNECIMENTO). AF_12/2015 | I183: M | J183: COEFICIENTE DE REPRESENTATIVIDADE | K183: 115,50 | L183: CAIXA REFERENCIAL
A184: ASSENTAMENTO DE TUBOS E PECAS | B184: ASTU | C184: FORNEC E/OU ASSENT DE TUBO DE CONCRETO COM JUNTA ARGAMASSADA | D184: 0052 | G184: 92826 | H184: ASSENTAMENTO DE TUBO DE CONCRETO PARA REDES COLETORAS DE ÁGUAS PLUVIAIS, DIÂMETRO DE 800 MM, JUNTA RÍGIDA, INSTALADO EM LOCAL COM ALTO NÍVEL DE INTERFERÊNCIAS (NÃO INCLUI FORNECIMENTO). AF_12/2015 | I184: M | J184: COEFICIENTE DE REPRESENTATIVIDADE | K184: 133,07 | L184: CAIXA REFERENCIAL
A185: ASSENTAMENTO DE TUBOS E PECAS | B185: ASTU | C185: FORNEC E/OU ASSENT DE TUBO DE CONCRETO COM JUNTA ARGAMASSADA | D185: 0052 | G185: 92827 | H185: ASSENTAMENTO DE TUBO DE CONCRETO PARA REDES COLETORAS DE ÁGUAS PLUVIAIS, DIÂMETRO DE 900 MM, JUNTA RÍGIDA, INSTALADO EM LOCAL COM ALTO NÍVEL DE INTERFERÊNCIAS (NÃO INCLUI FORNECIMENTO). AF_12/2015 | I185: M | J185: COEFICIENTE DE REPRESENTATIVIDADE | K185: 151,40 | L185: CAIXA REFERENCIAL
A186: ASSENTAMENTO DE TUBOS E PECAS | B186: ASTU | C186: FORNEC E/OU ASSENT DE TUBO DE CONCRETO COM JUNTA ARGAMASSADA | D186: 0052 | G186: 92828 | H186: ASSENTAMENTO DE TUBO DE CONCRETO PARA REDES COLETORAS DE ÁGUAS PLUVIAIS, DIÂMETRO DE 1000 MM, JUNTA RÍGIDA, INSTALADO EM LOCAL COM ALTO NÍVEL DE INTERFERÊNCIAS (NÃO INCLUI FORNECIMENTO). AF_12/2015 | I186: M | J186: COEFICIENTE DE REPRESENTATIVIDADE | K186: 172,49 | L186: CAIXA REFERENCIAL
A187: ASSENTAMENTO DE TUBOS E PECAS | B187: ASTU | C187: FORNEC E/OU ASSENT DE TUBO DE CONCRETO COM JUNTA ARGAMASSADA | D187: 0052 | G187: 92829 | H187: TUBO DE CONCRETO PARA REDES COLETORAS DE ÁGUAS PLUVIAIS, DIÂMETRO DE 1200 MM, JUNTA RÍGIDA, INSTALADO EM LOCAL COM ALTO NÍVEL DE INTERFERÊNCIAS - FORNECIMENTO E ASSENTAMENTO. AF_12/2015 | I187: M | J187: COEFICIENTE DE REPRESENTATIVIDADE | K187: 738,80 | L187: CAIXA REFERENCIAL
A188: ASSENTAMENTO DE TUBOS E PECAS | B188: ASTU | C188: FORNEC E/OU ASSENT DE TUBO DE CONCRETO COM JUNTA ARGAMASSADA | D188: 0052 | G188: 92830 | H188: ASSENTAMENTO DE TUBO DE CONCRETO PARA REDES COLETORAS DE ÁGUAS PLUVIAIS, DIÂMETRO DE 1200 MM, JUNTA RÍGIDA, INSTALADO EM LOCAL COM ALTO NÍVEL DE INTERFERÊNCIAS (NÃO INCLUI FORNECIMENTO). AF_12/2015 | I188: M | J188: COEFICIENTE DE REPRESENTATIVIDADE | K188: 213,97 | L188: CAIXA REFERENCIAL
A189: ASSENTAMENTO DE TUBOS E PECAS | B189: ASTU | C189: FORNEC E/OU ASSENT DE TUBO DE CONCRETO COM JUNTA ARGAMASSADA | D189: 0052 | G189: 92831 | H189: TUBO DE CONCRETO PARA REDES COLETORAS DE ÁGUAS PLUVIAIS, DIÂMETRO DE 1500 MM, JUNTA RÍGIDA, INSTALADO EM LOCAL COM ALTO NÍVEL DE INTERFERÊNCIAS - FORNECIMENTO E ASSENTAMENTO. AF_12/2015 | I189: M | J189: COEFICIENTE DE REPRESENTATIVIDADE | K189: 1.044,83 | L189: CAIXA REFERENCIAL
A190: ASSENTAMENTO DE TUBOS E PECAS | B190: ASTU | C190: FORNEC E/OU ASSENT DE TUBO DE CONCRETO COM JUNTA ARGAMASSADA | D190: 0052 | G190: 92832 | H190: ASSENTAMENTO DE TUBO DE CONCRETO PARA REDES COLETORAS DE ÁGUAS PLUVIAIS, DIÂMETRO DE 1500 MM, JUNTA RÍGIDA, INSTALADO EM LOCAL COM ALTO NÍVEL DE INTERFERÊNCIAS (NÃO INCLUI FORNECIMENTO). AF_12/2015 | I190: M | J190: COEFICIENTE DE REPRESENTATIVIDADE | K190: 284,46 | L190: CAIXA REFERENCIAL
A191: ASSENTAMENTO DE TUBOS E PECAS | B191: ASTU | C191: FORNEC E/OU ASSENT DE TUBO DE CONCRETO COM JUNTA ARGAMASSADA | D191: 0052 | G191: 95565 | H191: TUBO DE CONCRETO PARA REDES COLETORAS DE ÁGUAS PLUVIAIS, DIÂMETRO DE 300MM, JUNTA RÍGIDA, INSTALADO EM LOCAL COM BAIXO NÍVEL DE INTERFERÊNCIAS - FORNECIMENTO E ASSENTAMENTO. AF_12/2015 | I191: M | J191: COEFICIENTE DE REPRESENTATIVIDADE | K191: 127,55 | L191: CAIXA REFERENCIAL
A192: ASSENTAMENTO DE TUBOS E PECAS | B192: ASTU | C192: FORNEC E/OU ASSENT DE TUBO DE CONCRETO COM JUNTA ARGAMASSADA | D192: 0052 | G192: 95566 | H192: TUBO DE CONCRETO PARA REDES COLETORAS DE ÁGUAS PLUVIAIS, DIÂMETRO DE 300MM, JUNTA RÍGIDA, INSTALADO EM LOCAL COM ALTO NÍVEL DE INTERFERÊNCIAS - FORNECIMENTO E ASSENTAMENTO. AF_12/2015 | I192: M | J192: COEFICIENTE DE REPRESENTATIVIDADE | K192: 136,24 | L192: CAIXA REFERENCIAL
A193: ASSENTAMENTO DE TUBOS E PECAS | B193: ASTU | C193: FORNEC E/OU ASSENT DE TUBO DE CONCRETO COM JUNTA ARGAMASSADA | D193: 0052 | G193: 95567 | H193: TUBO DE CONCRETO (SIMPLES) PARA REDES COLETORAS DE ÁGUAS PLUVIAIS, DIÂMETRO DE 300 MM, JUNTA RÍGIDA, INSTALADO EM LOCAL COM BAIXO NÍVEL DE INTERFERÊNCIAS - FORNECIMENTO E ASSENTAMENTO. AF_12/2015 | I193: M | J193: ATRIBUÍDO SÃO PAULO | K193: 106,81 | L193: CAIXA REFERENCIAL
A194: ASSENTAMENTO DE TUBOS E PECAS | B194: ASTU | C194: FORNEC E/OU ASSENT DE TUBO DE CONCRETO COM JUNTA ARGAMASSADA | D194: 0052 | G194: 95568 | H194: TUBO DE CONCRETO (SIMPLES) PARA REDES COLETORAS DE ÁGUAS PLUVIAIS, DIÂMETRO DE 400 MM, JUNTA RÍGIDA, INSTALADO EM LOCAL COM BAIXO NÍVEL DE INTERFERÊNCIAS - FORNECIMENTO E ASSENTAMENTO. AF_12/2015 | I194: M | J194: ATRIBUÍDO SÃO PAULO | K194: 130,73 | L194: CAIXA REFERENCIAL
A195: ASSENTAMENTO DE TUBOS E PECAS | B195: ASTU | C195: FORNEC E/OU ASSENT DE TUBO DE CONCRETO COM JUNTA ARGAMASSADA | D195: 0052 | G195: 95569 | H195: TUBO DE CONCRETO (SIMPLES) PARA REDES COLETORAS DE ÁGUAS PLUVIAIS, DIÂMETRO DE 500 MM, JUNTA RÍGIDA, INSTALADO EM LOCAL COM BAIXO NÍVEL DE INTERFERÊNCIAS - FORNECIMENTO E ASSENTAMENTO. AF_12/2015 | I195: M | J195: ATRIBUÍDO SÃO PAULO | K195: 178,90 | L195: CAIXA REFERENCIAL
A196: ASSENTAMENTO DE TUBOS E PECAS | B196: ASTU | C196: FORNEC E/OU ASSENT DE TUBO DE CONCRETO COM JUNTA ARGAMASSADA | D196: 0052 | G196: 95570 | H196: TUBO DE CONCRETO (SIMPLES) PARA REDES COLETORAS DE ÁGUAS PLUVIAIS, DIÂMETRO DE 300 MM, JUNTA RÍGIDA, INSTALADO EM LOCAL COM ALTO NÍVEL DE INTERFERÊNCIAS - FORNECIMENTO E ASSENTAMENTO. AF_12/2015 | I196: M | J196: ATRIBUÍDO SÃO PAULO | K196: 115,50 | L196: CAIXA REFERENCIAL
A197: ASSENTAMENTO DE TUBOS E PECAS | B197: ASTU | C197: FORNEC E/OU ASSENT DE TUBO DE CONCRETO COM JUNTA ARGAMASSADA | D197: 0052 | G197: 95571 | H197: TUBO DE CONCRETO (SIMPLES) PARA REDES COLETORAS DE ÁGUAS PLUVIAIS, DIÂMETRO DE 400 MM, JUNTA RÍGIDA, INSTALADO EM LOCAL COM ALTO NÍVEL DE INTERFERÊNCIAS - FORNECIMENTO E ASSENTAMENTO. AF_12/2015 | I197: M | J197: ATRIBUÍDO SÃO PAULO | K197: 141,85 | L197: CAIXA REFERENCIAL
A198: ASSENTAMENTO DE TUBOS E PECAS | B198: ASTU | C198: FORNEC E/OU ASSENT DE TUBO DE CONCRETO COM JUNTA ARGAMASSADA | D198: 0052 | G198: 95572 | H198: TUBO DE CONCRETO (SIMPLES) PARA REDES COLETORAS DE ÁGUAS PLUVIAIS, DIÂMETRO DE 500 MM, JUNTA RÍGIDA, INSTALADO EM LOCAL COM ALTO NÍVEL DE INTERFERÊNCIAS - FORNECIMENTO E ASSENTAMENTO. AF_12/2015 | I198: M | J198: ATRIBUÍDO SÃO PAULO | K198: 192,67 | L198: CAIXA REFERENCIAL
A199: ASSENTAMENTO DE TUBOS E PECAS | B199: ASTU | C199: FORNEC E/OU ASSENT DE TUBO PVC DEFOFO COM JUNTA ELASTICA | D199: 0230 | G199: 97127 | H199: ASSENTAMENTO DE TUBO DE PVC DEFOFO OU PRFV OU RPVC PARA REDE DE ÁGUA, DN 150 MM, JUNTA ELÁSTICA INTEGRADA, INSTALADO EM LOCAL COM NÍVEL ALTO DE INTERFERÊNCIAS (NÃO INCLUI FORNECIMENTO). AF_11/2017 | I199: M | J199: COEFICIENTE DE REPRESENTATIVIDADE | K199: 5,69 | L199: CAIXA REFERENCIAL
A200: ASSENTAMENTO DE TUBOS E PECAS | B200: ASTU | C200: FORNEC E/OU ASSENT DE TUBO PVC DEFOFO COM JUNTA ELASTICA | D200: 0230 | G200: 97128 | H200: ASSENTAMENTO DE TUBO DE PVC DEFOFO OU PRFV OU RPVC PARA REDE DE ÁGUA, DN 200 MM, JUNTA ELÁSTICA INTEGRADA, INSTALADO EM LOCAL COM NÍVEL ALTO DE INTERFERÊNCIAS (NÃO INCLUI FORNECIMENTO). AF_11/2017 | I200: M | J200: COEFICIENTE DE REPRESENTATIVIDADE | K200: 11,81 | L200: CAIXA REFERENCIAL
A201: ASSENTAMENTO DE TUBOS E PECAS | B201: ASTU | C201: FORNEC E/OU ASSENT DE TUBO PVC DEFOFO COM JUNTA ELASTICA | D201: 0230 | G201: 97129 | H201: ASSENTAMENTO DE TUBO DE PVC DEFOFO OU PRFV OU RPVC PARA REDE DE ÁGUA, DN 250 MM, JUNTA ELÁSTICA INTEGRADA, INSTALADO EM LOCAL COM NÍVEL ALTO DE INTERFERÊNCIAS (NÃO INCLUI FORNECIMENTO). AF_11/2017 | I201: M | J201: COEFICIENTE DE REPRESENTATIVIDADE | K201: 14,51 | L201: CAIXA REFERENCIAL
A202: ASSENTAMENTO DE TUBOS E PECAS | B202: ASTU | C202: FORNEC E/OU ASSENT DE TUBO PVC DEFOFO COM JUNTA ELASTICA | D202: 0230 | G202: 97130 | H202: ASSENTAMENTO DE TUBO DE PVC DEFOFO OU PRFV OU RPVC PARA REDE DE ÁGUA, DN 300 MM, JUNTA ELÁSTICA INTEGRADA, INSTALADO EM LOCAL COM NÍVEL ALTO DE INTERFERÊNCIAS (NÃO INCLUI FORNECIMENTO). AF_11/2017 | I202: M | J202: COEFICIENTE DE REPRESENTATIVIDADE | K202: 17,21 | L202: CAIXA REFERENCIAL
... 7339 more rows

Sheet INS. ORSE
A1: ORSE AGOSTO/2023-1
A2: CODIGO | B2: DESCRICAO DO INSUMO | C2: UNIDADE | D2: PRECO R$
A3: 10434 | B3: =UPPER("Caminhão Carroceria de madeira 9 t - fonte:DNIT") -> CAMINHÃO CARROCERIA DE MADEIRA 9 T - FONTE:DNIT | C3: H | D3: 96.04
A4: 5896 | B4: =UPPER("Veículo tipo sedan ou pick-up capacidade 0,6 ton") -> VEÍCULO TIPO SEDAN OU PICK-UP CAPACIDADE 0,6 TON | C4: H | D4: 8.33
A5: 10540 | B5: =UPPER("Aluguel de computador notebook ") -> ALUGUEL DE COMPUTADOR NOTEBOOK | C5: MÊS | D5: 18.72
A6: 4415 | B6: =UPPER("Veículo leve - Volkswagen:GOL ou similar") -> VEÍCULO LEVE - VOLKSWAGEN:GOL OU SIMILAR | C6: H | D6: 13.18
A7: 2789 | B7: =UPPER("Veículo leve - pick up (97kw)") -> VEÍCULO LEVE - PICK UP (97KW) | C7: H | D7: 10.19
A8: 2479 | B8: =UPPER("Perfuratriz pneumática (atlas copco -rh 571 5l)") -> PERFURATRIZ PNEUMÁTICA (ATLAS COPCO -RH 571 5L) | C8: H | D8: 3.1
A9: 5049 | B9: Perfuração em rocha cristalina - rocha cristalina alterada / compacta dn 8" (poço até 150m) | C9: M | D9: 157.54
A10: 5048 | B10: Perfuração em rocha cristalina - rocha cristalina alterada / compacta dn 6" (poço até 120m) | C10: M | D10: 125.23
A11: 2463 | B11: Compressor 250 pcm (atlas copco - xa-120dd - 94,0 hp ou equivalente) | C11: H | D11: 12.59
A12: 5034 | B12: =UPPER("Ensaio de vazão com compressor 150psi - 600cfm") -> ENSAIO DE VAZÃO COM COMPRESSOR 150PSI - 600CFM | C12: H | D12: 225.08
A13: 1997 | B13: =UPPER("Sabão em pó") -> SABÃO EM PÓ | C13: KG | D13: 10.19
A14: 5022 | B14: =UPPER("Análise físico-química de água") -> ANÁLISE FÍSICO-QUÍMICA DE ÁGUA | C14: UN | D14: 565.21
A15: 5021 | B15: =UPPER("Análise bacteriológica de água") -> ANÁLISE BACTERIOLÓGICA DE ÁGUA | C15: UN | D15: 55.98
A16: 613 | B16: =UPPER("Cimento cp - 320") -> CIMENTO CP - 320 | C16: KG | D16: 0.8
A17: 5128 | B17: =UPPER("Tampa de poço galvanizada em 6POL") -> TAMPA DE POÇO GALVANIZADA EM 6POL | C17: UN | D17: 107.28
A18: 3684 | B18: =UPPER("Disjuntor bipolar 20 A, padrão DIN (linha branca), curva B, corrente de interrupção 5KA, ref.: Siemens 5SX1 ou similar.") -> DISJUNTOR BIPOLAR 20 A, PADRÃO DIN (LINHA BRANCA), CURVA B, CORRENTE DE INTERRUPÇÃO 5KA, REF.: SIEMENS 5SX1 OU SIMILAR. | C18: UN | D18: 26
A19: 12365 | B19: =UPPER("Disjuntor monopolar 2 A, padrão DIN (linha branca), curva de disparo C, corrente de interrupção 5KA, ref.: Siemens 5 SX11027 ou similar.") -> DISJUNTOR MONOPOLAR 2 A, PADRÃO DIN (LINHA BRANCA), CURVA DE DISPARO C, CORRENTE DE INTERRUPÇÃO 5KA, REF.: SIEMENS 5 SX11027 OU SIMILAR. | C19: UN | D19: 46.1
A20: 1399 | B20: =UPPER("Luva eletroduto pvc roscável, d= 3/4") -> LUVA ELETRODUTO PVC ROSCÁVEL, D= 3/4 | C20: UN | D20: 1.1
A21: 872 | B21: =UPPER("Eletroduto pvc roscável, d= 3/4") -> ELETRODUTO PVC ROSCÁVEL, D= 3/4 | C21: M | D21: 4.52
A22: 9108 | B22: =UPPER("Caixa p/quadro eletrico em chapa metalica d=20 x 30 x 20cm") -> CAIXA P/QUADRO ELETRICO EM CHAPA METALICA D=20 X 30 X 20CM | C22: UN | D22: 156.25
A23: 9521 | B23: =UPPER("Adaptador pvc longo BSxPR d= 50mm x 1 1/2, linha Irriga-LF, Tigre ou similar") -> ADAPTADOR PVC LONGO BSXPR D= 50MM X 1 1/2, LINHA IRRIGA-LF, TIGRE OU SIMILAR | C23: UN | D23: 3.73
A24: 9514 | B24: =UPPER("Curva 45º pvc PTA/BSA soldavel d= 50mm, linha Irriga-LF, Tigre ou similar") -> CURVA 45º PVC PTA/BSA SOLDAVEL D= 50MM, LINHA IRRIGA-LF, TIGRE OU SIMILAR | C24: UN | D24: 22.53
A25: 8369 | B25: =UPPER("Tubo PVC p/irrigação LF PN 40 JE Ø 50mm, linha Irriga-LF, Tigre ou similar") -> TUBO PVC P/IRRIGAÇÃO LF PN 40 JE Ø 50MM, LINHA IRRIGA-LF, TIGRE OU SIMILAR | C25: M | D25: 13.88
A26: 9517 | B26: =UPPER("Curva 90º pvc PTA/BSA soldavel d= 50mm, linha Irriga-LF, Tigre ou similar") -> CURVA 90º PVC PTA/BSA SOLDAVEL D= 50MM, LINHA IRRIGA-LF, TIGRE OU SIMILAR | C26: UN | D26: 16.55
A27: 2340 | B27: =UPPER("Tubo pvc rigido soldavel, p/ água, marrom, d= 32mm") -> TUBO PVC RIGIDO SOLDAVEL, P/ ÁGUA, MARROM, D= 32MM | C27: M | D27: 9.78
A28: 2754 | B28: =UPPER("Estaca pré-moldada de concreto armado (mourão), para cerca, seção 10x10, reta ou com ponta oblíqua") -> ESTACA PRÉ-MOLDADA DE CONCRETO ARMADO (MOURÃO), PARA CERCA, SEÇÃO 10X10, RETA OU COM PONTA OBLÍQUA | C28: M | D28: 15.28
A29: 3045 | B29: =UPPER("Tinta PVA látex, misturada em máquina, cores especiais, tons fortes (laranja, vermelho, mostarda, verde limão)") -> TINTA PVA LÁTEX, MISTURADA EM MÁQUINA, CORES ESPECIAIS, TONS FORTES (LARANJA, VERMELHO, MOSTARDA, VERDE LIMÃO) | C29: L | D29: 23.31
A30: 5047 | B30: =UPPER("Perfuração de alargamento em rocha sedimentar em 17") -> PERFURAÇÃO DE ALARGAMENTO EM ROCHA SEDIMENTAR EM 17 | C30: M | D30: 287.61
A31: 5045 | B31: =UPPER("Perfuração de alargamento em rocha sedimentar em 12.1/4 - até 250 m") -> PERFURAÇÃO DE ALARGAMENTO EM ROCHA SEDIMENTAR EM 12.1/4 - ATÉ 250 M | C31: M | D31: 272.56
A32: 5129 | B32: =UPPER("Tampa de poço galvanizada em 8POL") -> TAMPA DE POÇO GALVANIZADA EM 8POL | C32: UN | D32: 114.42
A33: 5128 | B33: =UPPER("Tampa de poço galvanizada em 6POL") -> TAMPA DE POÇO GALVANIZADA EM 6POL | C33: UN | D33: 107.28
A34: 5091 | B34: =UPPER("Revestimento filtro pvc geomecânico reforçado dn 150mm") -> REVESTIMENTO FILTRO PVC GEOMECÂNICO REFORÇADO DN 150MM | C34: M | D34: 221.38
A35: 5024 | B35: =UPPER("Centralizador em 6POL") -> CENTRALIZADOR EM 6POL | C35: UN | D35: 267.02
A36: 5035 | B36: =UPPER("Ensaio de vazão com compressor 250psi - 750cfm") -> ENSAIO DE VAZÃO COM COMPRESSOR 250PSI - 750CFM | C36: H | D36: 411.16
A37: 1400 | B37: LUVA ELETRODUTO PVC ROSCÁVEL, D=1 " | C37: UN | D37: 1.53

Sheet COMP. ORSE
A1: ORSE AGOSTO/2023-1
A2: CODIGO | B2: DESCRICAO DO SERVIÇO | C2: UNIDADE | D2: PRECO R$
A3: 3290 | B3: =UPPER("Aterramento composto de haste de cobre l = 2,40m, interligada com cabo de cobre tipo cordoalha") -> ATERRAMENTO COMPOSTO DE HASTE DE COBRE L = 2,40M, INTERLIGADA COM CABO DE COBRE TIPO CORDOALHA | C3: UN | D3: 89.37
A4: 8894 | B4: =UPPER("Dispositivo de proteção contra surto de tensão DPS 40kA - 175v") -> DISPOSITIVO DE PROTEÇÃO CONTRA SURTO DE TENSÃO DPS 40KA - 175V | C4: UN | D4: 64.38
A5: 2497 | B5: =UPPER("Escavação manual de vala ou cava em material de 1ª categoria, profundidade até 1,50m") -> ESCAVAÇÃO MANUAL DE VALA OU CAVA EM MATERIAL DE 1ª CATEGORIA, PROFUNDIDADE ATÉ 1,50M | C5: M³ | D5: 49.56
A6: 95 | B6: =UPPER("Concreto simples fabricado na obra, fck=13,5 mpa, lançado e adensado") -> CONCRETO SIMPLES FABRICADO NA OBRA, FCK=13,5 MPA, LANÇADO E ADENSADO | C6: M³ | D6: 558.04
